Body,Body Name,Date,TransNo,Amount � (Excl VAT),Supplier name,Supplier ID,Expense Area,Expense Type,Expense Code
http://statistics.data.gov.uk/id/local-authority/00BF,London Borough of Sutton,31/07/2016,1222705,988,A Star Transport Ltd,24386,Peoples Services Directorate,Hired Peoples Transport (Children),E072
http://statistics.data.gov.uk/id/local-authority/00BF,London Borough of Sutton,18/07/2016,1222712,800,Abc-Ot Ltd,26668,Peoples Services Directorate,Special Educational Needs,G331
http://statistics.data.gov.uk/id/local-authority/00BF,London Borough of Sutton,10/04/2016,4971008,556.12,Absolute Care Services Ltd,10021,Peoples Services Directorate,Home Care,G334
http://statistics.data.gov.uk/id/local-authority/00BF,London Borough of Sutton,10/04/2016,4971016,684,Absolute Care Services Ltd,10021,Peoples Services Directorate,Home Care,G334
http://statistics.data.gov.uk/id/local-authority/00BF,London Borough of Sutton,10/04/2016,4971025,546,Absolute Care Services Ltd,10021,Peoples Services Directorate,Home Care,G334
http://statistics.data.gov.uk/id/local-authority/00BF,London Borough of Sutton,17/04/2016,4971026,546,Absolute Care Services Ltd,10021,Peoples Services Directorate,Home Care,G334
http://statistics.data.gov.uk/id/local-authority/00BF,London Borough of Sutton,19/06/2016,4971027,546,Absolute Care Services Ltd,10021,Peoples Services Directorate,Home Care,G334
http://statistics.data.gov.uk/id/local-authority/00BF,London Borough of Sutton,17/04/2016,4971038,416,Absolute Care Services Ltd,10021,Peoples Services Directorate,Home Care,G334
http://statistics.data.gov.uk/id/local-authority/00BF,London Borough of Sutton,10/04/2016,4971045,455,Absolute Care Services Ltd,10021,Peoples Services Directorate,Home Care,G334
http://statistics.data.gov.uk/id/local-authority/00BF,London Borough of Sutton,17/04/2016,4971046,455,Absolute Care Services Ltd,10021,Peoples Services Directorate,Home Care,G334
http://statistics.data.gov.uk/id/local-authority/00BF,London Borough of Sutton,19/06/2016,4971047,455,Absolute Care Services Ltd,10021,Peoples Services Directorate,Home Care,G334
http://statistics.data.gov.uk/id/local-authority/00BF,London Borough of Sutton,10/04/2016,4971051,682.5,Absolute Care Services Ltd,10021,Peoples Services Directorate,Home Care,G334
http://statistics.data.gov.uk/id/local-authority/00BF,London Borough of Sutton,17/04/2016,4971052,682.5,Absolute Care Services Ltd,10021,Peoples Services Directorate,Home Care,G334
http://statistics.data.gov.uk/id/local-authority/00BF,London Borough of Sutton,19/06/2016,4971053,682.5,Absolute Care Services Ltd,10021,Peoples Services Directorate,Home Care,G334
http://statistics.data.gov.uk/id/local-authority/00BF,London Borough of Sutton,10/04/2016,4971064,518.08,Absolute Care Services Ltd,10021,Peoples Services Directorate,Home Care,G334
http://statistics.data.gov.uk/id/local-authority/00BF,London Borough of Sutton,10/04/2016,4971093,"2,415.00",Absolute Care Services Ltd,10021,Peoples Services Directorate,Home Care,G334
http://statistics.data.gov.uk/id/local-authority/00BF,London Borough of Sutton,17/04/2016,4971094,"2,415.00",Absolute Care Services Ltd,10021,Peoples Services Directorate,Home Care,G334
http://statistics.data.gov.uk/id/local-authority/00BF,London Borough of Sutton,19/06/2016,4971095,"2,415.00",Absolute Care Services Ltd,10021,Peoples Services Directorate,Home Care,G334
http://statistics.data.gov.uk/id/local-authority/00BF,London Borough of Sutton,29/05/2016,4971184,455.74,Absolute Care Services Ltd,10021,Peoples Services Directorate,Home Care,G334
http://statistics.data.gov.uk/id/local-authority/00BF,London Borough of Sutton,24/07/2016,4972536,546,Absolute Care Services Ltd,10021,Peoples Services Directorate,Home Care,G334
http://statistics.data.gov.uk/id/local-authority/00BF,London Borough of Sutton,24/07/2016,4972541,455,Absolute Care Services Ltd,10021,Peoples Services Directorate,Home Care,G334
http://statistics.data.gov.uk/id/local-authority/00BF,London Borough of Sutton,24/07/2016,4972563,556.12,Absolute Care Services Ltd,10021,Peoples Services Directorate,Home Care,G334
http://statistics.data.gov.uk/id/local-authority/00BF,London Borough of Sutton,24/07/2016,4972639,782.46,Absolute Care Services Ltd,10021,Peoples Services Directorate,Home Care,G334
http://statistics.data.gov.uk/id/local-authority/00BF,London Borough of Sutton,24/07/2016,4972664,435.5,Absolute Care Services Ltd,10021,Peoples Services Directorate,Home Care,G334
http://statistics.data.gov.uk/id/local-authority/00BF,London Borough of Sutton,24/07/2016,4972672,518.08,Absolute Care Services Ltd,10021,Peoples Services Directorate,Home Care,G334
http://statistics.data.gov.uk/id/local-authority/00BF,London Borough of Sutton,24/07/2016,4972702,"2,415.00",Absolute Care Services Ltd,10021,Peoples Services Directorate,Home Care,G334
http://statistics.data.gov.uk/id/local-authority/00BF,London Borough of Sutton,12/06/2016,4972802,556.12,Absolute Care Services Ltd,10021,Peoples Services Directorate,Home Care,G334
http://statistics.data.gov.uk/id/local-authority/00BF,London Borough of Sutton,12/06/2016,4972815,753.95,Absolute Care Services Ltd,10021,Peoples Services Directorate,Home Care,G334
http://statistics.data.gov.uk/id/local-authority/00BF,London Borough of Sutton,12/06/2016,4972820,435.5,Absolute Care Services Ltd,10021,Peoples Services Directorate,Home Care,G334
http://statistics.data.gov.uk/id/local-authority/00BF,London Borough of Sutton,12/06/2016,4972822,518.08,Absolute Care Services Ltd,10021,Peoples Services Directorate,Home Care,G334
http://statistics.data.gov.uk/id/local-authority/00BF,London Borough of Sutton,12/06/2016,4972849,455.74,Absolute Care Services Ltd,10021,Peoples Services Directorate,Home Care,G334
http://statistics.data.gov.uk/id/local-authority/00BF,London Borough of Sutton,19/06/2016,4972850,455.74,Absolute Care Services Ltd,10021,Peoples Services Directorate,Home Care,G334
http://statistics.data.gov.uk/id/local-authority/00BF,London Borough of Sutton,31/07/2016,4975571,546,Absolute Care Services Ltd,10021,Peoples Services Directorate,Home Care,G334
http://statistics.data.gov.uk/id/local-authority/00BF,London Borough of Sutton,31/07/2016,4975576,455,Absolute Care Services Ltd,10021,Peoples Services Directorate,Home Care,G334
http://statistics.data.gov.uk/id/local-authority/00BF,London Borough of Sutton,31/07/2016,4975602,556.12,Absolute Care Services Ltd,10021,Peoples Services Directorate,Home Care,G334
http://statistics.data.gov.uk/id/local-authority/00BF,London Borough of Sutton,31/07/2016,4975661,518.08,Absolute Care Services Ltd,10021,Peoples Services Directorate,Home Care,G334
http://statistics.data.gov.uk/id/local-authority/00BF,London Borough of Sutton,31/07/2016,4975715,"2,415.00",Absolute Care Services Ltd,10021,Peoples Services Directorate,Home Care,G334
http://statistics.data.gov.uk/id/local-authority/00BF,London Borough of Sutton,31/07/2016,4975749,455.74,Absolute Care Services Ltd,10021,Peoples Services Directorate,Home Care,G334
http://statistics.data.gov.uk/id/local-authority/00BF,London Borough of Sutton,07/08/2016,4975859,501.72,Absolute Care Services Ltd,10021,Peoples Services Directorate,Home Care,G334
http://statistics.data.gov.uk/id/local-authority/00BF,London Borough of Sutton,07/08/2016,4975931,455.74,Absolute Care Services Ltd,10021,Peoples Services Directorate,Home Care,G334
http://statistics.data.gov.uk/id/local-authority/00BF,London Borough of Sutton,14/08/2016,4975932,455.74,Absolute Care Services Ltd,10021,Peoples Services Directorate,Home Care,G334
http://statistics.data.gov.uk/id/local-authority/00BF,London Borough of Sutton,07/08/2016,4976103,556.12,Absolute Care Services Ltd,10021,Peoples Services Directorate,Home Care,G334
http://statistics.data.gov.uk/id/local-authority/00BF,London Borough of Sutton,14/08/2016,4976104,556.12,Absolute Care Services Ltd,10021,Peoples Services Directorate,Home Care,G334
http://statistics.data.gov.uk/id/local-authority/00BF,London Borough of Sutton,07/08/2016,4976143,817.91,Absolute Care Services Ltd,10021,Peoples Services Directorate,Home Care,G334
http://statistics.data.gov.uk/id/local-authority/00BF,London Borough of Sutton,14/08/2016,4976144,817.91,Absolute Care Services Ltd,10021,Peoples Services Directorate,Home Care,G334
http://statistics.data.gov.uk/id/local-authority/00BF,London Borough of Sutton,07/08/2016,4976168,"2,415.00",Absolute Care Services Ltd,10021,Peoples Services Directorate,Home Care,G334
http://statistics.data.gov.uk/id/local-authority/00BF,London Borough of Sutton,14/08/2016,4976169,"2,415.00",Absolute Care Services Ltd,10021,Peoples Services Directorate,Home Care,G334
http://statistics.data.gov.uk/id/local-authority/00BF,London Borough of Sutton,14/08/2016,4976300,416,Absolute Care Services Ltd,10021,Peoples Services Directorate,Home Care,G334
http://statistics.data.gov.uk/id/local-authority/00BF,London Borough of Sutton,07/08/2016,4976448,546,Absolute Care Services Ltd,10021,Peoples Services Directorate,Home Care,G334
http://statistics.data.gov.uk/id/local-authority/00BF,London Borough of Sutton,14/08/2016,4976449,546,Absolute Care Services Ltd,10021,Peoples Services Directorate,Home Care,G334
http://statistics.data.gov.uk/id/local-authority/00BF,London Borough of Sutton,07/08/2016,4976458,455,Absolute Care Services Ltd,10021,Peoples Services Directorate,Home Care,G334
http://statistics.data.gov.uk/id/local-authority/00BF,London Borough of Sutton,14/08/2016,4976459,455,Absolute Care Services Ltd,10021,Peoples Services Directorate,Home Care,G334
http://statistics.data.gov.uk/id/local-authority/00BF,London Borough of Sutton,25/07/2016,6887722,"6,902.75",Absolute Care Services Ltd,10021,Peoples Services Directorate,Homecare Core Services,G336
http://statistics.data.gov.uk/id/local-authority/00BF,London Borough of Sutton,01/08/2016,6888290,877.8,Absolute Care Services Ltd,10021,Peoples Services Directorate,Homecare Core Services,G336
http://statistics.data.gov.uk/id/local-authority/00BF,London Borough of Sutton,01/08/2016,6888291,"6,902.75",Absolute Care Services Ltd,10021,Peoples Services Directorate,Homecare Core Services,G336
http://statistics.data.gov.uk/id/local-authority/00BF,London Borough of Sutton,01/08/2016,6888292,"4,620.00",Absolute Care Services Ltd,10021,Peoples Services Directorate,Homecare Core Services,G336
http://statistics.data.gov.uk/id/local-authority/00BF,London Borough of Sutton,01/08/2016,6888293,"4,828.75",Absolute Care Services Ltd,10021,Peoples Services Directorate,Homecare Core Services,G336
http://statistics.data.gov.uk/id/local-authority/00BF,London Borough of Sutton,01/08/2016,6888478,463.26,Absolute Care Services Ltd,10021,Peoples Services Directorate,Homecare Core Services,G336
http://statistics.data.gov.uk/id/local-authority/00BF,London Borough of Sutton,08/08/2016,6888785,"4,828.75",Absolute Care Services Ltd,10021,Peoples Services Directorate,Homecare Core Services,G336
http://statistics.data.gov.uk/id/local-authority/00BF,London Borough of Sutton,08/08/2016,6888786,"4,620.00",Absolute Care Services Ltd,10021,Peoples Services Directorate,Homecare Core Services,G336
http://statistics.data.gov.uk/id/local-authority/00BF,London Borough of Sutton,08/08/2016,6888787,"6,902.75",Absolute Care Services Ltd,10021,Peoples Services Directorate,Homecare Core Services,G336
http://statistics.data.gov.uk/id/local-authority/00BF,London Borough of Sutton,08/08/2016,6888788,877.8,Absolute Care Services Ltd,10021,Peoples Services Directorate,Homecare Core Services,G336
http://statistics.data.gov.uk/id/local-authority/00BF,London Borough of Sutton,08/08/2016,6889149,463.26,Absolute Care Services Ltd,10021,Peoples Services Directorate,Homecare Core Services,G336
http://statistics.data.gov.uk/id/local-authority/00BF,London Borough of Sutton,15/08/2016,6889373,877.8,Absolute Care Services Ltd,10021,Peoples Services Directorate,Homecare Core Services,G336
http://statistics.data.gov.uk/id/local-authority/00BF,London Borough of Sutton,15/08/2016,6889376,"4,828.75",Absolute Care Services Ltd,10021,Peoples Services Directorate,Homecare Core Services,G336
http://statistics.data.gov.uk/id/local-authority/00BF,London Borough of Sutton,15/08/2016,6889377,"4,620.00",Absolute Care Services Ltd,10021,Peoples Services Directorate,Homecare Core Services,G336
http://statistics.data.gov.uk/id/local-authority/00BF,London Borough of Sutton,15/08/2016,6889378,"6,902.75",Absolute Care Services Ltd,10021,Peoples Services Directorate,Homecare Core Services,G336
http://statistics.data.gov.uk/id/local-authority/00BF,London Borough of Sutton,29/07/2016,6889519,"8,898.50",Absolute Care Services Ltd,10021,Peoples Services Directorate,Home Care,G334
http://statistics.data.gov.uk/id/local-authority/00BF,London Borough of Sutton,12/08/2016,6889520,"16,983.16",Absolute Care Services Ltd,10021,Peoples Services Directorate,Home Care,G334
http://statistics.data.gov.uk/id/local-authority/00BF,London Borough of Sutton,10/08/2016,6889521,975,Absolute Care Services Ltd,10021,Peoples Services Directorate,Home Care,G334
http://statistics.data.gov.uk/id/local-authority/00BF,London Borough of Sutton,29/07/2016,6889522,"4,699.50",Absolute Care Services Ltd,10021,Peoples Services Directorate,Home Care,G334
http://statistics.data.gov.uk/id/local-authority/00BF,London Borough of Sutton,10/08/2016,6889523,"1,228.50",Absolute Care Services Ltd,10021,Peoples Services Directorate,Home Care,G334
http://statistics.data.gov.uk/id/local-authority/00BF,London Borough of Sutton,15/08/2016,6889789,463.26,Absolute Care Services Ltd,10021,Peoples Services Directorate,Homecare Core Services,G336
http://statistics.data.gov.uk/id/local-authority/00BF,London Borough of Sutton,22/08/2016,6890015,"4,828.75",Absolute Care Services Ltd,10021,Peoples Services Directorate,Homecare Core Services,G336
http://statistics.data.gov.uk/id/local-authority/00BF,London Borough of Sutton,22/08/2016,6890016,"4,620.00",Absolute Care Services Ltd,10021,Peoples Services Directorate,Homecare Core Services,G336
http://statistics.data.gov.uk/id/local-authority/00BF,London Borough of Sutton,22/08/2016,6890017,"6,902.75",Absolute Care Services Ltd,10021,Peoples Services Directorate,Homecare Core Services,G336
http://statistics.data.gov.uk/id/local-authority/00BF,London Borough of Sutton,22/08/2016,6890018,877.8,Absolute Care Services Ltd,10021,Peoples Services Directorate,Homecare Core Services,G336
http://statistics.data.gov.uk/id/local-authority/00BF,London Borough of Sutton,22/08/2016,6890342,463.26,Absolute Care Services Ltd,10021,Peoples Services Directorate,Homecare Core Services,G336
http://statistics.data.gov.uk/id/local-authority/00BF,London Borough of Sutton,29/08/2016,6890494,"6,902.75",Absolute Care Services Ltd,10021,Peoples Services Directorate,Homecare Core Services,G336
http://statistics.data.gov.uk/id/local-authority/00BF,London Borough of Sutton,29/08/2016,6890495,877.8,Absolute Care Services Ltd,10021,Peoples Services Directorate,Homecare Core Services,G336
http://statistics.data.gov.uk/id/local-authority/00BF,London Borough of Sutton,28/07/2016,4980152,"4,096.34",Acorn Homes UK Ltd,25726,Peoples Services Directorate,Approved Lodgings,H323
http://statistics.data.gov.uk/id/local-authority/00BF,London Borough of Sutton,12/08/2016,4973450,"2,903.20",Acorn Lodge,15804,Peoples Services Directorate,Residential Care - Ext Provider,G310
http://statistics.data.gov.uk/id/local-authority/00BF,London Borough of Sutton,12/08/2016,4973596,"3,042.36",Acorn Residential Home,15828,Peoples Services Directorate,Residential Care - Ext Provider,G310
http://statistics.data.gov.uk/id/local-authority/00BF,London Borough of Sutton,15/08/2016,6889703,"1,225.00",Adaram Ltd T/A Rosehill Lodging,12014,"Environment, Housing & Regeneration Directorate",Bed and Breakfast Accommodation,G400
http://statistics.data.gov.uk/id/local-authority/00BF,London Borough of Sutton,01/04/2016,6890526,"1,567.50",ADCS LTD,11126,Peoples Services Directorate,Subscriptions - General,F450
http://statistics.data.gov.uk/id/local-authority/00BF,London Borough of Sutton,27/07/2016,6888588,"218,902.76",Adecco Uk Ltd,10059,Resources Directorate,Suspense/Holding Accounts,X550
http://statistics.data.gov.uk/id/local-authority/00BF,London Borough of Sutton,29/07/2016,6888789,766.6,Adecco Uk Ltd,10059,Resources Directorate,Suspense/Holding Accounts,X550
http://statistics.data.gov.uk/id/local-authority/00BF,London Borough of Sutton,20/07/2016,6888976,"215,713.93",Adecco Uk Ltd,10059,Resources Directorate,Suspense/Holding Accounts,X550
http://statistics.data.gov.uk/id/local-authority/00BF,London Borough of Sutton,06/07/2016,6888979,"213,329.81",Adecco Uk Ltd,10059,Resources Directorate,Suspense/Holding Accounts,X550
http://statistics.data.gov.uk/id/local-authority/00BF,London Borough of Sutton,13/07/2016,6888992,"218,731.38",Adecco Uk Ltd,10059,Resources Directorate,Suspense/Holding Accounts,X550
http://statistics.data.gov.uk/id/local-authority/00BF,London Borough of Sutton,29/06/2016,6888995,"199,471.21",Adecco Uk Ltd,10059,Resources Directorate,Suspense/Holding Accounts,X550
http://statistics.data.gov.uk/id/local-authority/00BF,London Borough of Sutton,17/08/2016,6889853,"201,600.37",Adecco Uk Ltd,10059,Resources Directorate,Suspense/Holding Accounts,X550
http://statistics.data.gov.uk/id/local-authority/00BF,London Borough of Sutton,23/08/2016,6890509,521.22,Adecco Uk Ltd,10059,Resources Directorate,Suspense/Holding Accounts,X550
http://statistics.data.gov.uk/id/local-authority/00BF,London Borough of Sutton,29/04/2016,6888021,"8,973.81",Advanced Health & Care,23939,Peoples Services Directorate,Fees - Computer Software,F384
http://statistics.data.gov.uk/id/local-authority/00BF,London Borough of Sutton,23/03/2016,6888965,"6,750.00",Advocacy For All,24795,Peoples Services Directorate,Provider Contract Payments,F470
http://statistics.data.gov.uk/id/local-authority/00BF,London Borough of Sutton,04/07/2016,6888966,"6,750.00",Advocacy For All,24795,Peoples Services Directorate,Provider Contract Payments,F470
http://statistics.data.gov.uk/id/local-authority/00BF,London Borough of Sutton,20/05/2016,6888967,"6,750.00",Advocacy For All,24795,Peoples Services Directorate,Provider Contract Payments,F470
http://statistics.data.gov.uk/id/local-authority/00BF,London Borough of Sutton,22/04/2016,6888969,"6,750.00",Advocacy For All,24795,Peoples Services Directorate,Provider Contract Payments,F470
http://statistics.data.gov.uk/id/local-authority/00BF,London Borough of Sutton,15/03/2016,6889232,"6,750.00",Advocacy For All,24795,Peoples Services Directorate,Provider Contract Payments,F470
http://statistics.data.gov.uk/id/local-authority/00BF,London Borough of Sutton,03/08/2016,6889233,"6,750.00",Advocacy For All,24795,Peoples Services Directorate,Provider Contract Payments,F470
http://statistics.data.gov.uk/id/local-authority/00BF,London Borough of Sutton,20/07/2016,6887709,"1,896.00",Affinity Workforce Ltd,26099,Peoples Services Directorate,Agency Staff - Adecco,A300
http://statistics.data.gov.uk/id/local-authority/00BF,London Borough of Sutton,27/07/2016,6888066,"1,896.00",Affinity Workforce Ltd,26099,Peoples Services Directorate,Agency Staff - Adecco,A300
http://statistics.data.gov.uk/id/local-authority/00BF,London Borough of Sutton,03/08/2016,6888700,"1,896.00",Affinity Workforce Ltd,26099,Peoples Services Directorate,Agency Staff - Adecco,A300
http://statistics.data.gov.uk/id/local-authority/00BF,London Borough of Sutton,10/08/2016,6889275,"1,896.00",Affinity Workforce Ltd,26099,Peoples Services Directorate,Agency Staff - Adecco,A300
http://statistics.data.gov.uk/id/local-authority/00BF,London Borough of Sutton,17/08/2016,6889895,"1,896.00",Affinity Workforce Ltd,26099,Peoples Services Directorate,Agency Staff - Adecco,A300
http://statistics.data.gov.uk/id/local-authority/00BF,London Borough of Sutton,24/08/2016,6890360,"1,896.00",Affinity Workforce Ltd,26099,Peoples Services Directorate,Agency Staff - Adecco,A300
http://statistics.data.gov.uk/id/local-authority/00BF,London Borough of Sutton,05/08/2016,6888873,"1,552.30",Agilisys Contact Services Ltd,25894,Resources Directorate,Fees - Bailiffs,F302
http://statistics.data.gov.uk/id/local-authority/00BF,London Borough of Sutton,12/08/2016,4973756,"7,511.00",Aims Care Partnership (Leighton House Ltd),12628,Peoples Services Directorate,Residential Care - Ext Provider,G310
http://statistics.data.gov.uk/id/local-authority/00BF,London Borough of Sutton,12/08/2016,4973453,"5,278.00",Aitch Care Homes,20446,Peoples Services Directorate,Residential Care - Ext Provider,G310
http://statistics.data.gov.uk/id/local-authority/00BF,London Borough of Sutton,23/08/2016,6890320,812,Alan Lim Limited,26344,Peoples Services Directorate,Training - Course Fees,A520
http://statistics.data.gov.uk/id/local-authority/00BF,London Borough of Sutton,16/08/2016,6889996,"22,893.75",Aldermore Bank PLC,25028,"Environment, Housing & Regeneration Directorate",Hired Vehicles,E070
http://statistics.data.gov.uk/id/local-authority/00BF,London Borough of Sutton,16/05/2016,6890166,"22,893.75",Aldermore Bank PLC,25028,"Environment, Housing & Regeneration Directorate",Hired Vehicles,E070
http://statistics.data.gov.uk/id/local-authority/00BF,London Borough of Sutton,01/08/2016,6888675,"1,301.35",All Security Ltd,97190,Peoples Services Directorate,Agency Staff - Adecco,A300
http://statistics.data.gov.uk/id/local-authority/00BF,London Borough of Sutton,01/08/2016,6888677,"1,439.14",All Security Ltd,97190,"Environment, Housing & Regeneration Directorate",Agency Services,G431
http://statistics.data.gov.uk/id/local-authority/00BF,London Borough of Sutton,08/08/2016,6888961,464.8,Allan White Motors Ltd,14584,"Environment, Housing & Regeneration Directorate",Centralised Transport Hire,E068
http://statistics.data.gov.uk/id/local-authority/00BF,London Borough of Sutton,08/08/2016,6889077,924,Allan White Motors Ltd,14584,"Environment, Housing & Regeneration Directorate",Centralised Transport Hire,E068
http://statistics.data.gov.uk/id/local-authority/00BF,London Borough of Sutton,10/08/2016,6889159,924,Allan White Motors Ltd,14584,"Environment, Housing & Regeneration Directorate",Centralised Transport Hire,E068
http://statistics.data.gov.uk/id/local-authority/00BF,London Borough of Sutton,15/06/2016,6889820,924,Allan White Motors Ltd,14584,"Environment, Housing & Regeneration Directorate",Centralised Transport Hire,E068
http://statistics.data.gov.uk/id/local-authority/00BF,London Borough of Sutton,02/06/2016,6889821,924,Allan White Motors Ltd,14584,"Environment, Housing & Regeneration Directorate",Centralised Transport Hire,E068
http://statistics.data.gov.uk/id/local-authority/00BF,London Borough of Sutton,23/08/2016,6890049,"1,001.00",Allan White Motors Ltd,14584,"Environment, Housing & Regeneration Directorate",Centralised Transport Hire,E068
http://statistics.data.gov.uk/id/local-authority/00BF,London Borough of Sutton,25/08/2016,6890275,924,Allan White Motors Ltd,14584,"Environment, Housing & Regeneration Directorate",Centralised Transport Hire,E068
http://statistics.data.gov.uk/id/local-authority/00BF,London Borough of Sutton,12/08/2016,4973443,"6,234.48",Allied Care (Mhs) Ltd,10145,Peoples Services Directorate,Residential Care - Ext Provider,G310
http://statistics.data.gov.uk/id/local-authority/00BF,London Borough of Sutton,31/05/2016,6888330,938.89,Allstar Business Solutions,24482,"Environment, Housing & Regeneration Directorate",Fuel Etc,E030
http://statistics.data.gov.uk/id/local-authority/00BF,London Borough of Sutton,15/07/2016,6888331,"1,051.83",Allstar Business Solutions,24482,"Environment, Housing & Regeneration Directorate",Fuel Etc,E030
http://statistics.data.gov.uk/id/local-authority/00BF,London Borough of Sutton,31/07/2016,6888332,853.59,Allstar Business Solutions,24482,"Environment, Housing & Regeneration Directorate",Fuel Etc,E030
http://statistics.data.gov.uk/id/local-authority/00BF,London Borough of Sutton,15/08/2016,6889979,762.48,Allstar Business Solutions,24482,"Environment, Housing & Regeneration Directorate",Fuel Etc,E030
http://statistics.data.gov.uk/id/local-authority/00BF,London Borough of Sutton,12/08/2016,4973771,"8,013.56",Allswell Care Services Ltd,20761,Peoples Services Directorate,Residential Care - Ext Provider,G310
http://statistics.data.gov.uk/id/local-authority/00BF,London Borough of Sutton,12/08/2016,4973470,"6,000.00",Alum Care Ltd t/a Kings Lodge,18966,Peoples Services Directorate,Nursing Care - Short Term Placements,G328
http://statistics.data.gov.uk/id/local-authority/00BF,London Borough of Sutton,04/08/2016,6888653,"12,000.00",Redacted,99440,Peoples Services Directorate,Personal Requisites,F106
http://statistics.data.gov.uk/id/local-authority/00BF,London Borough of Sutton,23/06/2016,6885610,700,Amanda Randall,25972,Peoples Services Directorate,Other Services,F340
http://statistics.data.gov.uk/id/local-authority/00BF,London Borough of Sutton,29/07/2016,6888127,"2,300.00",Amanda Randall,25972,Peoples Services Directorate,Other Services,F340
http://statistics.data.gov.uk/id/local-authority/00BF,London Borough of Sutton,19/08/2016,6889863,552,Amy Johnson Play Service,23822,Peoples Services Directorate,C.C.A Daycare & Playschemes,H215
http://statistics.data.gov.uk/id/local-authority/00BF,London Borough of Sutton,25/08/2016,1222597,718.99,Anchor Housing,10181,"Environment, Housing & Regeneration Directorate",Supporting People - Older People Services,H244
http://statistics.data.gov.uk/id/local-authority/00BF,London Borough of Sutton,29/06/2016,4980251,"17,739.73",Anderida Adolescent Care Ltd,26195,Peoples Services Directorate,Residential Care-Children,G330
http://statistics.data.gov.uk/id/local-authority/00BF,London Borough of Sutton,01/08/2016,6888298,"3,000.00",Andrew Alonzi Ltd,26153,Peoples Services Directorate,Training - Course Fees,A520
http://statistics.data.gov.uk/id/local-authority/00BF,London Borough of Sutton,11/06/2016,6889474,"3,000.00",Andrew Alonzi Ltd,26153,Peoples Services Directorate,Training - Course Fees,A520
http://statistics.data.gov.uk/id/local-authority/00BF,London Borough of Sutton,23/07/2016,4973082,873.6,Angel Home AS Ltd,10173,Peoples Services Directorate,Day Care,G337
http://statistics.data.gov.uk/id/local-authority/00BF,London Borough of Sutton,23/07/2016,4973085,874,Angel Home AS Ltd,10173,Peoples Services Directorate,Day Care,G337
http://statistics.data.gov.uk/id/local-authority/00BF,London Borough of Sutton,01/07/2016,4973086,881.2,Angel Home AS Ltd,10173,Peoples Services Directorate,Day Care,G337
http://statistics.data.gov.uk/id/local-authority/00BF,London Borough of Sutton,01/07/2016,4973087,874,Angel Home AS Ltd,10173,Peoples Services Directorate,Day Care,G337
http://statistics.data.gov.uk/id/local-authority/00BF,London Borough of Sutton,23/07/2016,4973094,874,Angel Home AS Ltd,10173,Peoples Services Directorate,Day Care,G337
http://statistics.data.gov.uk/id/local-authority/00BF,London Borough of Sutton,12/08/2016,4973444,"2,842.00",Angel Home AS Ltd,10173,Peoples Services Directorate,Residential Care - Ext Provider,G310
http://statistics.data.gov.uk/id/local-authority/00BF,London Borough of Sutton,12/08/2016,4973672,"2,458.96",Angel Home AS Ltd,10173,Peoples Services Directorate,Residential Care - Ext Provider,G310
http://statistics.data.gov.uk/id/local-authority/00BF,London Borough of Sutton,12/08/2016,4973724,"2,131.92",Angel Home AS Ltd,10173,Peoples Services Directorate,Residential Care - Ext Provider,G310
http://statistics.data.gov.uk/id/local-authority/00BF,London Borough of Sutton,12/08/2016,4973726,"2,200.00",Angel Home AS Ltd,10173,Peoples Services Directorate,Residential Care - Ext Provider,G310
http://statistics.data.gov.uk/id/local-authority/00BF,London Borough of Sutton,12/08/2016,4973748,"2,056.80",Angel Home AS Ltd,10173,Peoples Services Directorate,Residential Care - Ext Provider,G310
http://statistics.data.gov.uk/id/local-authority/00BF,London Borough of Sutton,10/08/2016,4979693,699.2,Angel Home AS Ltd,10173,Peoples Services Directorate,Day Care,G337
http://statistics.data.gov.uk/id/local-authority/00BF,London Borough of Sutton,05/08/2016,4979706,699.2,Angel Home AS Ltd,10173,Peoples Services Directorate,Day Care,G337
http://statistics.data.gov.uk/id/local-authority/00BF,London Borough of Sutton,05/08/2016,4979707,699.2,Angel Home AS Ltd,10173,Peoples Services Directorate,Day Care,G337
http://statistics.data.gov.uk/id/local-authority/00BF,London Borough of Sutton,05/08/2016,4979708,699.2,Angel Home AS Ltd,10173,Peoples Services Directorate,Day Care,G337
http://statistics.data.gov.uk/id/local-authority/00BF,London Borough of Sutton,10/08/2016,4979709,699.2,Angel Home AS Ltd,10173,Peoples Services Directorate,Day Care,G337
http://statistics.data.gov.uk/id/local-authority/00BF,London Borough of Sutton,11/08/2016,6889271,"2,360.00",Angel Lettings,18658,"Environment, Housing & Regeneration Directorate",General Office Expenses,F235
http://statistics.data.gov.uk/id/local-authority/00BF,London Borough of Sutton,29/07/2016,5014595,"-1,655.00",Aoc Archaeology Group,28515,Peoples Services Directorate,Other,Y194
http://statistics.data.gov.uk/id/local-authority/00BF,London Borough of Sutton,29/07/2016,6888799,"1,655.00",Aoc Archaeology Group,28515,Peoples Services Directorate,Other,Y194
http://statistics.data.gov.uk/id/local-authority/00BF,London Borough of Sutton,29/07/2016,6889511,"1,655.00",Aoc Archaeology Group,28515,Peoples Services Directorate,Other,Y194
http://statistics.data.gov.uk/id/local-authority/00BF,London Borough of Sutton,19/08/2016,6889947,"2,000.00",Aon UK Limited,26323,Resources Directorate,Fees - Consultants (Ad Hoc),F283
http://statistics.data.gov.uk/id/local-authority/00BF,London Borough of Sutton,30/06/2016,6889145,"7,431.37",Apetito Ltd,10206,Peoples Services Directorate,Provisions - General,F150
http://statistics.data.gov.uk/id/local-authority/00BF,London Borough of Sutton,02/08/2016,6888875,"1,942.50",Architype Ltd,25419,Peoples Services Directorate,External Fees  - Architects,Y100
http://statistics.data.gov.uk/id/local-authority/00BF,London Borough of Sutton,15/07/2016,6887284,460,Arianna Patrick,28919,Peoples Services Directorate,Agency Staff - Adecco,A300
http://statistics.data.gov.uk/id/local-authority/00BF,London Borough of Sutton,25/07/2016,6887799,460,Arianna Patrick,28919,Peoples Services Directorate,Agency Staff - Adecco,A300
http://statistics.data.gov.uk/id/local-authority/00BF,London Borough of Sutton,08/07/2016,6889534,920,Arianna Patrick,28919,Peoples Services Directorate,Agency Staff - Adecco,A300
http://statistics.data.gov.uk/id/local-authority/00BF,London Borough of Sutton,27/08/2016,6890448,460,Arianna Patrick,28919,Peoples Services Directorate,Agency Staff - Adecco,A300
http://statistics.data.gov.uk/id/local-authority/00BF,London Borough of Sutton,11/08/2016,4980161,"12,000.00",Artemis Support Limited,28947,Peoples Services Directorate,Residential Care-Children,G330
http://statistics.data.gov.uk/id/local-authority/00BF,London Borough of Sutton,01/05/2016,4971812,"1,049.97",Ashbrook House Ltd,23499,Peoples Services Directorate,Supported Living - Ext Provider,G306
http://statistics.data.gov.uk/id/local-authority/00BF,London Borough of Sutton,01/07/2016,4973043,"1,049.97",Ashbrook House Ltd,23499,Peoples Services Directorate,Supported Living - Ext Provider,G306
http://statistics.data.gov.uk/id/local-authority/00BF,London Borough of Sutton,01/08/2016,4979653,"1,049.97",Ashbrook House Ltd,23499,Peoples Services Directorate,Supported Living - Ext Provider,G306
http://statistics.data.gov.uk/id/local-authority/00BF,London Borough of Sutton,12/08/2016,4973468,"7,000.04",Ashcroft Care Services,22571,Peoples Services Directorate,Residential Care - Ext Provider,G310
http://statistics.data.gov.uk/id/local-authority/00BF,London Borough of Sutton,24/06/2016,6885748,463,Ashford & St Peters Hospitals Nhsft,26258,Peoples Services Directorate,Provider Contract Payments,F470
http://statistics.data.gov.uk/id/local-authority/00BF,London Borough of Sutton,01/05/2016,4971813,"1,470.33",Ashlong House Ltd,23101,Peoples Services Directorate,Supported Living - Ext Provider,G306
http://statistics.data.gov.uk/id/local-authority/00BF,London Borough of Sutton,01/07/2016,4973031,"1,470.33",Ashlong House Ltd,23101,Peoples Services Directorate,Supported Living - Ext Provider,G306
http://statistics.data.gov.uk/id/local-authority/00BF,London Borough of Sutton,01/06/2016,4973061,"1,422.90",Ashlong House Ltd,23101,Peoples Services Directorate,Supported Living - Ext Provider,G306
http://statistics.data.gov.uk/id/local-authority/00BF,London Borough of Sutton,01/08/2016,4979634,"1,470.33",Ashlong House Ltd,23101,Peoples Services Directorate,Supported Living - Ext Provider,G306
http://statistics.data.gov.uk/id/local-authority/00BF,London Borough of Sutton,01/08/2016,4979652,884.48,Ashlong House Ltd,23101,Peoples Services Directorate,Supported Living - Ext Provider,G306
http://statistics.data.gov.uk/id/local-authority/00BF,London Borough of Sutton,01/08/2016,4979667,"2,306.08",Ashlong House Ltd,23101,Peoples Services Directorate,Supported Living - Ext Provider,G306
http://statistics.data.gov.uk/id/local-authority/00BF,London Borough of Sutton,01/07/2016,6888153,"1,050.00",Assetgrove Lettings Ltd,28820,"Environment, Housing & Regeneration Directorate",Bed and Breakfast Accommodation,G400
http://statistics.data.gov.uk/id/local-authority/00BF,London Borough of Sutton,01/07/2016,6888154,910,Assetgrove Lettings Ltd,28820,"Environment, Housing & Regeneration Directorate",Bed and Breakfast Accommodation,G400
http://statistics.data.gov.uk/id/local-authority/00BF,London Borough of Sutton,01/07/2016,6888155,"1,050.00",Assetgrove Lettings Ltd,28820,"Environment, Housing & Regeneration Directorate",Bed and Breakfast Accommodation,G400
http://statistics.data.gov.uk/id/local-authority/00BF,London Borough of Sutton,01/07/2016,6888156,"1,050.00",Assetgrove Lettings Ltd,28820,"Environment, Housing & Regeneration Directorate",Bed and Breakfast Accommodation,G400
http://statistics.data.gov.uk/id/local-authority/00BF,London Borough of Sutton,01/07/2016,6888157,"1,050.00",Assetgrove Lettings Ltd,28820,"Environment, Housing & Regeneration Directorate",Bed and Breakfast Accommodation,G400
http://statistics.data.gov.uk/id/local-authority/00BF,London Borough of Sutton,01/07/2016,6888158,910,Assetgrove Lettings Ltd,28820,"Environment, Housing & Regeneration Directorate",Bed and Breakfast Accommodation,G400
http://statistics.data.gov.uk/id/local-authority/00BF,London Borough of Sutton,01/07/2016,6888162,684,Assetgrove Lettings Ltd,28820,"Environment, Housing & Regeneration Directorate",Bed and Breakfast Accommodation,G400
http://statistics.data.gov.uk/id/local-authority/00BF,London Borough of Sutton,01/07/2016,6888163,"1,140.00",Assetgrove Lettings Ltd,28820,"Environment, Housing & Regeneration Directorate",Bed and Breakfast Accommodation,G400
http://statistics.data.gov.uk/id/local-authority/00BF,London Borough of Sutton,01/07/2016,6888164,"1,140.00",Assetgrove Lettings Ltd,28820,"Environment, Housing & Regeneration Directorate",Bed and Breakfast Accommodation,G400
http://statistics.data.gov.uk/id/local-authority/00BF,London Borough of Sutton,01/07/2016,6888165,"1,050.00",Assetgrove Lettings Ltd,28820,"Environment, Housing & Regeneration Directorate",Bed and Breakfast Accommodation,G400
http://statistics.data.gov.uk/id/local-authority/00BF,London Borough of Sutton,01/07/2016,6888167,"1,363.00",Assetgrove Lettings Ltd,28820,"Environment, Housing & Regeneration Directorate",Bed and Breakfast Accommodation,G400
http://statistics.data.gov.uk/id/local-authority/00BF,London Borough of Sutton,01/07/2016,6888168,"1,410.00",Assetgrove Lettings Ltd,28820,"Environment, Housing & Regeneration Directorate",Bed and Breakfast Accommodation,G400
http://statistics.data.gov.uk/id/local-authority/00BF,London Borough of Sutton,01/07/2016,6888169,"1,050.00",Assetgrove Lettings Ltd,28820,"Environment, Housing & Regeneration Directorate",Bed and Breakfast Accommodation,G400
http://statistics.data.gov.uk/id/local-authority/00BF,London Borough of Sutton,29/07/2016,6888222,"1,457.00",Assetgrove Lettings Ltd,28820,"Environment, Housing & Regeneration Directorate",Bed and Breakfast Accommodation,G400
http://statistics.data.gov.uk/id/local-authority/00BF,London Borough of Sutton,29/07/2016,6888223,"1,085.00",Assetgrove Lettings Ltd,28820,"Environment, Housing & Regeneration Directorate",Bed and Breakfast Accommodation,G400
http://statistics.data.gov.uk/id/local-authority/00BF,London Borough of Sutton,29/07/2016,6888224,"1,457.00",Assetgrove Lettings Ltd,28820,"Environment, Housing & Regeneration Directorate",Bed and Breakfast Accommodation,G400
http://statistics.data.gov.uk/id/local-authority/00BF,London Borough of Sutton,29/07/2016,6888225,"1,085.00",Assetgrove Lettings Ltd,28820,"Environment, Housing & Regeneration Directorate",Bed and Breakfast Accommodation,G400
http://statistics.data.gov.uk/id/local-authority/00BF,London Borough of Sutton,29/07/2016,6888226,"1,085.00",Assetgrove Lettings Ltd,28820,"Environment, Housing & Regeneration Directorate",Bed and Breakfast Accommodation,G400
http://statistics.data.gov.uk/id/local-authority/00BF,London Borough of Sutton,29/07/2016,6888228,"1,085.00",Assetgrove Lettings Ltd,28820,"Environment, Housing & Regeneration Directorate",Bed and Breakfast Accommodation,G400
http://statistics.data.gov.uk/id/local-authority/00BF,London Borough of Sutton,29/07/2016,6888229,912,Assetgrove Lettings Ltd,28820,"Environment, Housing & Regeneration Directorate",Bed and Breakfast Accommodation,G400
http://statistics.data.gov.uk/id/local-authority/00BF,London Borough of Sutton,29/07/2016,6888230,"1,178.00",Assetgrove Lettings Ltd,28820,"Environment, Housing & Regeneration Directorate",Bed and Breakfast Accommodation,G400
http://statistics.data.gov.uk/id/local-authority/00BF,London Borough of Sutton,29/07/2016,6888231,"1,457.00",Assetgrove Lettings Ltd,28820,"Environment, Housing & Regeneration Directorate",Bed and Breakfast Accommodation,G400
http://statistics.data.gov.uk/id/local-authority/00BF,London Borough of Sutton,29/07/2016,6888232,"1,175.00",Assetgrove Lettings Ltd,28820,"Environment, Housing & Regeneration Directorate",Bed and Breakfast Accommodation,G400
http://statistics.data.gov.uk/id/local-authority/00BF,London Borough of Sutton,29/07/2016,6888233,"1,085.00",Assetgrove Lettings Ltd,28820,"Environment, Housing & Regeneration Directorate",Bed and Breakfast Accommodation,G400
http://statistics.data.gov.uk/id/local-authority/00BF,London Borough of Sutton,29/07/2016,6888236,"1,619.75",Assetgrove Lettings Ltd,28820,"Environment, Housing & Regeneration Directorate",Bed and Breakfast Accommodation,G400
http://statistics.data.gov.uk/id/local-authority/00BF,London Borough of Sutton,29/07/2016,6888237,"1,085.00",Assetgrove Lettings Ltd,28820,"Environment, Housing & Regeneration Directorate",Bed and Breakfast Accommodation,G400
http://statistics.data.gov.uk/id/local-authority/00BF,London Borough of Sutton,29/07/2016,6888238,"1,457.00",Assetgrove Lettings Ltd,28820,"Environment, Housing & Regeneration Directorate",Bed and Breakfast Accommodation,G400
http://statistics.data.gov.uk/id/local-authority/00BF,London Borough of Sutton,29/07/2016,6888240,"1,457.00",Assetgrove Lettings Ltd,28820,"Environment, Housing & Regeneration Directorate",Bed and Breakfast Accommodation,G400
http://statistics.data.gov.uk/id/local-authority/00BF,London Borough of Sutton,29/07/2016,6888241,"1,085.00",Assetgrove Lettings Ltd,28820,"Environment, Housing & Regeneration Directorate",Bed and Breakfast Accommodation,G400
http://statistics.data.gov.uk/id/local-authority/00BF,London Borough of Sutton,29/07/2016,6888242,"1,085.00",Assetgrove Lettings Ltd,28820,"Environment, Housing & Regeneration Directorate",Bed and Breakfast Accommodation,G400
http://statistics.data.gov.uk/id/local-authority/00BF,London Borough of Sutton,29/07/2016,6888243,"1,457.00",Assetgrove Lettings Ltd,28820,"Environment, Housing & Regeneration Directorate",Bed and Breakfast Accommodation,G400
http://statistics.data.gov.uk/id/local-authority/00BF,London Borough of Sutton,29/07/2016,6888244,"1,457.00",Assetgrove Lettings Ltd,28820,"Environment, Housing & Regeneration Directorate",Bed and Breakfast Accommodation,G400
http://statistics.data.gov.uk/id/local-authority/00BF,London Borough of Sutton,29/07/2016,6888245,"1,395.00",Assetgrove Lettings Ltd,28820,"Environment, Housing & Regeneration Directorate",Bed and Breakfast Accommodation,G400
http://statistics.data.gov.uk/id/local-authority/00BF,London Borough of Sutton,29/07/2016,6888252,720,Assetgrove Lettings Ltd,28820,"Environment, Housing & Regeneration Directorate",Bed and Breakfast Accommodation,G400
http://statistics.data.gov.uk/id/local-authority/00BF,London Borough of Sutton,29/07/2016,6888253,806,Assetgrove Lettings Ltd,28820,"Environment, Housing & Regeneration Directorate",Bed and Breakfast Accommodation,G400
http://statistics.data.gov.uk/id/local-authority/00BF,London Borough of Sutton,29/07/2016,6888254,840,Assetgrove Lettings Ltd,28820,"Environment, Housing & Regeneration Directorate",Bed and Breakfast Accommodation,G400
http://statistics.data.gov.uk/id/local-authority/00BF,London Borough of Sutton,29/07/2016,6888255,"1,085.00",Assetgrove Lettings Ltd,28820,"Environment, Housing & Regeneration Directorate",Bed and Breakfast Accommodation,G400
http://statistics.data.gov.uk/id/local-authority/00BF,London Borough of Sutton,29/07/2016,6888256,595,Assetgrove Lettings Ltd,28820,"Environment, Housing & Regeneration Directorate",Bed and Breakfast Accommodation,G400
http://statistics.data.gov.uk/id/local-authority/00BF,London Borough of Sutton,29/07/2016,6888257,"1,085.00",Assetgrove Lettings Ltd,28820,"Environment, Housing & Regeneration Directorate",Bed and Breakfast Accommodation,G400
http://statistics.data.gov.uk/id/local-authority/00BF,London Borough of Sutton,29/07/2016,6888258,"1,085.00",Assetgrove Lettings Ltd,28820,"Environment, Housing & Regeneration Directorate",Bed and Breakfast Accommodation,G400
http://statistics.data.gov.uk/id/local-authority/00BF,London Borough of Sutton,29/07/2016,6888259,"1,178.00",Assetgrove Lettings Ltd,28820,"Environment, Housing & Regeneration Directorate",Bed and Breakfast Accommodation,G400
http://statistics.data.gov.uk/id/local-authority/00BF,London Borough of Sutton,29/07/2016,6888260,"1,178.00",Assetgrove Lettings Ltd,28820,"Environment, Housing & Regeneration Directorate",Bed and Breakfast Accommodation,G400
http://statistics.data.gov.uk/id/local-authority/00BF,London Borough of Sutton,29/07/2016,6888262,"1,085.00",Assetgrove Lettings Ltd,28820,"Environment, Housing & Regeneration Directorate",Bed and Breakfast Accommodation,G400
http://statistics.data.gov.uk/id/local-authority/00BF,London Borough of Sutton,29/07/2016,6888263,"1,085.00",Assetgrove Lettings Ltd,28820,"Environment, Housing & Regeneration Directorate",Bed and Breakfast Accommodation,G400
http://statistics.data.gov.uk/id/local-authority/00BF,London Borough of Sutton,01/03/2016,6890362,"1,015.00",Assetgrove Lettings Ltd,28820,"Environment, Housing & Regeneration Directorate",Bed and Breakfast Accommodation,G400
http://statistics.data.gov.uk/id/local-authority/00BF,London Borough of Sutton,31/05/2016,6890367,836,Assetgrove Lettings Ltd,28820,"Environment, Housing & Regeneration Directorate",Bed and Breakfast Accommodation,G400
http://statistics.data.gov.uk/id/local-authority/00BF,London Borough of Sutton,12/08/2016,4973779,"3,639.72",Assurance Care Services Ltd T/A Christ the King Residential Care Homes,27458,Peoples Services Directorate,Residential Care - Ext Provider,G310
http://statistics.data.gov.uk/id/local-authority/00BF,London Borough of Sutton,31/07/2016,6888456,"4,295.03",ATS Euromaster Ltd,23885,"Environment, Housing & Regeneration Directorate",Tyre Expenditure,E015
http://statistics.data.gov.uk/id/local-authority/00BF,London Borough of Sutton,12/08/2016,4973447,"4,580.72",Autism & Aspergers Care Services,10327,Peoples Services Directorate,Residential Care - Ext Provider,G310
http://statistics.data.gov.uk/id/local-authority/00BF,London Borough of Sutton,12/08/2016,4973414,"2,805.00",Avante Ltd (Weybourne),24009,Peoples Services Directorate,Residential Care - Ext Provider,G310
http://statistics.data.gov.uk/id/local-authority/00BF,London Borough of Sutton,01/08/2016,6889518,"11,812.50",Avenue Primary Acadamy,26025,Peoples Services Directorate,Payments to Schools,G065
http://statistics.data.gov.uk/id/local-authority/00BF,London Borough of Sutton,12/08/2016,4973473,"2,432.00",Avery Homes (Nelson) Ltd - Adelaide Care Centre,25868,Peoples Services Directorate,Nursing Care - Ext Provider,G311
http://statistics.data.gov.uk/id/local-authority/00BF,London Borough of Sutton,12/08/2016,4973473,"2,520.00",Avery Homes (Nelson) Ltd - Adelaide Care Centre,25868,Peoples Services Directorate,One to One Care,G335
http://statistics.data.gov.uk/id/local-authority/00BF,London Borough of Sutton,03/08/2016,6888541,"17,000.00",Axiom Traffic Ltd,23141,"Environment, Housing & Regeneration Directorate",Surveys & Analysis,Y685
http://statistics.data.gov.uk/id/local-authority/00BF,London Borough of Sutton,31/05/2016,4973482,"3,648.00",Balcombe Care Homes Ltd,10367,Peoples Services Directorate,Nursing Care - Ext Provider,G311
http://statistics.data.gov.uk/id/local-authority/00BF,London Borough of Sutton,30/04/2016,4973483,"3,648.00",Balcombe Care Homes Ltd,10367,Peoples Services Directorate,Nursing Care - Ext Provider,G311
http://statistics.data.gov.uk/id/local-authority/00BF,London Borough of Sutton,12/08/2016,4973512,"3,200.00",Balcombe Care Homes Ltd,10367,Peoples Services Directorate,Nursing Care - Ext Provider,G311
http://statistics.data.gov.uk/id/local-authority/00BF,London Borough of Sutton,12/08/2016,4973836,"3,200.00",Balcombe Care Homes Ltd,10367,Peoples Services Directorate,Nursing Care - Ext Provider,G311
http://statistics.data.gov.uk/id/local-authority/00BF,London Borough of Sutton,24/08/2016,6890245,"129,064.55",Balfour Beatty Group Ltd t/a Balfour Beatty Regional construction ltd,97696,Peoples Services Directorate,Building Works -Main Contractor,Y350
http://statistics.data.gov.uk/id/local-authority/00BF,London Borough of Sutton,12/08/2016,4973501,"4,780.00",Barchester Healthcare (Epsom Beaumont Care Home),19157,Peoples Services Directorate,Nursing Care - Ext Provider,G311
http://statistics.data.gov.uk/id/local-authority/00BF,London Borough of Sutton,12/08/2016,4973436,"1,996.00",Barchester Healthcare (Tandridge Heights),16499,Peoples Services Directorate,Nursing Care - Ext Provider,G311
http://statistics.data.gov.uk/id/local-authority/00BF,London Borough of Sutton,31/07/2016,6888344,"1,279.16",Barfields Property Management,10363,Peoples Services Directorate,Rent - General,D650
http://statistics.data.gov.uk/id/local-authority/00BF,London Borough of Sutton,31/05/2016,6889331,"25,000.00",Barnardo Services Limited,22180,Peoples Services Directorate,Provider Contract Payments,F470
http://statistics.data.gov.uk/id/local-authority/00BF,London Borough of Sutton,19/07/2016,4971893,462,Barnardo's,10370,Peoples Services Directorate,Provider Contract Payments,F470
http://statistics.data.gov.uk/id/local-authority/00BF,London Borough of Sutton,19/07/2016,4971894,630,Barnardo's,10370,Peoples Services Directorate,Provider Contract Payments,F470
http://statistics.data.gov.uk/id/local-authority/00BF,London Borough of Sutton,19/07/2016,4971897,460,Barnardo's,10370,Peoples Services Directorate,Provider Contract Payments,F470
http://statistics.data.gov.uk/id/local-authority/00BF,London Borough of Sutton,19/07/2016,4971921,"1,754.50",Barnardo's,10370,Peoples Services Directorate,Provider Contract Payments,F470
http://statistics.data.gov.uk/id/local-authority/00BF,London Borough of Sutton,19/07/2016,4971922,644,Barnardo's,10370,Peoples Services Directorate,Provider Contract Payments,F470
http://statistics.data.gov.uk/id/local-authority/00BF,London Borough of Sutton,19/07/2016,4971956,"1,173.00",Barnardo's,10370,Peoples Services Directorate,Provider Contract Payments,F470
http://statistics.data.gov.uk/id/local-authority/00BF,London Borough of Sutton,22/06/2016,6885820,"1,465.64",Barts Health Nhs Trust,28991,Peoples Services Directorate,Provider Contract Payments,F470
http://statistics.data.gov.uk/id/local-authority/00BF,London Borough of Sutton,12/08/2016,4973472,"2,120.00",Beaumont Lodge Ltd,16849,Peoples Services Directorate,Nursing Care - Ext Provider,G311
http://statistics.data.gov.uk/id/local-authority/00BF,London Borough of Sutton,27/06/2016,6888924,"6,150.00",Beeches Tree Care,10451,"Environment, Housing & Regeneration Directorate",Nature Conservation,G014
http://statistics.data.gov.uk/id/local-authority/00BF,London Borough of Sutton,16/08/2016,6889535,"4,500.00",Bell Philips Architects,28568,Peoples Services Directorate,External Fees  - Architects,Y100
http://statistics.data.gov.uk/id/local-authority/00BF,London Borough of Sutton,30/06/2016,6886082,"1,650.00",Belmontview House Ltd (Mrs R Mulalazi),28831,Peoples Services Directorate,C.C.A Rent & Utilities,H211
http://statistics.data.gov.uk/id/local-authority/00BF,London Borough of Sutton,15/06/2016,6886556,"1,100.00",Belmontview House Ltd (Mrs R Mulalazi),28831,Peoples Services Directorate,C.C.A Rent & Utilities,H211
http://statistics.data.gov.uk/id/local-authority/00BF,London Borough of Sutton,31/07/2016,6888325,"1,705.00",Belmontview House Ltd (Mrs R Mulalazi),28831,Peoples Services Directorate,C.C.A Rent & Utilities,H211
http://statistics.data.gov.uk/id/local-authority/00BF,London Borough of Sutton,17/08/2016,6889894,"1,705.00",Belmontview House Ltd (Mrs R Mulalazi),28831,Peoples Services Directorate,C.C.A Rent & Utilities,H211
http://statistics.data.gov.uk/id/local-authority/00BF,London Borough of Sutton,15/08/2016,6889526,"1,890.00",Bendcrete Leisure Ltd,97675,"Environment, Housing & Regeneration Directorate",Building Works -Main Contractor,Y350
http://statistics.data.gov.uk/id/local-authority/00BF,London Borough of Sutton,11/07/2016,6888828,"3,052.50",Benhill & Belmont GP Centre,15665,Peoples Services Directorate,Provider Contract Payments,F470
http://statistics.data.gov.uk/id/local-authority/00BF,London Borough of Sutton,20/07/2016,4980153,"16,740.00",Benjamin UK Ltd,23244,Peoples Services Directorate,Residential Care-Children,G330
http://statistics.data.gov.uk/id/local-authority/00BF,London Borough of Sutton,18/08/2016,6889942,678,Berkeley Catering LTD,99891,"Environment, Housing & Regeneration Directorate",Fees - Consultants (Ad Hoc),F283
http://statistics.data.gov.uk/id/local-authority/00BF,London Borough of Sutton,31/07/2016,6889147,"8,352.00",Bestcourt UK Ltd,10441,"Environment, Housing & Regeneration Directorate",Bed and Breakfast Accommodation,G400
http://statistics.data.gov.uk/id/local-authority/00BF,London Borough of Sutton,12/08/2016,4973502,"3,400.00",Beverley Lodge Nursing Home,10434,Peoples Services Directorate,Nursing Care - Ext Provider,G311
http://statistics.data.gov.uk/id/local-authority/00BF,London Borough of Sutton,12/08/2016,4973571,"2,019.96",Beverley Lodge Nursing Home,10434,Peoples Services Directorate,Nursing Care - Ext Provider,G311
http://statistics.data.gov.uk/id/local-authority/00BF,London Borough of Sutton,12/08/2016,4973576,"1,979.48",Beverley Lodge Nursing Home,10434,Peoples Services Directorate,Nursing Care - Ext Provider,G311
http://statistics.data.gov.uk/id/local-authority/00BF,London Borough of Sutton,12/08/2016,4973609,"2,459.04",Beverley Lodge Nursing Home,10434,Peoples Services Directorate,Nursing Care - Ext Provider,G311
http://statistics.data.gov.uk/id/local-authority/00BF,London Borough of Sutton,12/08/2016,4973714,"2,462.44",Beverley Lodge Nursing Home,10434,Peoples Services Directorate,Nursing Care - Ext Provider,G311
http://statistics.data.gov.uk/id/local-authority/00BF,London Borough of Sutton,12/08/2016,4973738,"2,226.40",Beverley Lodge Nursing Home,10434,Peoples Services Directorate,Nursing Care - Ext Provider,G311
http://statistics.data.gov.uk/id/local-authority/00BF,London Borough of Sutton,12/08/2016,4973830,"3,200.00",Beverley Lodge Nursing Home,10434,Peoples Services Directorate,Nursing Care - Ext Provider,G311
http://statistics.data.gov.uk/id/local-authority/00BF,London Borough of Sutton,12/08/2016,4973839,"2,800.00",Beverley Lodge Nursing Home,10434,Peoples Services Directorate,Nursing Care - Ext Provider,G311
http://statistics.data.gov.uk/id/local-authority/00BF,London Borough of Sutton,10/08/2016,6889292,445.44,Bibliotheca Ltd,28968,Peoples Services Directorate,Stationery,F220
http://statistics.data.gov.uk/id/local-authority/00BF,London Borough of Sutton,25/07/2016,6889476,"7,399.98",Blakedown Landscapes (Se) Ltd,97652,"Environment, Housing & Regeneration Directorate",Building Works -Main Contractor,Y350
http://statistics.data.gov.uk/id/local-authority/00BF,London Borough of Sutton,25/07/2016,6889476,"7,399.98",Blakedown Landscapes (Se) Ltd,97652,"Environment, Housing & Regeneration Directorate",Building Works -Main Contractor,Y350
http://statistics.data.gov.uk/id/local-authority/00BF,London Borough of Sutton,01/07/2016,1222323,"11,950.00",Blossom House Lower School,10507,Peoples Services Directorate,Independent Schools,G325
http://statistics.data.gov.uk/id/local-authority/00BF,London Borough of Sutton,01/07/2016,1222324,"12,199.77",Blossom House Lower School,10507,Peoples Services Directorate,Independent Schools,G325
http://statistics.data.gov.uk/id/local-authority/00BF,London Borough of Sutton,01/07/2016,1222325,"10,783.08",Blossom House Lower School,10507,Peoples Services Directorate,Independent Schools,G325
http://statistics.data.gov.uk/id/local-authority/00BF,London Borough of Sutton,01/07/2016,1222326,"11,008.80",Blossom House Lower School,10507,Peoples Services Directorate,Independent Schools,G325
http://statistics.data.gov.uk/id/local-authority/00BF,London Borough of Sutton,01/07/2016,1222327,"10,783.08",Blossom House Lower School,10507,Peoples Services Directorate,Independent Schools,G325
http://statistics.data.gov.uk/id/local-authority/00BF,London Borough of Sutton,01/07/2016,1222328,"11,008.08",Blossom House Lower School,10507,Peoples Services Directorate,Independent Schools,G325
http://statistics.data.gov.uk/id/local-authority/00BF,London Borough of Sutton,01/07/2016,1222329,"10,783.08",Blossom House Lower School,10507,Peoples Services Directorate,Independent Schools,G325
http://statistics.data.gov.uk/id/local-authority/00BF,London Borough of Sutton,01/07/2016,1222330,"11,008.80",Blossom House Lower School,10507,Peoples Services Directorate,Independent Schools,G325
http://statistics.data.gov.uk/id/local-authority/00BF,London Borough of Sutton,01/07/2016,1222331,"12,199.77",Blossom House Lower School,10507,Peoples Services Directorate,Independent Schools,G325
http://statistics.data.gov.uk/id/local-authority/00BF,London Borough of Sutton,01/07/2016,1222332,"12,199.77",Blossom House Lower School,10507,Peoples Services Directorate,Independent Schools,G325
http://statistics.data.gov.uk/id/local-authority/00BF,London Borough of Sutton,01/07/2016,1222333,"10,783.08",Blossom House Lower School,10507,Peoples Services Directorate,Independent Schools,G325
http://statistics.data.gov.uk/id/local-authority/00BF,London Borough of Sutton,01/07/2016,1222334,"11,008.80",Blossom House Lower School,10507,Peoples Services Directorate,Independent Schools,G325
http://statistics.data.gov.uk/id/local-authority/00BF,London Borough of Sutton,01/07/2016,1222335,"12,199.77",Blossom House Lower School,10507,Peoples Services Directorate,Independent Schools,G325
http://statistics.data.gov.uk/id/local-authority/00BF,London Borough of Sutton,01/07/2016,1222336,"11,008.80",Blossom House Lower School,10507,Peoples Services Directorate,Independent Schools,G325
http://statistics.data.gov.uk/id/local-authority/00BF,London Borough of Sutton,01/07/2016,1222337,"11,008.80",Blossom House Lower School,10507,Peoples Services Directorate,Independent Schools,G325
http://statistics.data.gov.uk/id/local-authority/00BF,London Borough of Sutton,24/06/2016,6886298,"8,000.00",Boyer Planning Ltd,25889,"Environment, Housing & Regeneration Directorate",Fees - Consultants (Ad Hoc),F283
http://statistics.data.gov.uk/id/local-authority/00BF,London Borough of Sutton,24/06/2016,6888346,"6,129.16",Boyer Planning Ltd,25889,"Environment, Housing & Regeneration Directorate",External Fees  - Other,Y130
http://statistics.data.gov.uk/id/local-authority/00BF,London Borough of Sutton,27/05/2016,6888347,"1,320.00",Boyer Planning Ltd,25889,"Environment, Housing & Regeneration Directorate",External Fees  - Other,Y130
http://statistics.data.gov.uk/id/local-authority/00BF,London Borough of Sutton,12/08/2016,4973487,"3,400.00",Bridge House Care Centre,10620,Peoples Services Directorate,Nursing Care - Ext Provider,G311
http://statistics.data.gov.uk/id/local-authority/00BF,London Borough of Sutton,12/08/2016,4973509,"3,200.00",Bridge House Care Centre,10620,Peoples Services Directorate,Nursing Care - Ext Provider,G311
http://statistics.data.gov.uk/id/local-authority/00BF,London Borough of Sutton,12/08/2016,4973513,"3,200.00",Bridge House Care Centre,10620,Peoples Services Directorate,Nursing Care - Ext Provider,G311
http://statistics.data.gov.uk/id/local-authority/00BF,London Borough of Sutton,12/08/2016,4973618,"3,000.00",Bridge House Care Centre,10620,Peoples Services Directorate,Nursing Care - Ext Provider,G311
http://statistics.data.gov.uk/id/local-authority/00BF,London Borough of Sutton,12/08/2016,4973622,"2,005.84",Bridge House Care Centre,10620,Peoples Services Directorate,Nursing Care - Ext Provider,G311
http://statistics.data.gov.uk/id/local-authority/00BF,London Borough of Sutton,12/08/2016,4973674,"2,034.96",Bridge House Care Centre,10620,Peoples Services Directorate,Nursing Care - Ext Provider,G311
http://statistics.data.gov.uk/id/local-authority/00BF,London Borough of Sutton,12/08/2016,4973681,"2,552.00",Bridge House Care Centre,10620,Peoples Services Directorate,Nursing Care - Ext Provider,G311
http://statistics.data.gov.uk/id/local-authority/00BF,London Borough of Sutton,12/08/2016,4973727,"1,996.00",Bridge House Care Centre,10620,Peoples Services Directorate,Nursing Care - Ext Provider,G311
http://statistics.data.gov.uk/id/local-authority/00BF,London Borough of Sutton,12/08/2016,4973753,"1,942.48",Bridge House Care Centre,10620,Peoples Services Directorate,Nursing Care - Ext Provider,G311
http://statistics.data.gov.uk/id/local-authority/00BF,London Borough of Sutton,12/08/2016,4973792,"2,033.92",Bridge House Care Centre,10620,Peoples Services Directorate,Nursing Care - Ext Provider,G311
http://statistics.data.gov.uk/id/local-authority/00BF,London Borough of Sutton,12/08/2016,4973802,"4,544.00",Bridge House Care Centre,10620,Peoples Services Directorate,Nursing Care - 3rd party top up payment,G360
http://statistics.data.gov.uk/id/local-authority/00BF,London Borough of Sutton,12/08/2016,4973808,"2,742.86",Bridge House Care Centre,10620,Peoples Services Directorate,Nursing Care - Ext Provider,G311
http://statistics.data.gov.uk/id/local-authority/00BF,London Borough of Sutton,12/08/2016,4973817,"3,400.00",Bridge House Care Centre,10620,Peoples Services Directorate,Nursing Care - Ext Provider,G311
http://statistics.data.gov.uk/id/local-authority/00BF,London Borough of Sutton,12/08/2016,4973864,"3,475.36",Bridge House Care Centre,10620,Peoples Services Directorate,Nursing Care - Ext Provider,G311
http://statistics.data.gov.uk/id/local-authority/00BF,London Borough of Sutton,12/08/2016,4973687,"2,439.36",British Home & Hospital For Incurables,10589,Peoples Services Directorate,Nursing Care - Ext Provider,G311
http://statistics.data.gov.uk/id/local-authority/00BF,London Borough of Sutton,12/08/2016,4973688,"2,439.36",British Home & Hospital For Incurables,10589,Peoples Services Directorate,Nursing Care - Ext Provider,G311
http://statistics.data.gov.uk/id/local-authority/00BF,London Borough of Sutton,12/08/2016,4973759,"2,710.40",British Home & Hospital For Incurables,10589,Peoples Services Directorate,Nursing Care - Ext Provider,G311
http://statistics.data.gov.uk/id/local-authority/00BF,London Borough of Sutton,12/08/2016,4973574,"2,444.00",Broadlands Nursing Home,10586,Peoples Services Directorate,Nursing Care - Ext Provider,G311
http://statistics.data.gov.uk/id/local-authority/00BF,London Borough of Sutton,12/08/2016,4973577,"1,835.60",Broadlands Nursing Home,10586,Peoples Services Directorate,Nursing Care - Ext Provider,G311
http://statistics.data.gov.uk/id/local-authority/00BF,London Borough of Sutton,12/08/2016,4973761,"3,277.16",Broadlands Nursing Home,10586,Peoples Services Directorate,Nursing Care - Ext Provider,G311
http://statistics.data.gov.uk/id/local-authority/00BF,London Borough of Sutton,12/08/2016,4973764,"2,088.64",Broadlands Nursing Home,10586,Peoples Services Directorate,Nursing Care - Ext Provider,G311
http://statistics.data.gov.uk/id/local-authority/00BF,London Borough of Sutton,12/08/2016,4973784,"2,019.96",Broadlands Nursing Home,10586,Peoples Services Directorate,Nursing Care - Ext Provider,G311
http://statistics.data.gov.uk/id/local-authority/00BF,London Borough of Sutton,12/08/2016,4973619,"2,279.56",Brook Care Homes (BH),10582,Peoples Services Directorate,Residential Care - Ext Provider,G310
http://statistics.data.gov.uk/id/local-authority/00BF,London Borough of Sutton,12/08/2016,4973636,"3,694.60",Brook Care Homes (BH),10582,Peoples Services Directorate,Residential Care - Ext Provider,G310
http://statistics.data.gov.uk/id/local-authority/00BF,London Borough of Sutton,12/08/2016,4973642,"1,924.40",Brook Care Homes (BH),10582,Peoples Services Directorate,Residential Care - Ext Provider,G310
http://statistics.data.gov.uk/id/local-authority/00BF,London Borough of Sutton,12/08/2016,4973645,"6,090.00",Brook Care Homes (BH),10582,Peoples Services Directorate,Residential Care - Ext Provider,G310
http://statistics.data.gov.uk/id/local-authority/00BF,London Borough of Sutton,12/08/2016,4973647,"4,222.40",Brook Care Homes (BH),10582,Peoples Services Directorate,Residential Care - Ext Provider,G310
http://statistics.data.gov.uk/id/local-authority/00BF,London Borough of Sutton,12/08/2016,4973683,"3,150.56",Brook Care Homes (BH),10582,Peoples Services Directorate,Residential Care - Ext Provider,G310
http://statistics.data.gov.uk/id/local-authority/00BF,London Borough of Sutton,12/08/2016,4973710,"4,400.92",Brook Care Homes (BH),10582,Peoples Services Directorate,Residential Care - Ext Provider,G310
http://statistics.data.gov.uk/id/local-authority/00BF,London Borough of Sutton,12/08/2016,4973725,"2,639.00",Brook Care Homes (BH),10582,Peoples Services Directorate,Residential Care - Ext Provider,G310
http://statistics.data.gov.uk/id/local-authority/00BF,London Borough of Sutton,12/08/2016,4973790,"2,242.72",Brook Care Homes (BH),10582,Peoples Services Directorate,Residential Care - Ext Provider,G310
http://statistics.data.gov.uk/id/local-authority/00BF,London Borough of Sutton,12/08/2016,6889381,"-30,669.80",Brook Care Homes (BH),10582,Peoples Services Directorate,Client Cont-Resid Independent,S793
http://statistics.data.gov.uk/id/local-authority/00BF,London Borough of Sutton,29/07/2016,6888195,450,Redacted,99375,Peoples Services Directorate,Personal Requisites,F106
http://statistics.data.gov.uk/id/local-authority/00BF,London Borough of Sutton,13/05/2016,6889372,"1,115.00",Bruce Holroyd Associates,26196,Peoples Services Directorate,Personal Requisites,F106
http://statistics.data.gov.uk/id/local-authority/00BF,London Borough of Sutton,29/07/2016,1222525,"2,743.00",Brunswick Cars 9761/1961276/Loc09,10611,Peoples Services Directorate,Hired Peoples Transport (Children),E072
http://statistics.data.gov.uk/id/local-authority/00BF,London Borough of Sutton,29/07/2016,1222526,"3,667.50",Brunswick Cars 9761/1961276/Loc09,10611,Peoples Services Directorate,Hired Peoples Transport (Children),E072
http://statistics.data.gov.uk/id/local-authority/00BF,London Borough of Sutton,29/07/2016,1222527,"5,408.00",Brunswick Cars 9761/1961276/Loc09,10611,Peoples Services Directorate,Hired Peoples Transport (Children),E072
http://statistics.data.gov.uk/id/local-authority/00BF,London Borough of Sutton,29/07/2016,1222528,"2,002.00",Brunswick Cars 9761/1961276/Loc09,10611,Peoples Services Directorate,Hired Peoples Transport (Children),E072
http://statistics.data.gov.uk/id/local-authority/00BF,London Borough of Sutton,29/07/2016,1222529,"2,450.00",Brunswick Cars 9761/1961276/Loc09,10611,Peoples Services Directorate,Hired Peoples Transport (Children),E072
http://statistics.data.gov.uk/id/local-authority/00BF,London Borough of Sutton,29/07/2016,1222530,"4,432.50",Brunswick Cars 9761/1961276/Loc09,10611,Peoples Services Directorate,Hired Peoples Transport (Children),E072
http://statistics.data.gov.uk/id/local-authority/00BF,London Borough of Sutton,29/07/2016,1222532,"1,281.50",Brunswick Cars 9761/1961276/Loc09,10611,Peoples Services Directorate,Hired Peoples Transport (Children),E072
http://statistics.data.gov.uk/id/local-authority/00BF,London Borough of Sutton,29/07/2016,1222533,"1,708.00",Brunswick Cars 9761/1961276/Loc09,10611,Peoples Services Directorate,Hired Peoples Transport (Children),E072
http://statistics.data.gov.uk/id/local-authority/00BF,London Borough of Sutton,29/07/2016,1222534,"3,780.00",Brunswick Cars 9761/1961276/Loc09,10611,Peoples Services Directorate,Hired Peoples Transport (Children),E072
http://statistics.data.gov.uk/id/local-authority/00BF,London Borough of Sutton,29/07/2016,1222535,"2,835.00",Brunswick Cars 9761/1961276/Loc09,10611,Peoples Services Directorate,Hired Peoples Transport (Children),E072
http://statistics.data.gov.uk/id/local-authority/00BF,London Borough of Sutton,29/07/2016,1222536,"3,270.00",Brunswick Cars 9761/1961276/Loc09,10611,Peoples Services Directorate,Hired Peoples Transport (Children),E072
http://statistics.data.gov.uk/id/local-authority/00BF,London Borough of Sutton,29/07/2016,1222537,"5,620.00",Brunswick Cars 9761/1961276/Loc09,10611,Peoples Services Directorate,Hired Peoples Transport (Children),E072
http://statistics.data.gov.uk/id/local-authority/00BF,London Borough of Sutton,29/07/2016,1222538,"3,958.50",Brunswick Cars 9761/1961276/Loc09,10611,Peoples Services Directorate,Hired Peoples Transport (Children),E072
http://statistics.data.gov.uk/id/local-authority/00BF,London Borough of Sutton,29/07/2016,1222539,"2,805.00",Brunswick Cars 9761/1961276/Loc09,10611,Peoples Services Directorate,Hired Peoples Transport (Children),E072
http://statistics.data.gov.uk/id/local-authority/00BF,London Borough of Sutton,29/07/2016,1222540,"2,791.50",Brunswick Cars 9761/1961276/Loc09,10611,Peoples Services Directorate,Hired Peoples Transport (Children),E072
http://statistics.data.gov.uk/id/local-authority/00BF,London Borough of Sutton,29/07/2016,1222541,"3,917.00",Brunswick Cars 9761/1961276/Loc09,10611,Peoples Services Directorate,Hired Peoples Transport (Children),E072
http://statistics.data.gov.uk/id/local-authority/00BF,London Borough of Sutton,29/07/2016,1222542,"1,092.00",Brunswick Cars 9761/1961276/Loc09,10611,Peoples Services Directorate,Hired Peoples Transport (Children),E072
http://statistics.data.gov.uk/id/local-authority/00BF,London Borough of Sutton,29/07/2016,1222543,720,Brunswick Cars 9761/1961276/Loc09,10611,Peoples Services Directorate,Hired Peoples Transport (Children),E072
http://statistics.data.gov.uk/id/local-authority/00BF,London Borough of Sutton,29/07/2016,1222544,"1,155.00",Brunswick Cars 9761/1961276/Loc09,10611,Peoples Services Directorate,Hired Peoples Transport (Children),E072
http://statistics.data.gov.uk/id/local-authority/00BF,London Borough of Sutton,29/07/2016,1222545,"1,552.00",Brunswick Cars 9761/1961276/Loc09,10611,Peoples Services Directorate,Hired Peoples Transport (Children),E072
http://statistics.data.gov.uk/id/local-authority/00BF,London Borough of Sutton,29/07/2016,1222546,"2,775.50",Brunswick Cars 9761/1961276/Loc09,10611,Peoples Services Directorate,Hired Peoples Transport (Children),E072
http://statistics.data.gov.uk/id/local-authority/00BF,London Borough of Sutton,29/07/2016,1222547,"2,865.00",Brunswick Cars 9761/1961276/Loc09,10611,Peoples Services Directorate,Hired Peoples Transport (Children),E072
http://statistics.data.gov.uk/id/local-authority/00BF,London Borough of Sutton,29/07/2016,1222548,"1,001.00",Brunswick Cars 9761/1961276/Loc09,10611,Peoples Services Directorate,Hired Peoples Transport (Children),E072
http://statistics.data.gov.uk/id/local-authority/00BF,London Borough of Sutton,29/07/2016,1222549,"1,520.00",Brunswick Cars 9761/1961276/Loc09,10611,Peoples Services Directorate,Hired Peoples Transport (Children),E072
http://statistics.data.gov.uk/id/local-authority/00BF,London Borough of Sutton,29/07/2016,1222550,"2,310.00",Brunswick Cars 9761/1961276/Loc09,10611,Peoples Services Directorate,Hired Peoples Transport (Children),E072
http://statistics.data.gov.uk/id/local-authority/00BF,London Borough of Sutton,29/07/2016,1222551,"2,786.00",Brunswick Cars 9761/1961276/Loc09,10611,Peoples Services Directorate,Hired Peoples Transport (Children),E072
http://statistics.data.gov.uk/id/local-authority/00BF,London Borough of Sutton,29/07/2016,1222552,"3,194.00",Brunswick Cars 9761/1961276/Loc09,10611,Peoples Services Directorate,Hired Peoples Transport (Children),E072
http://statistics.data.gov.uk/id/local-authority/00BF,London Borough of Sutton,29/07/2016,1222553,"4,032.00",Brunswick Cars 9761/1961276/Loc09,10611,Peoples Services Directorate,Hired Peoples Transport (Children),E072
http://statistics.data.gov.uk/id/local-authority/00BF,London Borough of Sutton,29/07/2016,1222554,"2,254.00",Brunswick Cars 9761/1961276/Loc09,10611,Peoples Services Directorate,Hired Peoples Transport (Children),E072
http://statistics.data.gov.uk/id/local-authority/00BF,London Borough of Sutton,29/07/2016,1222555,"1,320.00",Brunswick Cars 9761/1961276/Loc09,10611,Peoples Services Directorate,Hired Peoples Transport (Children),E072
http://statistics.data.gov.uk/id/local-authority/00BF,London Borough of Sutton,29/07/2016,1222556,"1,664.00",Brunswick Cars 9761/1961276/Loc09,10611,Peoples Services Directorate,Hired Peoples Transport (Children),E072
http://statistics.data.gov.uk/id/local-authority/00BF,London Borough of Sutton,29/07/2016,1222557,"1,650.00",Brunswick Cars 9761/1961276/Loc09,10611,Peoples Services Directorate,Hired Peoples Transport (Children),E072
http://statistics.data.gov.uk/id/local-authority/00BF,London Borough of Sutton,29/07/2016,1222558,"2,562.00",Brunswick Cars 9761/1961276/Loc09,10611,Peoples Services Directorate,Hired Peoples Transport (Children),E072
http://statistics.data.gov.uk/id/local-authority/00BF,London Borough of Sutton,29/07/2016,1222559,"1,064.00",Brunswick Cars 9761/1961276/Loc09,10611,Peoples Services Directorate,Hired Peoples Transport (Children),E072
http://statistics.data.gov.uk/id/local-authority/00BF,London Borough of Sutton,29/07/2016,1222560,"1,310.00",Brunswick Cars 9761/1961276/Loc09,10611,Peoples Services Directorate,Hired Peoples Transport (Children),E072
http://statistics.data.gov.uk/id/local-authority/00BF,London Borough of Sutton,29/07/2016,1222561,"4,809.00",Brunswick Cars 9761/1961276/Loc09,10611,Peoples Services Directorate,Hired Peoples Transport (Children),E072
http://statistics.data.gov.uk/id/local-authority/00BF,London Borough of Sutton,29/07/2016,1222562,556,Brunswick Cars 9761/1961276/Loc09,10611,Peoples Services Directorate,Hired Peoples Transport (Children),E072
http://statistics.data.gov.uk/id/local-authority/00BF,London Borough of Sutton,29/07/2016,1222563,"1,575.00",Brunswick Cars 9761/1961276/Loc09,10611,Peoples Services Directorate,Hired Peoples Transport (Children),E072
http://statistics.data.gov.uk/id/local-authority/00BF,London Borough of Sutton,29/07/2016,1222564,"1,298.00",Brunswick Cars 9761/1961276/Loc09,10611,Peoples Services Directorate,Hired Peoples Transport (Children),E072
http://statistics.data.gov.uk/id/local-authority/00BF,London Borough of Sutton,29/07/2016,1222566,"4,500.00",Brunswick Cars 9761/1961276/Loc09,10611,Peoples Services Directorate,Hired Peoples Transport (Children),E072
http://statistics.data.gov.uk/id/local-authority/00BF,London Borough of Sutton,29/07/2016,1222567,"1,840.00",Brunswick Cars 9761/1961276/Loc09,10611,Peoples Services Directorate,Hired Peoples Transport (Children),E072
http://statistics.data.gov.uk/id/local-authority/00BF,London Borough of Sutton,29/07/2016,1222568,"3,456.00",Brunswick Cars 9761/1961276/Loc09,10611,Peoples Services Directorate,Hired Peoples Transport (Children),E072
http://statistics.data.gov.uk/id/local-authority/00BF,London Borough of Sutton,29/07/2016,1222571,"1,650.00",Brunswick Cars 9761/1961276/Loc09,10611,Peoples Services Directorate,Hired Peoples Transport (Children),E072
http://statistics.data.gov.uk/id/local-authority/00BF,London Borough of Sutton,29/07/2016,1222572,"3,163.00",Brunswick Cars 9761/1961276/Loc09,10611,Peoples Services Directorate,Hired Peoples Transport (Children),E072
http://statistics.data.gov.uk/id/local-authority/00BF,London Borough of Sutton,29/07/2016,1222573,870,Brunswick Cars 9761/1961276/Loc09,10611,Peoples Services Directorate,Hired Peoples Transport (Children),E072
http://statistics.data.gov.uk/id/local-authority/00BF,London Borough of Sutton,01/08/2016,4980150,"12,051.74",Bryn Melyn Care Ltd,27547,Peoples Services Directorate,Residential Care-Children,G330
http://statistics.data.gov.uk/id/local-authority/00BF,London Borough of Sutton,01/08/2016,4980150,"8,727.12",Bryn Melyn Care Ltd,27547,Peoples Services Directorate,Independent Schools,G325
http://statistics.data.gov.uk/id/local-authority/00BF,London Borough of Sutton,02/08/2016,6888998,"67,819.00",Built Off-Site Ltd,28510,Peoples Services Directorate,Building Works -Main Contractor,Y350
http://statistics.data.gov.uk/id/local-authority/00BF,London Borough of Sutton,31/07/2016,6890212,825,Buller Hotel,23493,"Environment, Housing & Regeneration Directorate",Bed and Breakfast Accommodation,G400
http://statistics.data.gov.uk/id/local-authority/00BF,London Borough of Sutton,31/07/2016,6890213,693,Buller Hotel,23493,"Environment, Housing & Regeneration Directorate",Bed and Breakfast Accommodation,G400
http://statistics.data.gov.uk/id/local-authority/00BF,London Borough of Sutton,30/06/2016,6890218,957,Buller Hotel,23493,"Environment, Housing & Regeneration Directorate",Bed and Breakfast Accommodation,G400
http://statistics.data.gov.uk/id/local-authority/00BF,London Borough of Sutton,31/07/2016,6890219,756,Buller Hotel,23493,"Environment, Housing & Regeneration Directorate",Bed and Breakfast Accommodation,G400
http://statistics.data.gov.uk/id/local-authority/00BF,London Borough of Sutton,31/07/2016,6890220,"1,122.00",Buller Hotel,23493,"Environment, Housing & Regeneration Directorate",Bed and Breakfast Accommodation,G400
http://statistics.data.gov.uk/id/local-authority/00BF,London Borough of Sutton,31/07/2016,6890222,868,Buller Hotel,23493,"Environment, Housing & Regeneration Directorate",Bed and Breakfast Accommodation,G400
http://statistics.data.gov.uk/id/local-authority/00BF,London Borough of Sutton,31/07/2016,6890223,"1,023.00",Buller Hotel,23493,"Environment, Housing & Regeneration Directorate",Bed and Breakfast Accommodation,G400
http://statistics.data.gov.uk/id/local-authority/00BF,London Borough of Sutton,31/07/2016,6890225,693,Buller Hotel,23493,"Environment, Housing & Regeneration Directorate",Bed and Breakfast Accommodation,G400
http://statistics.data.gov.uk/id/local-authority/00BF,London Borough of Sutton,30/06/2016,6890227,495,Buller Hotel,23493,"Environment, Housing & Regeneration Directorate",Bed and Breakfast Accommodation,G400
http://statistics.data.gov.uk/id/local-authority/00BF,London Borough of Sutton,30/06/2016,6890231,594,Buller Hotel,23493,"Environment, Housing & Regeneration Directorate",Bed and Breakfast Accommodation,G400
http://statistics.data.gov.uk/id/local-authority/00BF,London Borough of Sutton,30/06/2016,6890232,495,Buller Hotel,23493,"Environment, Housing & Regeneration Directorate",Bed and Breakfast Accommodation,G400
http://statistics.data.gov.uk/id/local-authority/00BF,London Borough of Sutton,30/06/2016,6890233,990,Buller Hotel,23493,"Environment, Housing & Regeneration Directorate",Bed and Breakfast Accommodation,G400
http://statistics.data.gov.uk/id/local-authority/00BF,London Borough of Sutton,30/06/2016,6890264,957,Buller Hotel,23493,"Environment, Housing & Regeneration Directorate",Bed and Breakfast Accommodation,G400
http://statistics.data.gov.uk/id/local-authority/00BF,London Borough of Sutton,30/06/2016,6890265,462,Buller Hotel,23493,"Environment, Housing & Regeneration Directorate",Bed and Breakfast Accommodation,G400
http://statistics.data.gov.uk/id/local-authority/00BF,London Borough of Sutton,30/06/2016,6890266,700,Buller Hotel,23493,"Environment, Housing & Regeneration Directorate",Bed and Breakfast Accommodation,G400
http://statistics.data.gov.uk/id/local-authority/00BF,London Borough of Sutton,12/08/2016,4973635,"1,868.00",Bupa Care Services,10175,Peoples Services Directorate,Residential Care - Ext Provider,G310
http://statistics.data.gov.uk/id/local-authority/00BF,London Borough of Sutton,12/08/2016,4973731,"1,971.80",Bupa Care Services,10175,Peoples Services Directorate,Nursing Care - Ext Provider,G311
http://statistics.data.gov.uk/id/local-authority/00BF,London Borough of Sutton,12/08/2016,4973461,"2,439.56",Burlington Nursing Home Ltd,19236,Peoples Services Directorate,Nursing Care - Ext Provider,G311
http://statistics.data.gov.uk/id/local-authority/00BF,London Borough of Sutton,12/08/2016,4973480,"7,824.28",Butterfly's Care Homes Ltd,28860,Peoples Services Directorate,Residential Care - Ext Provider,G310
http://statistics.data.gov.uk/id/local-authority/00BF,London Borough of Sutton,13/07/2016,6887053,"2,000.00",C G Dyke T/A Stripe Social Work Consulting Ltd,28543,Peoples Services Directorate,Children Assessments,G329
http://statistics.data.gov.uk/id/local-authority/00BF,London Borough of Sutton,08/08/2016,6889039,504,Caesar Investments UK Ltd,24923,"Environment, Housing & Regeneration Directorate",Bed and Breakfast Accommodation,G400
http://statistics.data.gov.uk/id/local-authority/00BF,London Borough of Sutton,01/08/2016,6889040,504,Caesar Investments UK Ltd,24923,"Environment, Housing & Regeneration Directorate",Bed and Breakfast Accommodation,G400
http://statistics.data.gov.uk/id/local-authority/00BF,London Borough of Sutton,15/08/2016,6890269,504,Caesar Investments UK Ltd,24923,"Environment, Housing & Regeneration Directorate",Bed and Breakfast Accommodation,G400
http://statistics.data.gov.uk/id/local-authority/00BF,London Borough of Sutton,22/08/2016,6890270,504,Caesar Investments UK Ltd,24923,"Environment, Housing & Regeneration Directorate",Bed and Breakfast Accommodation,G400
http://statistics.data.gov.uk/id/local-authority/00BF,London Borough of Sutton,31/07/2016,4980286,668.58,Cambian Childcare Ltd,26117,Peoples Services Directorate,Residential Care-Children,G330
http://statistics.data.gov.uk/id/local-authority/00BF,London Borough of Sutton,28/06/2016,4980301,"20,371.34",Cambian Childcare Ltd,26117,Peoples Services Directorate,Residential Care-Children,G330
http://statistics.data.gov.uk/id/local-authority/00BF,London Borough of Sutton,13/03/2016,1221917,"7,281.22",Canterbury College,28717,Peoples Services Directorate,Top-up Funding,G064
http://statistics.data.gov.uk/id/local-authority/00BF,London Borough of Sutton,12/08/2016,4973774,"3,884.56",Canterbury Oast Trust,10755,Peoples Services Directorate,Residential Care - Ext Provider,G310
http://statistics.data.gov.uk/id/local-authority/00BF,London Borough of Sutton,07/04/2016,6880534,"-11,203.74",Capita Business Services Ltd,10780,Peoples Services Directorate,IT Equipment - Repair and Maintenance,F382
http://statistics.data.gov.uk/id/local-authority/00BF,London Borough of Sutton,06/07/2016,6889945,"2,235.20",Capita Property & Infrastructure Ltd,19428,HRA Directorate,Fees - Consultants (Ad Hoc),F283
http://statistics.data.gov.uk/id/local-authority/00BF,London Borough of Sutton,25/04/2016,6889547,"1,722.73",Care Connections Ltd,10798,Peoples Services Directorate,Supported Living - Ext Provider,G306
http://statistics.data.gov.uk/id/local-authority/00BF,London Borough of Sutton,15/06/2016,6889548,"1,722.73",Care Connections Ltd,10798,Peoples Services Directorate,Supported Living - Ext Provider,G306
http://statistics.data.gov.uk/id/local-authority/00BF,London Borough of Sutton,15/06/2016,6889549,697.14,Care Connections Ltd,10798,Peoples Services Directorate,Supported Living - Ext Provider,G306
http://statistics.data.gov.uk/id/local-authority/00BF,London Borough of Sutton,01/05/2016,6889550,"5,585.08",Care Connections Ltd,10798,Peoples Services Directorate,Supported Living - Ext Provider,G306
http://statistics.data.gov.uk/id/local-authority/00BF,London Borough of Sutton,01/08/2016,6889551,"5,585.08",Care Connections Ltd,10798,Peoples Services Directorate,Supported Living - Ext Provider,G306
http://statistics.data.gov.uk/id/local-authority/00BF,London Borough of Sutton,01/09/2016,6890373,"5,585.08",Care Connections Ltd,10798,Peoples Services Directorate,Supported Living - Ext Provider,G306
http://statistics.data.gov.uk/id/local-authority/00BF,London Borough of Sutton,01/04/2016,4979674,"5,486.34",Care Management Group,28952,Peoples Services Directorate,Supported Living - Ext Provider,G306
http://statistics.data.gov.uk/id/local-authority/00BF,London Borough of Sutton,17/08/2016,4979678,"1,238.85",Care Management Group,28952,Peoples Services Directorate,Supported Living - Ext Provider,G306
http://statistics.data.gov.uk/id/local-authority/00BF,London Borough of Sutton,01/03/2016,4979679,"5,309.36",Care Management Group,28952,Peoples Services Directorate,Supported Living - Ext Provider,G306
http://statistics.data.gov.uk/id/local-authority/00BF,London Borough of Sutton,01/02/2016,4979683,"5,486.34",Care Management Group,28952,Peoples Services Directorate,Supported Living - Ext Provider,G306
http://statistics.data.gov.uk/id/local-authority/00BF,London Borough of Sutton,31/07/2016,6888515,"1,807.65",Care Monitoring 2000 Ltd,20716,Peoples Services Directorate,Telephones - Other Expenses,F373
http://statistics.data.gov.uk/id/local-authority/00BF,London Borough of Sutton,12/08/2016,4973474,429.62,Care UK Homecare Ltd,10853,Peoples Services Directorate,Nursing Care - 3rd party top up payment,G360
http://statistics.data.gov.uk/id/local-authority/00BF,London Borough of Sutton,01/07/2016,4971806,"4,060.00",Care Unlimited Domcare Ltd,28906,Peoples Services Directorate,Supported Living - Ext Provider,G306
http://statistics.data.gov.uk/id/local-authority/00BF,London Borough of Sutton,01/07/2016,4971809,"4,060.00",Care Unlimited Domcare Ltd,28906,Peoples Services Directorate,Supported Living - Ext Provider,G306
http://statistics.data.gov.uk/id/local-authority/00BF,London Borough of Sutton,01/07/2016,4971810,"4,060.00",Care Unlimited Domcare Ltd,28906,Peoples Services Directorate,Supported Living - Ext Provider,G306
http://statistics.data.gov.uk/id/local-authority/00BF,London Borough of Sutton,01/07/2016,4971811,"4,060.00",Care Unlimited Domcare Ltd,28906,Peoples Services Directorate,Supported Living - Ext Provider,G306
http://statistics.data.gov.uk/id/local-authority/00BF,London Borough of Sutton,01/07/2016,4971815,"4,060.00",Care Unlimited Domcare Ltd,28906,Peoples Services Directorate,Supported Living - Ext Provider,G306
http://statistics.data.gov.uk/id/local-authority/00BF,London Borough of Sutton,01/08/2016,4973075,"4,060.00",Care Unlimited Domcare Ltd,28906,Peoples Services Directorate,Supported Living - Ext Provider,G306
http://statistics.data.gov.uk/id/local-authority/00BF,London Borough of Sutton,01/08/2016,4973077,"4,060.00",Care Unlimited Domcare Ltd,28906,Peoples Services Directorate,Supported Living - Ext Provider,G306
http://statistics.data.gov.uk/id/local-authority/00BF,London Borough of Sutton,01/08/2016,4973078,"4,060.00",Care Unlimited Domcare Ltd,28906,Peoples Services Directorate,Supported Living - Ext Provider,G306
http://statistics.data.gov.uk/id/local-authority/00BF,London Borough of Sutton,01/08/2016,4973079,"4,060.00",Care Unlimited Domcare Ltd,28906,Peoples Services Directorate,Supported Living - Ext Provider,G306
http://statistics.data.gov.uk/id/local-authority/00BF,London Borough of Sutton,01/08/2016,4973080,"4,060.00",Care Unlimited Domcare Ltd,28906,Peoples Services Directorate,Supported Living - Ext Provider,G306
http://statistics.data.gov.uk/id/local-authority/00BF,London Borough of Sutton,01/08/2016,4979633,"4,574.71",Care Unlimited Domcare Ltd,28906,Peoples Services Directorate,Supported Living - Ext Provider,G306
http://statistics.data.gov.uk/id/local-authority/00BF,London Borough of Sutton,01/08/2016,4979649,"5,239.00",Care Unlimited Domcare Ltd,28906,Peoples Services Directorate,Supported Living - Ext Provider,G306
http://statistics.data.gov.uk/id/local-authority/00BF,London Borough of Sutton,12/08/2016,4973563,"1,692.00",Care Unlimited Group Ltd,10774,Peoples Services Directorate,Interim Placements - Ext Provider,G317
http://statistics.data.gov.uk/id/local-authority/00BF,London Borough of Sutton,12/08/2016,4973762,"2,940.00",Care Unlimited Group Ltd,10774,Peoples Services Directorate,Residential Care - Ext Provider,G310
http://statistics.data.gov.uk/id/local-authority/00BF,London Borough of Sutton,12/08/2016,4973807,"1,780.00",Care Unlimited Group Ltd,10774,Peoples Services Directorate,Residential Care - Ext Provider,G310
http://statistics.data.gov.uk/id/local-authority/00BF,London Borough of Sutton,12/08/2016,4973852,"1,692.00",Care Unlimited Group Ltd,10774,Peoples Services Directorate,Residential Care - Ext Provider,G310
http://statistics.data.gov.uk/id/local-authority/00BF,London Borough of Sutton,24/07/2016,4970905,468.67,Caremark (Sutton),25541,Peoples Services Directorate,Home Care,G334
http://statistics.data.gov.uk/id/local-authority/00BF,London Borough of Sutton,24/07/2016,4971199,538.62,Caremark (Sutton),25541,Peoples Services Directorate,Home Care,G334
http://statistics.data.gov.uk/id/local-authority/00BF,London Borough of Sutton,17/07/2016,4975463,545.61,Caremark (Sutton),25541,Peoples Services Directorate,Home Care,G334
http://statistics.data.gov.uk/id/local-authority/00BF,London Borough of Sutton,31/07/2016,4975464,538.62,Caremark (Sutton),25541,Peoples Services Directorate,Home Care,G334
http://statistics.data.gov.uk/id/local-authority/00BF,London Borough of Sutton,31/07/2016,4975790,433.69,Caremark (Sutton),25541,Peoples Services Directorate,Home Care,G334
http://statistics.data.gov.uk/id/local-authority/00BF,London Borough of Sutton,07/08/2016,4975902,538.62,Caremark (Sutton),25541,Peoples Services Directorate,Home Care,G334
http://statistics.data.gov.uk/id/local-authority/00BF,London Borough of Sutton,14/08/2016,4976055,538.62,Caremark (Sutton),25541,Peoples Services Directorate,Home Care,G334
http://statistics.data.gov.uk/id/local-authority/00BF,London Borough of Sutton,21/08/2016,4981165,538.62,Caremark (Sutton),25541,Peoples Services Directorate,Home Care,G334
http://statistics.data.gov.uk/id/local-authority/00BF,London Borough of Sutton,21/08/2016,4981235,538.62,Caremark (Sutton),25541,Peoples Services Directorate,Home Care,G334
http://statistics.data.gov.uk/id/local-authority/00BF,London Borough of Sutton,01/07/2016,4973088,"2,092.50",Caretech Community Services Ltd,10791,Peoples Services Directorate,One to One Care,G335
http://statistics.data.gov.uk/id/local-authority/00BF,London Borough of Sutton,12/08/2016,4973564,"5,270.48",Caretech Community Services Ltd,10791,Peoples Services Directorate,Residential Care - Ext Provider,G310
http://statistics.data.gov.uk/id/local-authority/00BF,London Borough of Sutton,12/08/2016,4973659,"5,270.48",Caretech Community Services Ltd,10791,Peoples Services Directorate,Residential Care - Ext Provider,G310
http://statistics.data.gov.uk/id/local-authority/00BF,London Borough of Sutton,12/08/2016,4973704,"5,405.88",Caretech Community Services Ltd,10791,Peoples Services Directorate,Residential Care - Ext Provider,G310
http://statistics.data.gov.uk/id/local-authority/00BF,London Borough of Sutton,12/08/2016,4973760,"5,270.48",Caretech Community Services Ltd,10791,Peoples Services Directorate,Residential Care - Ext Provider,G310
http://statistics.data.gov.uk/id/local-authority/00BF,London Borough of Sutton,01/08/2016,4979685,"2,092.50",Caretech Community Services Ltd,10791,Peoples Services Directorate,One to One Care,G335
http://statistics.data.gov.uk/id/local-authority/00BF,London Borough of Sutton,12/08/2016,4973551,"2,654.68",Carlene House,10763,Peoples Services Directorate,Residential Care - Ext Provider,G310
http://statistics.data.gov.uk/id/local-authority/00BF,London Borough of Sutton,12/08/2016,4973682,"2,682.68",Carlene House,10763,Peoples Services Directorate,Residential Care - Ext Provider,G310
http://statistics.data.gov.uk/id/local-authority/00BF,London Borough of Sutton,12/08/2016,4973728,"2,625.28",Carlene House,10763,Peoples Services Directorate,Residential Care - Ext Provider,G310
http://statistics.data.gov.uk/id/local-authority/00BF,London Borough of Sutton,12/08/2016,4973734,"2,740.64",Carlene House,10763,Peoples Services Directorate,Residential Care - Ext Provider,G310
http://statistics.data.gov.uk/id/local-authority/00BF,London Borough of Sutton,12/08/2016,4973741,"4,440.00",Carlene House,10763,Peoples Services Directorate,Residential Care - Ext Provider,G310
http://statistics.data.gov.uk/id/local-authority/00BF,London Borough of Sutton,12/08/2016,4973751,"2,630.60",Carlene House,10763,Peoples Services Directorate,Residential Care - Ext Provider,G310
http://statistics.data.gov.uk/id/local-authority/00BF,London Borough of Sutton,12/08/2016,4973772,"2,625.28",Carlene House,10763,Peoples Services Directorate,Residential Care - Ext Provider,G310
http://statistics.data.gov.uk/id/local-authority/00BF,London Borough of Sutton,09/08/2016,6889199,"3,761.20",Carshalton Athletic FC,99891,"Environment, Housing & Regeneration Directorate",Inquiry Expenses,F301
http://statistics.data.gov.uk/id/local-authority/00BF,London Borough of Sutton,22/08/2016,4975799,881.37,Carshalton News,10752,Peoples Services Directorate,Books,F006
http://statistics.data.gov.uk/id/local-authority/00BF,London Borough of Sutton,15/08/2016,4980195,"17,614.51",Castle Homes Ltd,10759,Peoples Services Directorate,Residential Care-Children,G330
http://statistics.data.gov.uk/id/local-authority/00BF,London Borough of Sutton,15/08/2016,4980198,"15,469.13",Castle Homes Ltd,10759,Peoples Services Directorate,Residential Care-Children,G330
http://statistics.data.gov.uk/id/local-authority/00BF,London Borough of Sutton,12/08/2016,6889536,"1,055.95",Caysh Enterprise Cic,28016,Peoples Services Directorate,Approved Lodgings,H323
http://statistics.data.gov.uk/id/local-authority/00BF,London Borough of Sutton,25/08/2016,1222598,"29,666.67",Caysh Housing Project,23133,"Environment, Housing & Regeneration Directorate",Supporting People - Teenage Parent Services,H247
http://statistics.data.gov.uk/id/local-authority/00BF,London Borough of Sutton,29/07/2016,6888440,"1,184.20",Caysh Housing Project,23133,Peoples Services Directorate,Approved Lodgings,H323
http://statistics.data.gov.uk/id/local-authority/00BF,London Borough of Sutton,29/07/2016,6888457,"1,202.80",Caysh Housing Project,23133,Peoples Services Directorate,Approved Lodgings,H323
http://statistics.data.gov.uk/id/local-authority/00BF,London Borough of Sutton,29/07/2016,6888458,"1,202.80",Caysh Housing Project,23133,Peoples Services Directorate,Approved Lodgings,H323
http://statistics.data.gov.uk/id/local-authority/00BF,London Borough of Sutton,29/07/2016,6888459,"1,202.80",Caysh Housing Project,23133,Peoples Services Directorate,Approved Lodgings,H323
http://statistics.data.gov.uk/id/local-authority/00BF,London Borough of Sutton,29/07/2016,6888460,"1,184.20",Caysh Housing Project,23133,Peoples Services Directorate,Approved Lodgings,H323
http://statistics.data.gov.uk/id/local-authority/00BF,London Borough of Sutton,29/07/2016,6888461,"1,184.20",Caysh Housing Project,23133,Peoples Services Directorate,Approved Lodgings,H323
http://statistics.data.gov.uk/id/local-authority/00BF,London Borough of Sutton,29/07/2016,6888462,"1,226.36",Caysh Housing Project,23133,Peoples Services Directorate,Approved Lodgings,H323
http://statistics.data.gov.uk/id/local-authority/00BF,London Borough of Sutton,29/07/2016,6888463,"1,179.86",Caysh Housing Project,23133,Peoples Services Directorate,Approved Lodgings,H323
http://statistics.data.gov.uk/id/local-authority/00BF,London Borough of Sutton,29/07/2016,6888464,"1,179.86",Caysh Housing Project,23133,Peoples Services Directorate,Approved Lodgings,H323
http://statistics.data.gov.uk/id/local-authority/00BF,London Borough of Sutton,29/07/2016,6888465,"1,121.27",Caysh Housing Project,23133,Peoples Services Directorate,Approved Lodgings,H323
http://statistics.data.gov.uk/id/local-authority/00BF,London Borough of Sutton,29/07/2016,6888466,"1,202.80",Caysh Housing Project,23133,Peoples Services Directorate,Approved Lodgings,H323
http://statistics.data.gov.uk/id/local-authority/00BF,London Borough of Sutton,29/07/2016,6888467,"1,179.86",Caysh Housing Project,23133,Peoples Services Directorate,Approved Lodgings,H323
http://statistics.data.gov.uk/id/local-authority/00BF,London Borough of Sutton,29/07/2016,6888468,"1,202.80",Caysh Housing Project,23133,Peoples Services Directorate,Approved Lodgings,H323
http://statistics.data.gov.uk/id/local-authority/00BF,London Borough of Sutton,01/08/2016,6888834,"5,209.00","CDARS, Community Drug and Alcohol Recovery Service",11089,"Environment, Housing & Regeneration Directorate",Provider Contract Payments,F470
http://statistics.data.gov.uk/id/local-authority/00BF,London Borough of Sutton,12/08/2016,6889728,"1,540.79",Central & North West London Nhs Foundation Trust,28976,Peoples Services Directorate,Provider Contract Payments,F470
http://statistics.data.gov.uk/id/local-authority/00BF,London Borough of Sutton,04/07/2016,6888416,"2,645.40",Certas Energy T/A Emo Oils Ltd,21143,"Environment, Housing & Regeneration Directorate",Fuel Etc,E030
http://statistics.data.gov.uk/id/local-authority/00BF,London Borough of Sutton,01/07/2016,4980139,"15,057.01",Channels & Choices - Residential,25797,Peoples Services Directorate,Residential Care-Children,G330
http://statistics.data.gov.uk/id/local-authority/00BF,London Borough of Sutton,01/07/2016,4980142,"15,057.01",Channels & Choices - Residential,25797,Peoples Services Directorate,Residential Care-Children,G330
http://statistics.data.gov.uk/id/local-authority/00BF,London Borough of Sutton,12/08/2016,4973678,"9,176.88",Chatsworth Care,19984,Peoples Services Directorate,Residential Care - Ext Provider,G310
http://statistics.data.gov.uk/id/local-authority/00BF,London Borough of Sutton,12/08/2016,4973799,"6,988.00",Chatsworth Care,19984,Peoples Services Directorate,Residential Care - Ext Provider,G310
http://statistics.data.gov.uk/id/local-authority/00BF,London Borough of Sutton,12/08/2016,4973840,"8,400.00",Chatsworth Care,19984,Peoples Services Directorate,Residential Care - Ext Provider,G310
http://statistics.data.gov.uk/id/local-authority/00BF,London Borough of Sutton,05/04/2016,6889226,"2,800.00",Cheam Family Practice,10918,Peoples Services Directorate,Provider Contract Payments,F470
http://statistics.data.gov.uk/id/local-authority/00BF,London Borough of Sutton,31/07/2016,1222577,575,Cheam Station Cars,15604,Peoples Services Directorate,Hired Peoples Transport (Children),E072
http://statistics.data.gov.uk/id/local-authority/00BF,London Borough of Sutton,31/07/2016,1222578,810,Cheam Station Cars,15604,Peoples Services Directorate,Hired Peoples Transport (Children),E072
http://statistics.data.gov.uk/id/local-authority/00BF,London Borough of Sutton,31/07/2016,1222579,"1,485.00",Cheam Station Cars,15604,Peoples Services Directorate,Hired Peoples Transport (Children),E072
http://statistics.data.gov.uk/id/local-authority/00BF,London Borough of Sutton,31/07/2016,1222580,"2,550.00",Cheam Station Cars,15604,Peoples Services Directorate,Hired Peoples Transport (Children),E072
http://statistics.data.gov.uk/id/local-authority/00BF,London Borough of Sutton,31/07/2016,1222581,"4,440.00",Cheam Station Cars,15604,Peoples Services Directorate,Hired Peoples Transport (Children),E072
http://statistics.data.gov.uk/id/local-authority/00BF,London Borough of Sutton,31/07/2016,1222582,490,Cheam Station Cars,15604,Peoples Services Directorate,Hired Peoples Transport (Children),E072
http://statistics.data.gov.uk/id/local-authority/00BF,London Borough of Sutton,31/07/2016,1222584,"2,320.00",Cheam Station Cars,15604,Peoples Services Directorate,Hired Peoples Transport (Children),E072
http://statistics.data.gov.uk/id/local-authority/00BF,London Borough of Sutton,31/07/2016,1222585,"2,340.00",Cheam Station Cars,15604,Peoples Services Directorate,Hired Peoples Transport (Children),E072
http://statistics.data.gov.uk/id/local-authority/00BF,London Borough of Sutton,31/07/2016,1222586,"2,175.00",Cheam Station Cars,15604,Peoples Services Directorate,Hired Peoples Transport (Children),E072
http://statistics.data.gov.uk/id/local-authority/00BF,London Borough of Sutton,31/07/2016,1222587,840,Cheam Station Cars,15604,Peoples Services Directorate,Hired Peoples Transport (Children),E072
http://statistics.data.gov.uk/id/local-authority/00BF,London Borough of Sutton,31/07/2016,1222589,"1,425.00",Cheam Station Cars,15604,Peoples Services Directorate,Hired Peoples Transport (Children),E072
http://statistics.data.gov.uk/id/local-authority/00BF,London Borough of Sutton,31/07/2016,1222593,840,Cheam Station Cars,15604,Peoples Services Directorate,Hired Peoples Transport (Children),E072
http://statistics.data.gov.uk/id/local-authority/00BF,London Borough of Sutton,31/07/2016,1222594,675,Cheam Station Cars,15604,Peoples Services Directorate,Hired Peoples Transport (Children),E072
http://statistics.data.gov.uk/id/local-authority/00BF,London Borough of Sutton,31/07/2016,1222595,485,Cheam Station Cars,15604,Peoples Services Directorate,Hired Peoples Transport (Children),E072
http://statistics.data.gov.uk/id/local-authority/00BF,London Borough of Sutton,12/08/2016,4973507,"3,600.00",Chegworth Nursing Home Bayswift Ltd,10908,Peoples Services Directorate,Nursing Care - Ext Provider,G311
http://statistics.data.gov.uk/id/local-authority/00BF,London Borough of Sutton,12/08/2016,4973546,"1,928.24",Chegworth Nursing Home Bayswift Ltd,10908,Peoples Services Directorate,Nursing Care - Ext Provider,G311
http://statistics.data.gov.uk/id/local-authority/00BF,London Borough of Sutton,12/08/2016,4973570,"2,539.84",Chegworth Nursing Home Bayswift Ltd,10908,Peoples Services Directorate,Nursing Care - Ext Provider,G311
http://statistics.data.gov.uk/id/local-authority/00BF,London Borough of Sutton,12/08/2016,4973640,"2,019.96",Chegworth Nursing Home Bayswift Ltd,10908,Peoples Services Directorate,Nursing Care - Ext Provider,G311
http://statistics.data.gov.uk/id/local-authority/00BF,London Borough of Sutton,12/08/2016,4973653,"2,781.64",Chegworth Nursing Home Bayswift Ltd,10908,Peoples Services Directorate,Nursing Care - Ext Provider,G311
http://statistics.data.gov.uk/id/local-authority/00BF,London Borough of Sutton,12/08/2016,4973660,"2,019.60",Chegworth Nursing Home Bayswift Ltd,10908,Peoples Services Directorate,Nursing Care - Ext Provider,G311
http://statistics.data.gov.uk/id/local-authority/00BF,London Borough of Sutton,12/08/2016,4973755,"2,800.00",Chegworth Nursing Home Bayswift Ltd,10908,Peoples Services Directorate,Nursing Care - Ext Provider,G311
http://statistics.data.gov.uk/id/local-authority/00BF,London Borough of Sutton,12/08/2016,4973811,"2,352.00",Chegworth Nursing Home Bayswift Ltd,10908,Peoples Services Directorate,Nursing Care - Ext Provider,G311
http://statistics.data.gov.uk/id/local-authority/00BF,London Borough of Sutton,12/08/2016,4973831,"2,467.96",Chegworth Nursing Home Bayswift Ltd,10908,Peoples Services Directorate,Nursing Care - Ext Provider,G311
http://statistics.data.gov.uk/id/local-authority/00BF,London Borough of Sutton,12/08/2016,4973850,432,Chegworth Nursing Home Bayswift Ltd,10908,Peoples Services Directorate,Nursing Care - 3rd party top up payment,G360
http://statistics.data.gov.uk/id/local-authority/00BF,London Borough of Sutton,12/08/2016,4973873,"2,505.20",Chegworth Nursing Home Bayswift Ltd,10908,Peoples Services Directorate,Nursing Care - Ext Provider,G311
http://statistics.data.gov.uk/id/local-authority/00BF,London Borough of Sutton,01/08/2016,6889286,"9,513.61",Chelsea and Westminster NHS ft,28891,Peoples Services Directorate,Provider Contract Payments,F470
http://statistics.data.gov.uk/id/local-authority/00BF,London Borough of Sutton,07/08/2016,4975918,518,Chenash Homecare Specialists And Care Agency,25667,Peoples Services Directorate,Home Care,G334
http://statistics.data.gov.uk/id/local-authority/00BF,London Borough of Sutton,07/08/2016,4975919,462,Chenash Homecare Specialists And Care Agency,25667,Peoples Services Directorate,Home Care,G334
http://statistics.data.gov.uk/id/local-authority/00BF,London Borough of Sutton,07/08/2016,4976008,490,Chenash Homecare Specialists And Care Agency,25667,Peoples Services Directorate,Home Care,G334
http://statistics.data.gov.uk/id/local-authority/00BF,London Borough of Sutton,07/08/2016,4976039,490,Chenash Homecare Specialists And Care Agency,25667,Peoples Services Directorate,Home Care,G334
http://statistics.data.gov.uk/id/local-authority/00BF,London Borough of Sutton,07/08/2016,4976060,588,Chenash Homecare Specialists And Care Agency,25667,Peoples Services Directorate,Home Care,G334
http://statistics.data.gov.uk/id/local-authority/00BF,London Borough of Sutton,07/08/2016,4976063,735,Chenash Homecare Specialists And Care Agency,25667,Peoples Services Directorate,Home Care,G334
http://statistics.data.gov.uk/id/local-authority/00BF,London Borough of Sutton,12/08/2016,4973690,"2,409.80",Cherry Lodge,10934,Peoples Services Directorate,Residential Care - Ext Provider,G310
http://statistics.data.gov.uk/id/local-authority/00BF,London Borough of Sutton,12/08/2016,4973705,"3,360.00",Cherry Lodge,10934,Peoples Services Directorate,Residential Care - Ext Provider,G310
http://statistics.data.gov.uk/id/local-authority/00BF,London Borough of Sutton,04/08/2016,4980175,"4,565.19",Children of All Nations,19625,Peoples Services Directorate,Foster Parents,G326
http://statistics.data.gov.uk/id/local-authority/00BF,London Borough of Sutton,04/08/2016,4980185,"4,565.19",Children of All Nations,19625,Peoples Services Directorate,Foster Parents,G326
http://statistics.data.gov.uk/id/local-authority/00BF,London Borough of Sutton,14/07/2016,1222715,"4,477.08",Children's Trust,10927,Peoples Services Directorate,Top-up Funding,G064
http://statistics.data.gov.uk/id/local-authority/00BF,London Borough of Sutton,14/07/2016,1223013,"12,765.75",Children's Trust,10927,Peoples Services Directorate,NMSS Payments,G061
http://statistics.data.gov.uk/id/local-authority/00BF,London Borough of Sutton,14/07/2016,1223014,"12,765.75",Children's Trust,10927,Peoples Services Directorate,NMSS Payments,G061
http://statistics.data.gov.uk/id/local-authority/00BF,London Borough of Sutton,24/06/2016,4973030,"1,240.00",Choice Care Group,22029,Peoples Services Directorate,Supported Living - Ext Provider,G306
http://statistics.data.gov.uk/id/local-authority/00BF,London Borough of Sutton,24/06/2016,4973042,"2,302.85",Choice Care Group,22029,Peoples Services Directorate,Supported Living - Ext Provider,G306
http://statistics.data.gov.uk/id/local-authority/00BF,London Borough of Sutton,12/08/2016,4973561,"7,511.00",Choice Care Group,22029,Peoples Services Directorate,Residential Care - Ext Provider,G310
http://statistics.data.gov.uk/id/local-authority/00BF,London Borough of Sutton,12/08/2016,4973669,"7,511.00",Choice Care Group,22029,Peoples Services Directorate,Residential Care - Ext Provider,G310
http://statistics.data.gov.uk/id/local-authority/00BF,London Borough of Sutton,12/08/2016,4973838,"7,682.20",Choice Care Group,22029,Peoples Services Directorate,Residential Care - Ext Provider,G310
http://statistics.data.gov.uk/id/local-authority/00BF,London Borough of Sutton,19/07/2016,4979644,"2,228.57",Choice Care Group,22029,Peoples Services Directorate,Supported Living - Ext Provider,G306
http://statistics.data.gov.uk/id/local-authority/00BF,London Borough of Sutton,19/07/2016,4979666,"1,200.00",Choice Care Group,22029,Peoples Services Directorate,Supported Living - Ext Provider,G306
http://statistics.data.gov.uk/id/local-authority/00BF,London Borough of Sutton,07/04/2016,6889765,425,Christchurch with St Phillip Church,10920,"Environment, Housing & Regeneration Directorate",Fees - Room Hire,F290
http://statistics.data.gov.uk/id/local-authority/00BF,London Borough of Sutton,10/08/2016,6889172,"2,218.00",Chroma Vision Limited,20351,"Environment, Housing & Regeneration Directorate",Civic Amenity,G172
http://statistics.data.gov.uk/id/local-authority/00BF,London Borough of Sutton,16/08/2016,6889539,"8,976.88",Chroma Vision Limited,20351,"Environment, Housing & Regeneration Directorate",IT Equipment - Repair and Maintenance,F382
http://statistics.data.gov.uk/id/local-authority/00BF,London Borough of Sutton,16/08/2016,6889539,"7,236.87",Chroma Vision Limited,20351,"Environment, Housing & Regeneration Directorate",IT Equipment - Repair and Maintenance,F382
http://statistics.data.gov.uk/id/local-authority/00BF,London Borough of Sutton,09/08/2016,6889228,"1,445.00",CIPFA Business Limited,12335,Resources Directorate,Subscriptions - General,F450
http://statistics.data.gov.uk/id/local-authority/00BF,London Borough of Sutton,21/07/2016,6887833,"8,936.78",City of London,22388,"Environment, Housing & Regeneration Directorate",Asbestos CA Disposal,G173
http://statistics.data.gov.uk/id/local-authority/00BF,London Borough of Sutton,01/08/2016,6889506,"1,085.00",Cityglen Ltd T/A Hytyme ltd,24115,Peoples Services Directorate,Approved Lodgings,H323
http://statistics.data.gov.uk/id/local-authority/00BF,London Borough of Sutton,12/08/2016,4973522,"2,604.64",Claremont Care Svs Ltd,18724,Peoples Services Directorate,Nursing Care - Short Term Placements,G328
http://statistics.data.gov.uk/id/local-authority/00BF,London Borough of Sutton,12/08/2016,4973579,"4,200.00",Claremont Care Svs Ltd,18724,Peoples Services Directorate,Nursing Care - Ext Provider,G311
http://statistics.data.gov.uk/id/local-authority/00BF,London Borough of Sutton,12/08/2016,4973595,"4,000.00",Claremont Care Svs Ltd,18724,Peoples Services Directorate,Nursing Care - Ext Provider,G311
http://statistics.data.gov.uk/id/local-authority/00BF,London Borough of Sutton,12/08/2016,4973673,"2,400.00",Claremont Care Svs Ltd,18724,Peoples Services Directorate,Interim Placements - Ext Provider,G317
http://statistics.data.gov.uk/id/local-authority/00BF,London Borough of Sutton,12/08/2016,4973716,"3,400.00",Claremont Care Svs Ltd,18724,Peoples Services Directorate,Nursing Care - Ext Provider,G311
http://statistics.data.gov.uk/id/local-authority/00BF,London Borough of Sutton,12/08/2016,4973515,"2,160.00",Clarity Treatment Services Ltd,26052,Peoples Services Directorate,Interim Placements - Ext Provider,G317
http://statistics.data.gov.uk/id/local-authority/00BF,London Borough of Sutton,15/07/2016,1222721,"54,747.66",Clay Hill School Priory,29031,Peoples Services Directorate,Independent Schools,G325
http://statistics.data.gov.uk/id/local-authority/00BF,London Borough of Sutton,12/08/2016,4973798,"2,000.00",Cloyda Limited,20402,Peoples Services Directorate,Residential Care - Ext Provider,G310
http://statistics.data.gov.uk/id/local-authority/00BF,London Borough of Sutton,12/08/2016,4973519,"7,000.00",Cmg Homes Ltd,11026,Peoples Services Directorate,Residential Care - Ext Provider,G310
http://statistics.data.gov.uk/id/local-authority/00BF,London Borough of Sutton,12/08/2016,4973602,"7,036.00",Cmg Homes Ltd,11026,Peoples Services Directorate,Residential Care - Ext Provider,G310
http://statistics.data.gov.uk/id/local-authority/00BF,London Borough of Sutton,12/08/2016,4973641,"5,416.92",Cmg Homes Ltd,11026,Peoples Services Directorate,Residential Care - Ext Provider,G310
http://statistics.data.gov.uk/id/local-authority/00BF,London Borough of Sutton,23/08/2016,4976615,"4,003.69",Cmg Homes Ltd,11026,Peoples Services Directorate,Supported Living - Ext Provider,G306
http://statistics.data.gov.uk/id/local-authority/00BF,London Borough of Sutton,23/08/2016,4976616,"4,592.43",Cmg Homes Ltd,11026,Peoples Services Directorate,Supported Living - Ext Provider,G306
http://statistics.data.gov.uk/id/local-authority/00BF,London Borough of Sutton,23/08/2016,4976618,"9,828.57",Cmg Homes Ltd,11026,Peoples Services Directorate,Supported Living - Ext Provider,G306
http://statistics.data.gov.uk/id/local-authority/00BF,London Borough of Sutton,31/07/2016,6888499,"1,126.05",Cobalt Telephone Technologies,15645,"Environment, Housing & Regeneration Directorate",General Office Expenses,F235
http://statistics.data.gov.uk/id/local-authority/00BF,London Borough of Sutton,11/08/2016,5014609,-705,Colyer Repropoint Ltd,13763,Chief Executive's Directorate,Other Services,F340
http://statistics.data.gov.uk/id/local-authority/00BF,London Borough of Sutton,11/08/2016,6889439,705,Colyer Repropoint Ltd,13763,Chief Executive's Directorate,Other Services,F340
http://statistics.data.gov.uk/id/local-authority/00BF,London Borough of Sutton,26/07/2016,6887831,540,Comcir Radio Communications Ltd,22582,"Environment, Housing & Regeneration Directorate",Materials - General,F100
http://statistics.data.gov.uk/id/local-authority/00BF,London Borough of Sutton,19/08/2016,4979659,713.92,Comfort Care Services UK Ltd,17585,Peoples Services Directorate,Supported Living - Ext Provider,G306
http://statistics.data.gov.uk/id/local-authority/00BF,London Borough of Sutton,11/08/2016,6889266,553.16,Commercial & Plant Component Co,11047,"Environment, Housing & Regeneration Directorate",Materials - General,F100
http://statistics.data.gov.uk/id/local-authority/00BF,London Borough of Sutton,08/06/2016,4972512,537.75,Community Home Care Provider,11097,Peoples Services Directorate,Home Care,G334
http://statistics.data.gov.uk/id/local-authority/00BF,London Borough of Sutton,15/08/2016,6889448,"26,047.20",Community Options Ltd,24917,Peoples Services Directorate,Provider Contract Payments,F470
http://statistics.data.gov.uk/id/local-authority/00BF,London Borough of Sutton,14/04/2016,6889722,"4,000.00",Contender Systems Ltd,27768,"Environment, Housing & Regeneration Directorate",Subscriptions - General,F450
http://statistics.data.gov.uk/id/local-authority/00BF,London Borough of Sutton,04/08/2016,6889334,"1,608.10",Contract Security Services,23827,Chief Executive's Directorate,Security - Cash In Transit,G410
http://statistics.data.gov.uk/id/local-authority/00BF,London Borough of Sutton,10/02/2016,6887934,441,Coram Academy Ltd T/A Corambaaf,26169,Peoples Services Directorate,Subscriptions - General,F450
http://statistics.data.gov.uk/id/local-authority/00BF,London Borough of Sutton,10/02/2016,6887934,"2,668.59",Coram Academy Ltd T/A Corambaaf,26169,Peoples Services Directorate,Subscriptions - General,F450
http://statistics.data.gov.uk/id/local-authority/00BF,London Borough of Sutton,13/11/2015,6887646,437.45,Coram Voice,21584,Peoples Services Directorate,Children Assessments,G329
http://statistics.data.gov.uk/id/local-authority/00BF,London Borough of Sutton,28/04/2016,4973161,525,Core Assets Children's Services Ltd,27511,Peoples Services Directorate,Provider Contract Payments,F470
http://statistics.data.gov.uk/id/local-authority/00BF,London Borough of Sutton,28/04/2016,4973171,442,Core Assets Children's Services Ltd,27511,Peoples Services Directorate,Provider Contract Payments,F470
http://statistics.data.gov.uk/id/local-authority/00BF,London Borough of Sutton,28/07/2016,6888802,"1,180.00",Core Assets Children's Services Ltd,27511,Peoples Services Directorate,Provider Contract Payments,F470
http://statistics.data.gov.uk/id/local-authority/00BF,London Borough of Sutton,15/07/2016,4980143,"11,505.34",Cornerways - Fostering Services Ltd,11105,Peoples Services Directorate,Residential Care-Children,G330
http://statistics.data.gov.uk/id/local-authority/00BF,London Borough of Sutton,20/06/2016,1222317,"18,801.73",Cornerways Childrens Services Ltd,18435,Peoples Services Directorate,Independent Schools,G325
http://statistics.data.gov.uk/id/local-authority/00BF,London Borough of Sutton,20/06/2016,1222318,"12,468.40",Cornerways Childrens Services Ltd,18435,Peoples Services Directorate,Independent Schools,G325
http://statistics.data.gov.uk/id/local-authority/00BF,London Borough of Sutton,20/06/2016,1222319,"12,468.40",Cornerways Childrens Services Ltd,18435,Peoples Services Directorate,Independent Schools,G325
http://statistics.data.gov.uk/id/local-authority/00BF,London Borough of Sutton,20/06/2016,1222320,"13,125.40",Cornerways Childrens Services Ltd,18435,Peoples Services Directorate,Independent Schools,G325
http://statistics.data.gov.uk/id/local-authority/00BF,London Borough of Sutton,31/05/2016,6885148,"21,250.11",Corporate Document Services Ltd,11098,Resources Directorate,Suspense/Holding Accounts,X550
http://statistics.data.gov.uk/id/local-authority/00BF,London Borough of Sutton,30/06/2016,6886560,"17,280.72",Corporate Document Services Ltd,11098,Resources Directorate,Suspense/Holding Accounts,X550
http://statistics.data.gov.uk/id/local-authority/00BF,London Borough of Sutton,31/07/2016,6888342,"21,245.39",Corporate Document Services Ltd,11098,Resources Directorate,Suspense/Holding Accounts,X550
http://statistics.data.gov.uk/id/local-authority/00BF,London Borough of Sutton,31/07/2016,6888591,538.5,Corporate Document Services Ltd,11098,"Environment, Housing & Regeneration Directorate",Advertising/Publicity (non Staff),F240
http://statistics.data.gov.uk/id/local-authority/00BF,London Borough of Sutton,12/08/2016,4973565,"3,053.24",Cottisbraine House,11058,Peoples Services Directorate,Residential Care - Ext Provider,G310
http://statistics.data.gov.uk/id/local-authority/00BF,London Borough of Sutton,01/08/2016,6888487,"7,820.92",Covalent Software,21162,Chief Executive's Directorate,Fees - Computer Software,F384
http://statistics.data.gov.uk/id/local-authority/00BF,London Borough of Sutton,29/07/2016,6888343,"7,250.00",Craemer UK Ltd,23733,"Environment, Housing & Regeneration Directorate",Materials - General,F100
http://statistics.data.gov.uk/id/local-authority/00BF,London Borough of Sutton,12/08/2016,4973490,"2,217.86",Cranstoun,11184,Peoples Services Directorate,Interim Placements - Ext Provider,G317
http://statistics.data.gov.uk/id/local-authority/00BF,London Borough of Sutton,12/08/2016,4973494,"1,446.43",Cranstoun,11184,Peoples Services Directorate,Interim Placements - Ext Provider,G317
http://statistics.data.gov.uk/id/local-authority/00BF,London Borough of Sutton,12/08/2016,4973500,"2,700.00",Cranstoun,11184,Peoples Services Directorate,Interim Placements - Ext Provider,G317
http://statistics.data.gov.uk/id/local-authority/00BF,London Borough of Sutton,12/08/2016,4973523,578.58,Cranstoun,11184,Peoples Services Directorate,Interim Placements - Ext Provider,G317
http://statistics.data.gov.uk/id/local-authority/00BF,London Borough of Sutton,15/07/2016,1222338,"26,291.00",Cressey Oasis Education Ltd,27626,Peoples Services Directorate,Independent Schools,G325
http://statistics.data.gov.uk/id/local-authority/00BF,London Borough of Sutton,15/07/2016,1222339,"17,991.00",Cressey Oasis Education Ltd,27626,Peoples Services Directorate,Independent Schools,G325
http://statistics.data.gov.uk/id/local-authority/00BF,London Borough of Sutton,15/07/2016,1222340,"16,992.00",Cressey Oasis Education Ltd,27626,Peoples Services Directorate,Independent Schools,G325
http://statistics.data.gov.uk/id/local-authority/00BF,London Borough of Sutton,15/07/2016,1222341,"16,635.20",Cressey Oasis Education Ltd,27626,Peoples Services Directorate,Independent Schools,G325
http://statistics.data.gov.uk/id/local-authority/00BF,London Borough of Sutton,15/07/2016,1222342,"12,840.30",Cressey Oasis Education Ltd,27626,Peoples Services Directorate,Independent Schools,G325
http://statistics.data.gov.uk/id/local-authority/00BF,London Borough of Sutton,15/07/2016,1222343,"17,991.00",Cressey Oasis Education Ltd,27626,Peoples Services Directorate,Independent Schools,G325
http://statistics.data.gov.uk/id/local-authority/00BF,London Borough of Sutton,15/07/2016,1222344,"17,991.00",Cressey Oasis Education Ltd,27626,Peoples Services Directorate,Independent Schools,G325
http://statistics.data.gov.uk/id/local-authority/00BF,London Borough of Sutton,15/07/2016,1222345,"21,078.33",Cressey Oasis Education Ltd,27626,Peoples Services Directorate,Independent Schools,G325
http://statistics.data.gov.uk/id/local-authority/00BF,London Borough of Sutton,15/07/2016,1222346,"21,542.00",Cressey Oasis Education Ltd,27626,Peoples Services Directorate,Independent Schools,G325
http://statistics.data.gov.uk/id/local-authority/00BF,London Borough of Sutton,15/07/2016,1222347,"16,635.20",Cressey Oasis Education Ltd,27626,Peoples Services Directorate,Independent Schools,G325
http://statistics.data.gov.uk/id/local-authority/00BF,London Borough of Sutton,15/07/2016,1222348,"16,991.87",Cressey Oasis Education Ltd,27626,Peoples Services Directorate,Independent Schools,G325
http://statistics.data.gov.uk/id/local-authority/00BF,London Borough of Sutton,15/07/2016,1222349,"17,134.33",Cressey Oasis Education Ltd,27626,Peoples Services Directorate,Independent Schools,G325
http://statistics.data.gov.uk/id/local-authority/00BF,London Borough of Sutton,15/07/2016,1222350,"8,600.67",Cressey Oasis Education Ltd,27626,Peoples Services Directorate,Independent Schools,G325
http://statistics.data.gov.uk/id/local-authority/00BF,London Borough of Sutton,15/07/2016,1222351,"17,348.67",Cressey Oasis Education Ltd,27626,Peoples Services Directorate,Independent Schools,G325
http://statistics.data.gov.uk/id/local-authority/00BF,London Borough of Sutton,15/07/2016,1222352,"12,666.16",Cressey Oasis Education Ltd,27626,Peoples Services Directorate,Independent Schools,G325
http://statistics.data.gov.uk/id/local-authority/00BF,London Borough of Sutton,15/07/2016,1222353,"21,707.00",Cressey Oasis Education Ltd,27626,Peoples Services Directorate,Independent Schools,G325
http://statistics.data.gov.uk/id/local-authority/00BF,London Borough of Sutton,15/07/2016,1222354,"8,350.00",Cressey Oasis Education Ltd,27626,Peoples Services Directorate,Independent Schools,G325
http://statistics.data.gov.uk/id/local-authority/00BF,London Borough of Sutton,15/07/2016,1222355,"13,553.63",Cressey Oasis Education Ltd,27626,Peoples Services Directorate,Independent Schools,G325
http://statistics.data.gov.uk/id/local-authority/00BF,London Borough of Sutton,15/07/2016,1222356,"16,635.20",Cressey Oasis Education Ltd,27626,Peoples Services Directorate,Independent Schools,G325
http://statistics.data.gov.uk/id/local-authority/00BF,London Borough of Sutton,15/07/2016,1222357,"17,991.00",Cressey Oasis Education Ltd,27626,Peoples Services Directorate,Independent Schools,G325
http://statistics.data.gov.uk/id/local-authority/00BF,London Borough of Sutton,15/07/2016,1222358,"21,553.33",Cressey Oasis Education Ltd,27626,Peoples Services Directorate,Independent Schools,G325
http://statistics.data.gov.uk/id/local-authority/00BF,London Borough of Sutton,15/07/2016,1222359,"12,840.33",Cressey Oasis Education Ltd,27626,Peoples Services Directorate,Independent Schools,G325
http://statistics.data.gov.uk/id/local-authority/00BF,London Borough of Sutton,22/07/2016,1222370,"15,223.15",Cressey Oasis Education Ltd,27626,Peoples Services Directorate,Independent Schools,G325
http://statistics.data.gov.uk/id/local-authority/00BF,London Borough of Sutton,16/08/2016,1222724,"20,373.00",Cressey Oasis Education Ltd,27626,Peoples Services Directorate,Independent Schools,G325
http://statistics.data.gov.uk/id/local-authority/00BF,London Borough of Sutton,01/08/2016,6888351,"1,550.00",Crest Manor Ltd,25469,Peoples Services Directorate,Approved Lodgings,H323
http://statistics.data.gov.uk/id/local-authority/00BF,London Borough of Sutton,01/08/2016,6888387,"2,343.96",Crest Manor Ltd,25469,Peoples Services Directorate,Approved Lodgings,H323
http://statistics.data.gov.uk/id/local-authority/00BF,London Borough of Sutton,05/07/2016,6887180,540,Croham Services for Children Limited,20855,Peoples Services Directorate,Children Assessments,G329
http://statistics.data.gov.uk/id/local-authority/00BF,London Borough of Sutton,01/08/2016,6890352,"5,839.00",Cromwood Ltd,26178,"Environment, Housing & Regeneration Directorate",Bed and Breakfast Accommodation,G400
http://statistics.data.gov.uk/id/local-authority/00BF,London Borough of Sutton,12/08/2016,4973654,"2,326.92",Crossways Community,11187,Peoples Services Directorate,Residential Care - Ext Provider,G310
http://statistics.data.gov.uk/id/local-authority/00BF,London Borough of Sutton,01/08/2016,6888437,475,Croydon Care Solutions Ltd,24776,Peoples Services Directorate,Equipment,H250
http://statistics.data.gov.uk/id/local-authority/00BF,London Borough of Sutton,25/08/2016,1222599,"1,832.14",Croydon Churches Housing Association,19583,"Environment, Housing & Regeneration Directorate",Supporting People - Older People Services,H244
http://statistics.data.gov.uk/id/local-authority/00BF,London Borough of Sutton,17/08/2016,6889723,"10,115.74",Croydon Health Service NHST,26283,Peoples Services Directorate,Provider Contract Payments,F470
http://statistics.data.gov.uk/id/local-authority/00BF,London Borough of Sutton,31/07/2016,1222704,"2,475.00",Cruisers Ltd,18087,Peoples Services Directorate,Hired Peoples Transport (Children),E072
http://statistics.data.gov.uk/id/local-authority/00BF,London Borough of Sutton,07/07/2016,6886618,"12,500.00",Crystal Palace Fc Foundation,11216,Peoples Services Directorate,Provider Contract Payments,F470
http://statistics.data.gov.uk/id/local-authority/00BF,London Borough of Sutton,12/08/2016,4973455,"8,926.00",CSS Ltd t/a Grove Care,19184,Peoples Services Directorate,Residential Care - Ext Provider,G310
http://statistics.data.gov.uk/id/local-authority/00BF,London Borough of Sutton,08/08/2016,6888990,"2,750.00",Cyclehoop Ltd,28489,"Environment, Housing & Regeneration Directorate","Surveys, Trial Holes Etc",Y200
http://statistics.data.gov.uk/id/local-authority/00BF,London Borough of Sutton,08/08/2016,6888990,500,Cyclehoop Ltd,28489,"Environment, Housing & Regeneration Directorate","Surveys, Trial Holes Etc",Y200
http://statistics.data.gov.uk/id/local-authority/00BF,London Borough of Sutton,04/08/2016,6888997,"6,125.00",Cyclehoop Ltd,28489,"Environment, Housing & Regeneration Directorate",Surveys & Analysis,Y685
http://statistics.data.gov.uk/id/local-authority/00BF,London Borough of Sutton,03/08/2016,6888491,"1,500.00",D V Giles,99898,"Environment, Housing & Regeneration Directorate",Depositors,X460
http://statistics.data.gov.uk/id/local-authority/00BF,London Borough of Sutton,03/08/2016,6888491,"1,070.00",D V Giles,99898,"Environment, Housing & Regeneration Directorate",Depositors,X460
http://statistics.data.gov.uk/id/local-authority/00BF,London Borough of Sutton,15/07/2016,6889528,"10,368.75",Datasource Partners Ltd,25391,Resources Directorate,Recharge-Other Staff,A254
http://statistics.data.gov.uk/id/local-authority/00BF,London Borough of Sutton,15/07/2016,6889529,"6,787.50",Datasource Partners Ltd,25391,Resources Directorate,Recharge-Other Staff,A254
http://statistics.data.gov.uk/id/local-authority/00BF,London Borough of Sutton,31/07/2016,6889530,"8,268.75",Datasource Partners Ltd,25391,Resources Directorate,Recharge-Other Staff,A254
http://statistics.data.gov.uk/id/local-authority/00BF,London Borough of Sutton,15/07/2016,6889531,"1,955.00",Datasource Partners Ltd,25391,Resources Directorate,Recharge-Other Staff,A254
http://statistics.data.gov.uk/id/local-authority/00BF,London Borough of Sutton,15/07/2016,6889533,"3,102.50",Datasource Partners Ltd,25391,Resources Directorate,Recharge-Other Staff,A254
http://statistics.data.gov.uk/id/local-authority/00BF,London Borough of Sutton,11/08/2016,6889274,554.17,Daytona Sandown Park Ltd,15527,Peoples Services Directorate,Other Services,F340
http://statistics.data.gov.uk/id/local-authority/00BF,London Borough of Sutton,25/07/2016,6887796,900,Ddd Enterprises Ltd,28748,Peoples Services Directorate,Training - Course Fees,A520
http://statistics.data.gov.uk/id/local-authority/00BF,London Borough of Sutton,15/08/2016,6889370,"3,800.00",Ddd Enterprises Ltd,28748,Peoples Services Directorate,Training - Course Fees,A520
http://statistics.data.gov.uk/id/local-authority/00BF,London Borough of Sutton,02/08/2016,6888635,"1,055.50",Deborah Klee Consultancy Ltd,25029,Peoples Services Directorate,Contractual Consultant Fees,G430
http://statistics.data.gov.uk/id/local-authority/00BF,London Borough of Sutton,31/07/2016,6888592,443.03,Deepstore Ltd,21074,Resources Directorate,Offsite Storage,F231
http://statistics.data.gov.uk/id/local-authority/00BF,London Borough of Sutton,31/07/2016,6888593,594.96,Deepstore Ltd,21074,Resources Directorate,Offsite Storage,F231
http://statistics.data.gov.uk/id/local-authority/00BF,London Borough of Sutton,31/07/2016,6888598,467.1,Deepstore Ltd,21074,Resources Directorate,Offsite Storage,F231
http://statistics.data.gov.uk/id/local-authority/00BF,London Borough of Sutton,15/07/2016,6888586,"5,449.50",Delta T Management Ltd,25790,"Environment, Housing & Regeneration Directorate",External Fees  - Other,Y130
http://statistics.data.gov.uk/id/local-authority/00BF,London Borough of Sutton,12/06/2016,6889084,"20,879.50",Denhan Property Services,28353,"Environment, Housing & Regeneration Directorate",Bed and Breakfast Accommodation,G400
http://statistics.data.gov.uk/id/local-authority/00BF,London Borough of Sutton,16/08/2016,6889631,863,Dennis Eagle,11416,"Environment, Housing & Regeneration Directorate",Materials - General,F100
http://statistics.data.gov.uk/id/local-authority/00BF,London Borough of Sutton,16/08/2016,6889632,591.86,Dennis Eagle,11416,"Environment, Housing & Regeneration Directorate",Materials - General,F100
http://statistics.data.gov.uk/id/local-authority/00BF,London Borough of Sutton,16/08/2016,6889544,"5,000.00",Design Film Digital Solutions,26692,"Environment, Housing & Regeneration Directorate",Other Services,F340
http://statistics.data.gov.uk/id/local-authority/00BF,London Borough of Sutton,01/08/2016,4980278,"3,975.00",Devon County Council,11301,Peoples Services Directorate,Secure Accommodation,G332
http://statistics.data.gov.uk/id/local-authority/00BF,London Borough of Sutton,31/07/2016,6889168,"3,000.00",Devoteam UK Ltd,24057,Chief Executive's Directorate,Fees - Computer Software,F384
http://statistics.data.gov.uk/id/local-authority/00BF,London Borough of Sutton,30/06/2016,6889016,"1,765.54",DHP (UK) Ltd,27763,Peoples Services Directorate,External Fees  - Architects,Y100
http://statistics.data.gov.uk/id/local-authority/00BF,London Borough of Sutton,26/07/2016,4971821,"2,356.31",Direct Care And Support Services,23268,Peoples Services Directorate,Supported Living - Ext Provider,G306
http://statistics.data.gov.uk/id/local-authority/00BF,London Borough of Sutton,26/07/2016,4971822,"2,343.60",Direct Care And Support Services,23268,Peoples Services Directorate,Supported Living - Ext Provider,G306
http://statistics.data.gov.uk/id/local-authority/00BF,London Borough of Sutton,26/07/2016,4971823,"3,132.80",Direct Care And Support Services,23268,Peoples Services Directorate,Supported Living - Ext Provider,G306
http://statistics.data.gov.uk/id/local-authority/00BF,London Borough of Sutton,26/07/2016,4971827,"2,497.98",Direct Care And Support Services,23268,Peoples Services Directorate,Supported Living - Ext Provider,G306
http://statistics.data.gov.uk/id/local-authority/00BF,London Borough of Sutton,26/07/2016,4971877,"2,664.48",Direct Care And Support Services,23268,Peoples Services Directorate,Supported Living - Ext Provider,G306
http://statistics.data.gov.uk/id/local-authority/00BF,London Borough of Sutton,26/07/2016,4979671,"3,496.00",Direct Care And Support Services,23268,Peoples Services Directorate,Supported Living - Ext Provider,G306
http://statistics.data.gov.uk/id/local-authority/00BF,London Borough of Sutton,05/07/2016,4979691,"3,822.00",Direct Care And Support Services,23268,Peoples Services Directorate,Supported Living - Ext Provider,G306
http://statistics.data.gov.uk/id/local-authority/00BF,London Borough of Sutton,05/07/2016,4979704,"3,822.00",Direct Care And Support Services,23268,Peoples Services Directorate,Supported Living - Ext Provider,G306
http://statistics.data.gov.uk/id/local-authority/00BF,London Borough of Sutton,26/07/2016,4979705,"1,396.50",Direct Care And Support Services,23268,Peoples Services Directorate,Supported Living - Ext Provider,G306
http://statistics.data.gov.uk/id/local-authority/00BF,London Borough of Sutton,31/07/2016,6888584,"13,507.00",Disclosure & Barring Service (DBS),11206,Resources Directorate,DBS Checks,A506
http://statistics.data.gov.uk/id/local-authority/00BF,London Borough of Sutton,31/07/2016,6888584,"13,507.00",Disclosure & Barring Service (DBS),11206,Resources Directorate,DBS Checks,A506
http://statistics.data.gov.uk/id/local-authority/00BF,London Borough of Sutton,17/08/2016,6889891,"6,750.00",Dotted Eyes Ltd,29039,Chief Executive's Directorate,Fees - Computer Software,F384
http://statistics.data.gov.uk/id/local-authority/00BF,London Borough of Sutton,11/08/2016,6889270,"2,360.00",Dreamlettings,11391,"Environment, Housing & Regeneration Directorate",General Office Expenses,F235
http://statistics.data.gov.uk/id/local-authority/00BF,London Borough of Sutton,19/08/2016,5014606,"-1,696.49",DSI Billing Services Ltd,17962,Resources Directorate,Postages - General,F350
http://statistics.data.gov.uk/id/local-authority/00BF,London Borough of Sutton,24/06/2016,6885798,"1,898.11",DSI Billing Services Ltd,17962,Resources Directorate,Postages - General,F350
http://statistics.data.gov.uk/id/local-authority/00BF,London Borough of Sutton,28/07/2016,6888119,"1,256.23",DSI Billing Services Ltd,17962,Resources Directorate,Postages - General,F350
http://statistics.data.gov.uk/id/local-authority/00BF,London Borough of Sutton,03/08/2016,6888755,913.08,DSI Billing Services Ltd,17962,Resources Directorate,Postages - General,F350
http://statistics.data.gov.uk/id/local-authority/00BF,London Borough of Sutton,10/08/2016,6889257,"1,304.84",DSI Billing Services Ltd,17962,Resources Directorate,Postages - General,F350
http://statistics.data.gov.uk/id/local-authority/00BF,London Borough of Sutton,19/08/2016,6889992,"1,696.49",DSI Billing Services Ltd,17962,Resources Directorate,Postages - General,F350
http://statistics.data.gov.uk/id/local-authority/00BF,London Borough of Sutton,19/08/2016,6890072,"1,696.49",DSI Billing Services Ltd,17962,Resources Directorate,Postages - General,F350
http://statistics.data.gov.uk/id/local-authority/00BF,London Borough of Sutton,24/08/2016,6890386,"1,135.63",DSI Billing Services Ltd,17962,Resources Directorate,Postages - General,F350
http://statistics.data.gov.uk/id/local-authority/00BF,London Borough of Sutton,12/08/2016,4973481,"2,444.00",Dulwich Care Centre,28383,Peoples Services Directorate,Nursing Care - Ext Provider,G311
http://statistics.data.gov.uk/id/local-authority/00BF,London Borough of Sutton,25/07/2016,4980250,"2,500.00",Dunfield & Mead Ltd,28055,Peoples Services Directorate,Accommodation - Supported Living,H201
http://statistics.data.gov.uk/id/local-authority/00BF,London Borough of Sutton,25/07/2016,6888987,"2,500.00",Dunfield & Mead Ltd,28055,Peoples Services Directorate,Approved Lodgings,H323
http://statistics.data.gov.uk/id/local-authority/00BF,London Borough of Sutton,25/07/2016,6888988,"2,500.00",Dunfield & Mead Ltd,28055,Peoples Services Directorate,Approved Lodgings,H323
http://statistics.data.gov.uk/id/local-authority/00BF,London Borough of Sutton,14/07/2016,4971861,"2,716.56",Dunheved Lodge,11403,Peoples Services Directorate,One to One Care,G335
http://statistics.data.gov.uk/id/local-authority/00BF,London Borough of Sutton,12/08/2016,4973639,"2,999.92",Dunheved Lodge,11403,Peoples Services Directorate,Residential Care - Ext Provider,G310
http://statistics.data.gov.uk/id/local-authority/00BF,London Borough of Sutton,19/06/2016,6889326,777,Dunheved Partnership Ltd,26353,"Environment, Housing & Regeneration Directorate",Bed and Breakfast Accommodation,G400
http://statistics.data.gov.uk/id/local-authority/00BF,London Borough of Sutton,01/05/2016,6889328,962,Dunheved Partnership Ltd,26353,"Environment, Housing & Regeneration Directorate",Bed and Breakfast Accommodation,G400
http://statistics.data.gov.uk/id/local-authority/00BF,London Borough of Sutton,29/05/2016,6889329,"1,036.00",Dunheved Partnership Ltd,26353,"Environment, Housing & Regeneration Directorate",Bed and Breakfast Accommodation,G400
http://statistics.data.gov.uk/id/local-authority/00BF,London Borough of Sutton,31/07/2016,6890413,"1,373.00",E Homes And Shelters,28378,"Environment, Housing & Regeneration Directorate",Bed and Breakfast Accommodation,G400
http://statistics.data.gov.uk/id/local-authority/00BF,London Borough of Sutton,04/08/2016,1222383,"-2,407.37",Eagle House Junior School,15445,Peoples Services Directorate,Independent Schools,G325
http://statistics.data.gov.uk/id/local-authority/00BF,London Borough of Sutton,01/06/2016,1222384,"16,618.33",Eagle House Junior School,15445,Peoples Services Directorate,Independent Schools,G325
http://statistics.data.gov.uk/id/local-authority/00BF,London Borough of Sutton,01/06/2016,1222385,"16,618.33",Eagle House Junior School,15445,Peoples Services Directorate,Independent Schools,G325
http://statistics.data.gov.uk/id/local-authority/00BF,London Borough of Sutton,01/06/2016,1222386,"16,618.33",Eagle House Junior School,15445,Peoples Services Directorate,Independent Schools,G325
http://statistics.data.gov.uk/id/local-authority/00BF,London Borough of Sutton,01/06/2016,1222387,"16,618.33",Eagle House Junior School,15445,Peoples Services Directorate,Independent Schools,G325
http://statistics.data.gov.uk/id/local-authority/00BF,London Borough of Sutton,19/07/2016,1221925,"8,233.33",Eagle House Senior School,17549,Peoples Services Directorate,Independent Schools,G325
http://statistics.data.gov.uk/id/local-authority/00BF,London Borough of Sutton,01/06/2016,1222308,"16,618.33",Eagle House Senior School,17549,Peoples Services Directorate,Independent Schools,G325
http://statistics.data.gov.uk/id/local-authority/00BF,London Borough of Sutton,01/06/2016,1222309,"16,618.33",Eagle House Senior School,17549,Peoples Services Directorate,Independent Schools,G325
http://statistics.data.gov.uk/id/local-authority/00BF,London Borough of Sutton,01/06/2016,1222310,"16,618.33",Eagle House Senior School,17549,Peoples Services Directorate,Independent Schools,G325
http://statistics.data.gov.uk/id/local-authority/00BF,London Borough of Sutton,01/06/2016,1222311,"16,618.33",Eagle House Senior School,17549,Peoples Services Directorate,Independent Schools,G325
http://statistics.data.gov.uk/id/local-authority/00BF,London Borough of Sutton,01/06/2016,1222312,"16,618.33",Eagle House Senior School,17549,Peoples Services Directorate,Independent Schools,G325
http://statistics.data.gov.uk/id/local-authority/00BF,London Borough of Sutton,01/06/2016,1222313,"16,618.33",Eagle House Senior School,17549,Peoples Services Directorate,Independent Schools,G325
http://statistics.data.gov.uk/id/local-authority/00BF,London Borough of Sutton,01/06/2016,1222314,"16,618.33",Eagle House Senior School,17549,Peoples Services Directorate,Independent Schools,G325
http://statistics.data.gov.uk/id/local-authority/00BF,London Borough of Sutton,01/06/2016,1222315,"16,618.33",Eagle House Senior School,17549,Peoples Services Directorate,Independent Schools,G325
http://statistics.data.gov.uk/id/local-authority/00BF,London Borough of Sutton,19/07/2016,1222379,"17,158.00",Eagle House Senior School,17549,Peoples Services Directorate,Independent Schools,G325
http://statistics.data.gov.uk/id/local-authority/00BF,London Borough of Sutton,19/07/2016,1222380,"20,640.33",Eagle House Senior School,17549,Peoples Services Directorate,Independent Schools,G325
http://statistics.data.gov.uk/id/local-authority/00BF,London Borough of Sutton,04/08/2016,1222381,"8,233.33",Eagle House Senior School,17549,Peoples Services Directorate,Independent Schools,G325
http://statistics.data.gov.uk/id/local-authority/00BF,London Borough of Sutton,04/08/2016,1222382,"8,233.33",Eagle House Senior School,17549,Peoples Services Directorate,Independent Schools,G325
http://statistics.data.gov.uk/id/local-authority/00BF,London Borough of Sutton,19/07/2016,1222388,"3,320.00",Eagle House Senior School,17549,Peoples Services Directorate,Independent Schools,G325
http://statistics.data.gov.uk/id/local-authority/00BF,London Borough of Sutton,01/06/2016,1223008,"16,618.33",Eagle House Senior School,17549,Peoples Services Directorate,Independent Schools,G325
http://statistics.data.gov.uk/id/local-authority/00BF,London Borough of Sutton,12/08/2016,4973812,"3,300.00",Eastcroft Nursing Home,11420,Peoples Services Directorate,Nursing Care - Ext Provider,G311
http://statistics.data.gov.uk/id/local-authority/00BF,London Borough of Sutton,31/07/2016,6889667,519.35,Ecolocal Services Ltd,11438,Resources Directorate,Courier Post,F355
http://statistics.data.gov.uk/id/local-authority/00BF,London Borough of Sutton,20/07/2016,6888038,-716.59,EDF Energy (Seeboard),13999,HRA Directorate,Electricity - General,D620
http://statistics.data.gov.uk/id/local-authority/00BF,London Borough of Sutton,20/07/2016,6888039,-485.13,EDF Energy (Seeboard),13999,HRA Directorate,Electricity - General,D620
http://statistics.data.gov.uk/id/local-authority/00BF,London Borough of Sutton,28/07/2016,6889091,"2,051.53",EDF Energy (Seeboard),13999,Peoples Services Directorate,Electricity - General,D620
http://statistics.data.gov.uk/id/local-authority/00BF,London Borough of Sutton,01/08/2016,6889787,"1,219.21",EDF Energy (Seeboard),13999,"Environment, Housing & Regeneration Directorate",Electricity - General,D620
http://statistics.data.gov.uk/id/local-authority/00BF,London Borough of Sutton,04/08/2016,6889812,832.43,EDF Energy (Seeboard),13999,HRA Directorate,Electricity - Anti Hypothermia Heating,D622
http://statistics.data.gov.uk/id/local-authority/00BF,London Borough of Sutton,01/08/2016,6890067,584.9,EDF Energy (Seeboard),13999,"Environment, Housing & Regeneration Directorate",Electricity - General,D620
http://statistics.data.gov.uk/id/local-authority/00BF,London Borough of Sutton,10/08/2016,6890202,538.56,EDF Energy (Seeboard),13999,HRA Directorate,Electricity - Anti Hypothermia Heating,D622
http://statistics.data.gov.uk/id/local-authority/00BF,London Borough of Sutton,10/08/2016,6890202,-429.92,EDF Energy (Seeboard),13999,HRA Directorate,Electricity - Anti Hypothermia Heating,D622
http://statistics.data.gov.uk/id/local-authority/00BF,London Borough of Sutton,16/08/2016,6890210,494.83,EDF Energy (Seeboard),13999,HRA Directorate,Electricity - Anti Hypothermia Heating,D622
http://statistics.data.gov.uk/id/local-authority/00BF,London Borough of Sutton,16/08/2016,6890210,-428.09,EDF Energy (Seeboard),13999,HRA Directorate,Electricity - Anti Hypothermia Heating,D622
http://statistics.data.gov.uk/id/local-authority/00BF,London Borough of Sutton,03/08/2016,6888549,925,Edge Training,22919,Peoples Services Directorate,Training - Course Fees,A520
http://statistics.data.gov.uk/id/local-authority/00BF,London Borough of Sutton,15/08/2016,6889501,801,Egbert H Taylor & Company,14527,"Environment, Housing & Regeneration Directorate",Materials - General,F100
http://statistics.data.gov.uk/id/local-authority/00BF,London Borough of Sutton,15/08/2016,6889501,"1,665.00",Egbert H Taylor & Company,14527,"Environment, Housing & Regeneration Directorate",Materials - General,F100
http://statistics.data.gov.uk/id/local-authority/00BF,London Borough of Sutton,15/08/2016,6889501,979,Egbert H Taylor & Company,14527,"Environment, Housing & Regeneration Directorate",Materials - General,F100
http://statistics.data.gov.uk/id/local-authority/00BF,London Borough of Sutton,15/08/2016,6889501,"1,221.00",Egbert H Taylor & Company,14527,"Environment, Housing & Regeneration Directorate",Materials - General,F100
http://statistics.data.gov.uk/id/local-authority/00BF,London Borough of Sutton,31/07/2016,6889114,"4,000.00",Eldercare,22163,Peoples Services Directorate,Agency Services,G431
http://statistics.data.gov.uk/id/local-authority/00BF,London Borough of Sutton,31/07/2016,6889115,"13,933.69",Eldercare,22163,HRA Directorate,Supporting People - Alarm Services,H237
http://statistics.data.gov.uk/id/local-authority/00BF,London Borough of Sutton,12/08/2016,4973440,"4,484.80",Eleanor Nursing & Social Care Ltd,25134,Peoples Services Directorate,Residential Care - Ext Provider,G310
http://statistics.data.gov.uk/id/local-authority/00BF,London Borough of Sutton,22/08/2016,6889888,"1,782.48",Elizabethan Security,22830,"Environment, Housing & Regeneration Directorate",Special,D535
http://statistics.data.gov.uk/id/local-authority/00BF,London Borough of Sutton,22/08/2016,6889888,"1,782.48",Elizabethan Security,22830,"Environment, Housing & Regeneration Directorate",Special,D535
http://statistics.data.gov.uk/id/local-authority/00BF,London Borough of Sutton,30/09/2015,1221909,"4,423.08",Elm Court School,28804,Peoples Services Directorate,Top-up Funding,G064
http://statistics.data.gov.uk/id/local-authority/00BF,London Borough of Sutton,31/07/2016,6888477,"2,125.00",Emma James,28802,Peoples Services Directorate,Contractual Consultant Fees,G430
http://statistics.data.gov.uk/id/local-authority/00BF,London Borough of Sutton,01/04/2016,6887376,"4,154.45",Employee Advisory Resource Ltd T/A Workplace Options,23969,Resources Directorate,Contractual Consultant Fees,G430
http://statistics.data.gov.uk/id/local-authority/00BF,London Borough of Sutton,13/07/2016,4971891,654.12,Enviva Paediatric Care/formerlyPNL Nursing Link Ltd (Pnl),28212,Peoples Services Directorate,Provider Contract Payments,F470
http://statistics.data.gov.uk/id/local-authority/00BF,London Borough of Sutton,20/07/2016,4971942,472.42,Enviva Paediatric Care/formerlyPNL Nursing Link Ltd (Pnl),28212,Peoples Services Directorate,Provider Contract Payments,F470
http://statistics.data.gov.uk/id/local-authority/00BF,London Borough of Sutton,27/07/2016,4973154,581.44,Enviva Paediatric Care/formerlyPNL Nursing Link Ltd (Pnl),28212,Peoples Services Directorate,Provider Contract Payments,F470
http://statistics.data.gov.uk/id/local-authority/00BF,London Borough of Sutton,12/08/2016,4973510,"1,780.00",Eothen Homes Ltd,11539,Peoples Services Directorate,Residential Care - Ext Provider,G310
http://statistics.data.gov.uk/id/local-authority/00BF,London Borough of Sutton,12/08/2016,4973608,"1,724.16",Eothen Homes Ltd,11539,Peoples Services Directorate,Residential Care - Ext Provider,G310
http://statistics.data.gov.uk/id/local-authority/00BF,London Borough of Sutton,12/08/2016,4973663,"2,948.00",Eothen Homes Ltd,11539,Peoples Services Directorate,Residential Care - Ext Provider,G310
http://statistics.data.gov.uk/id/local-authority/00BF,London Borough of Sutton,12/08/2016,4973694,"1,724.16",Eothen Homes Ltd,11539,Peoples Services Directorate,Interim Placements - Ext Provider,G317
http://statistics.data.gov.uk/id/local-authority/00BF,London Borough of Sutton,08/08/2016,6889104,"2,033.87",Ernest Doe & Sons Ltd,11372,"Environment, Housing & Regeneration Directorate",Operational Equipment - Environmental Health,F011
http://statistics.data.gov.uk/id/local-authority/00BF,London Borough of Sutton,01/07/2016,6890400,"13,220.00",Ernst & Young,11550,Resources Directorate,Consultants/Hons,A310
http://statistics.data.gov.uk/id/local-authority/00BF,London Borough of Sutton,29/05/2016,6889178,"1,820.00",Euro Hotels (Thornton Heath) Ltd,10030,Peoples Services Directorate,C.C.A Rent & Utilities,H211
http://statistics.data.gov.uk/id/local-authority/00BF,London Borough of Sutton,17/07/2016,6889179,"1,365.00",Euro Hotels (Thornton Heath) Ltd,10030,Peoples Services Directorate,C.C.A Rent & Utilities,H211
http://statistics.data.gov.uk/id/local-authority/00BF,London Borough of Sutton,31/07/2016,6889660,910,Euro Hotels (Thornton Heath) Ltd,10030,Peoples Services Directorate,C.C.A Rent & Utilities,H211
http://statistics.data.gov.uk/id/local-authority/00BF,London Borough of Sutton,19/06/2016,6889901,"1,365.00",Euro Hotels (Thornton Heath) Ltd,10030,Peoples Services Directorate,C.C.A Rent & Utilities,H211
http://statistics.data.gov.uk/id/local-authority/00BF,London Borough of Sutton,26/06/2016,6889902,455,Euro Hotels (Thornton Heath) Ltd,10030,Peoples Services Directorate,C.C.A Rent & Utilities,H211
http://statistics.data.gov.uk/id/local-authority/00BF,London Borough of Sutton,28/08/2016,6890537,"1,820.00",Euro Hotels (Thornton Heath) Ltd,10030,Peoples Services Directorate,C.C.A Rent & Utilities,H211
http://statistics.data.gov.uk/id/local-authority/00BF,London Borough of Sutton,31/07/2016,6888688,"1,675.00",Excel Group Services Ltd,26267,Peoples Services Directorate,Hired Vehicles,E070
http://statistics.data.gov.uk/id/local-authority/00BF,London Borough of Sutton,20/07/2016,6887414,450,Experia Solutions,25718,Resources Directorate,Training - Course Fees,A520
http://statistics.data.gov.uk/id/local-authority/00BF,London Borough of Sutton,25/03/2015,6888589,428.6,Expert In Mind,22228,Peoples Services Directorate,Children Assessments,G329
http://statistics.data.gov.uk/id/local-authority/00BF,London Borough of Sutton,10/06/2016,6888634,"27,215.80",F M Conway Limited,97060,"Environment, Housing & Regeneration Directorate",Roads & Sewers Etc-Main Contract,Y300
http://statistics.data.gov.uk/id/local-authority/00BF,London Borough of Sutton,29/07/2016,6889446,"41,584.00",F M Conway Limited,97060,"Environment, Housing & Regeneration Directorate",Public Lighting,Y420
http://statistics.data.gov.uk/id/local-authority/00BF,London Borough of Sutton,29/07/2016,6889447,"65,167.37",F M Conway Limited,97060,"Environment, Housing & Regeneration Directorate",Public Lighting,Y420
http://statistics.data.gov.uk/id/local-authority/00BF,London Borough of Sutton,29/07/2016,6889843,"51,477.15",F M Conway Limited,97060,"Environment, Housing & Regeneration Directorate",Public Lighting,Y420
http://statistics.data.gov.uk/id/local-authority/00BF,London Borough of Sutton,29/07/2016,6889844,"24,561.09",F M Conway Limited,97060,"Environment, Housing & Regeneration Directorate",Public Lighting,Y420
http://statistics.data.gov.uk/id/local-authority/00BF,London Borough of Sutton,19/08/2016,6889955,"3,268.12",F M Conway Limited,97060,"Environment, Housing & Regeneration Directorate",Road Markings,D523
http://statistics.data.gov.uk/id/local-authority/00BF,London Borough of Sutton,29/07/2016,6890151,"27,323.99",F M Conway Limited,97060,"Environment, Housing & Regeneration Directorate",Public Lighting,Y420
http://statistics.data.gov.uk/id/local-authority/00BF,London Borough of Sutton,25/07/2016,6889956,"8,549.80",Faithorn Farrell Timms Llp,27878,Peoples Services Directorate,External Fees  - Architects,Y100
http://statistics.data.gov.uk/id/local-authority/00BF,London Borough of Sutton,31/07/2016,4980265,"3,520.71",Family First Fostering,27926,Peoples Services Directorate,Foster Parents,G326
http://statistics.data.gov.uk/id/local-authority/00BF,London Borough of Sutton,31/07/2016,4980273,"3,520.71",Family First Fostering,27926,Peoples Services Directorate,Foster Parents,G326
http://statistics.data.gov.uk/id/local-authority/00BF,London Borough of Sutton,31/07/2016,4980291,"3,520.71",Family First Fostering,27926,Peoples Services Directorate,Foster Parents,G326
http://statistics.data.gov.uk/id/local-authority/00BF,London Borough of Sutton,31/07/2016,4980302,"5,757.14",Family First Fostering,27926,Peoples Services Directorate,Foster Parents,G326
http://statistics.data.gov.uk/id/local-authority/00BF,London Borough of Sutton,25/08/2016,1222600,"25,916.67",Family Mosaic Housing,21012,"Environment, Housing & Regeneration Directorate",Supporting People - Mental Health Services,H243
http://statistics.data.gov.uk/id/local-authority/00BF,London Borough of Sutton,25/08/2016,1222601,"18,833.33",Family Mosaic Housing,21012,"Environment, Housing & Regeneration Directorate",Supporting People - Generic Services,H241
http://statistics.data.gov.uk/id/local-authority/00BF,London Borough of Sutton,12/08/2016,4973479,"3,400.00",Family Star Ltd,19653,Peoples Services Directorate,Nursing Care - Ext Provider,G311
http://statistics.data.gov.uk/id/local-authority/00BF,London Borough of Sutton,30/06/2016,6886052,"1,200.00",Fierce Neutral Ltd,16535,"Environment, Housing & Regeneration Directorate",Bed and Breakfast Accommodation,G400
http://statistics.data.gov.uk/id/local-authority/00BF,London Borough of Sutton,01/08/2016,6888704,"1,147.00",Fierce Neutral Ltd,16535,"Environment, Housing & Regeneration Directorate",Bed and Breakfast Accommodation,G400
http://statistics.data.gov.uk/id/local-authority/00BF,London Borough of Sutton,01/08/2016,6888705,"1,147.00",Fierce Neutral Ltd,16535,"Environment, Housing & Regeneration Directorate",Bed and Breakfast Accommodation,G400
http://statistics.data.gov.uk/id/local-authority/00BF,London Borough of Sutton,01/08/2016,6888706,"1,147.00",Fierce Neutral Ltd,16535,"Environment, Housing & Regeneration Directorate",Bed and Breakfast Accommodation,G400
http://statistics.data.gov.uk/id/local-authority/00BF,London Borough of Sutton,01/08/2016,6888707,"1,395.00",Fierce Neutral Ltd,16535,"Environment, Housing & Regeneration Directorate",Bed and Breakfast Accommodation,G400
http://statistics.data.gov.uk/id/local-authority/00BF,London Borough of Sutton,01/08/2016,6888708,"1,147.00",Fierce Neutral Ltd,16535,"Environment, Housing & Regeneration Directorate",Bed and Breakfast Accommodation,G400
http://statistics.data.gov.uk/id/local-authority/00BF,London Borough of Sutton,01/08/2016,6888709,"1,147.00",Fierce Neutral Ltd,16535,"Environment, Housing & Regeneration Directorate",Bed and Breakfast Accommodation,G400
http://statistics.data.gov.uk/id/local-authority/00BF,London Borough of Sutton,01/08/2016,6888710,"1,395.00",Fierce Neutral Ltd,16535,"Environment, Housing & Regeneration Directorate",Bed and Breakfast Accommodation,G400
http://statistics.data.gov.uk/id/local-authority/00BF,London Borough of Sutton,01/08/2016,6888711,"1,147.00",Fierce Neutral Ltd,16535,"Environment, Housing & Regeneration Directorate",Bed and Breakfast Accommodation,G400
http://statistics.data.gov.uk/id/local-authority/00BF,London Borough of Sutton,01/08/2016,6888712,"1,395.00",Fierce Neutral Ltd,16535,"Environment, Housing & Regeneration Directorate",Bed and Breakfast Accommodation,G400
http://statistics.data.gov.uk/id/local-authority/00BF,London Borough of Sutton,01/08/2016,6888716,504,Fierce Neutral Ltd,16535,"Environment, Housing & Regeneration Directorate",Bed and Breakfast Accommodation,G400
http://statistics.data.gov.uk/id/local-authority/00BF,London Borough of Sutton,01/08/2016,6888717,"1,080.00",Fierce Neutral Ltd,16535,"Environment, Housing & Regeneration Directorate",Bed and Breakfast Accommodation,G400
http://statistics.data.gov.uk/id/local-authority/00BF,London Borough of Sutton,01/08/2016,6888718,"1,215.00",Fierce Neutral Ltd,16535,"Environment, Housing & Regeneration Directorate",Bed and Breakfast Accommodation,G400
http://statistics.data.gov.uk/id/local-authority/00BF,London Borough of Sutton,01/08/2016,6888719,"1,395.00",Fierce Neutral Ltd,16535,"Environment, Housing & Regeneration Directorate",Bed and Breakfast Accommodation,G400
http://statistics.data.gov.uk/id/local-authority/00BF,London Borough of Sutton,01/08/2016,6888720,868,Fierce Neutral Ltd,16535,"Environment, Housing & Regeneration Directorate",Bed and Breakfast Accommodation,G400
http://statistics.data.gov.uk/id/local-authority/00BF,London Borough of Sutton,01/08/2016,6888721,"1,147.00",Fierce Neutral Ltd,16535,"Environment, Housing & Regeneration Directorate",Bed and Breakfast Accommodation,G400
http://statistics.data.gov.uk/id/local-authority/00BF,London Borough of Sutton,01/08/2016,6888722,"1,147.00",Fierce Neutral Ltd,16535,"Environment, Housing & Regeneration Directorate",Bed and Breakfast Accommodation,G400
http://statistics.data.gov.uk/id/local-authority/00BF,London Borough of Sutton,01/08/2016,6888723,"1,395.00",Fierce Neutral Ltd,16535,"Environment, Housing & Regeneration Directorate",Bed and Breakfast Accommodation,G400
http://statistics.data.gov.uk/id/local-authority/00BF,London Borough of Sutton,01/08/2016,6888724,"1,395.00",Fierce Neutral Ltd,16535,"Environment, Housing & Regeneration Directorate",Bed and Breakfast Accommodation,G400
http://statistics.data.gov.uk/id/local-authority/00BF,London Borough of Sutton,01/08/2016,6888725,"1,395.00",Fierce Neutral Ltd,16535,"Environment, Housing & Regeneration Directorate",Bed and Breakfast Accommodation,G400
http://statistics.data.gov.uk/id/local-authority/00BF,London Borough of Sutton,01/08/2016,6888726,"1,147.00",Fierce Neutral Ltd,16535,"Environment, Housing & Regeneration Directorate",Bed and Breakfast Accommodation,G400
http://statistics.data.gov.uk/id/local-authority/00BF,London Borough of Sutton,01/08/2016,6888727,999,Fierce Neutral Ltd,16535,"Environment, Housing & Regeneration Directorate",Bed and Breakfast Accommodation,G400
http://statistics.data.gov.uk/id/local-authority/00BF,London Borough of Sutton,01/08/2016,6888733,"1,395.00",Fierce Neutral Ltd,16535,"Environment, Housing & Regeneration Directorate",Bed and Breakfast Accommodation,G400
http://statistics.data.gov.uk/id/local-authority/00BF,London Borough of Sutton,01/08/2016,6888734,"1,395.00",Fierce Neutral Ltd,16535,"Environment, Housing & Regeneration Directorate",Bed and Breakfast Accommodation,G400
http://statistics.data.gov.uk/id/local-authority/00BF,London Borough of Sutton,01/08/2016,6888735,"1,395.00",Fierce Neutral Ltd,16535,"Environment, Housing & Regeneration Directorate",Bed and Breakfast Accommodation,G400
http://statistics.data.gov.uk/id/local-authority/00BF,London Borough of Sutton,01/08/2016,6888736,"1,147.00",Fierce Neutral Ltd,16535,"Environment, Housing & Regeneration Directorate",Bed and Breakfast Accommodation,G400
http://statistics.data.gov.uk/id/local-authority/00BF,London Borough of Sutton,01/08/2016,6888737,"1,023.00",Fierce Neutral Ltd,16535,"Environment, Housing & Regeneration Directorate",Bed and Breakfast Accommodation,G400
http://statistics.data.gov.uk/id/local-authority/00BF,London Borough of Sutton,01/08/2016,6888738,"1,100.50",Fierce Neutral Ltd,16535,"Environment, Housing & Regeneration Directorate",Bed and Breakfast Accommodation,G400
http://statistics.data.gov.uk/id/local-authority/00BF,London Borough of Sutton,01/08/2016,6888739,"1,023.00",Fierce Neutral Ltd,16535,"Environment, Housing & Regeneration Directorate",Bed and Breakfast Accommodation,G400
http://statistics.data.gov.uk/id/local-authority/00BF,London Borough of Sutton,01/08/2016,6888740,"1,125.00",Fierce Neutral Ltd,16535,"Environment, Housing & Regeneration Directorate",Bed and Breakfast Accommodation,G400
http://statistics.data.gov.uk/id/local-authority/00BF,London Borough of Sutton,30/06/2016,6888890,444,Fierce Neutral Ltd,16535,"Environment, Housing & Regeneration Directorate",Bed and Breakfast Accommodation,G400
http://statistics.data.gov.uk/id/local-authority/00BF,London Borough of Sutton,30/06/2016,6888895,"1,350.00",Fierce Neutral Ltd,16535,"Environment, Housing & Regeneration Directorate",Bed and Breakfast Accommodation,G400
http://statistics.data.gov.uk/id/local-authority/00BF,London Borough of Sutton,30/06/2016,6888896,703,Fierce Neutral Ltd,16535,"Environment, Housing & Regeneration Directorate",Bed and Breakfast Accommodation,G400
http://statistics.data.gov.uk/id/local-authority/00BF,London Borough of Sutton,30/06/2016,6888897,703,Fierce Neutral Ltd,16535,"Environment, Housing & Regeneration Directorate",Bed and Breakfast Accommodation,G400
http://statistics.data.gov.uk/id/local-authority/00BF,London Borough of Sutton,30/06/2016,6888899,855,Fierce Neutral Ltd,16535,"Environment, Housing & Regeneration Directorate",Bed and Breakfast Accommodation,G400
http://statistics.data.gov.uk/id/local-authority/00BF,London Borough of Sutton,30/06/2016,6888901,840,Fierce Neutral Ltd,16535,"Environment, Housing & Regeneration Directorate",Bed and Breakfast Accommodation,G400
http://statistics.data.gov.uk/id/local-authority/00BF,London Borough of Sutton,30/06/2016,6888902,"1,110.00",Fierce Neutral Ltd,16535,"Environment, Housing & Regeneration Directorate",Bed and Breakfast Accommodation,G400
http://statistics.data.gov.uk/id/local-authority/00BF,London Borough of Sutton,30/06/2016,6888903,"1,110.00",Fierce Neutral Ltd,16535,"Environment, Housing & Regeneration Directorate",Bed and Breakfast Accommodation,G400
http://statistics.data.gov.uk/id/local-authority/00BF,London Borough of Sutton,30/06/2016,6888908,756,Fierce Neutral Ltd,16535,"Environment, Housing & Regeneration Directorate",Bed and Breakfast Accommodation,G400
http://statistics.data.gov.uk/id/local-authority/00BF,London Borough of Sutton,30/06/2016,6888910,"1,350.00",Fierce Neutral Ltd,16535,"Environment, Housing & Regeneration Directorate",Bed and Breakfast Accommodation,G400
http://statistics.data.gov.uk/id/local-authority/00BF,London Borough of Sutton,30/06/2016,6888911,840,Fierce Neutral Ltd,16535,"Environment, Housing & Regeneration Directorate",Bed and Breakfast Accommodation,G400
http://statistics.data.gov.uk/id/local-authority/00BF,London Borough of Sutton,30/06/2016,6888912,740,Fierce Neutral Ltd,16535,"Environment, Housing & Regeneration Directorate",Bed and Breakfast Accommodation,G400
http://statistics.data.gov.uk/id/local-authority/00BF,London Borough of Sutton,30/06/2016,6888913,"1,350.00",Fierce Neutral Ltd,16535,"Environment, Housing & Regeneration Directorate",Bed and Breakfast Accommodation,G400
http://statistics.data.gov.uk/id/local-authority/00BF,London Borough of Sutton,30/06/2016,6888914,"1,350.00",Fierce Neutral Ltd,16535,"Environment, Housing & Regeneration Directorate",Bed and Breakfast Accommodation,G400
http://statistics.data.gov.uk/id/local-authority/00BF,London Borough of Sutton,30/06/2016,6888915,"1,350.00",Fierce Neutral Ltd,16535,"Environment, Housing & Regeneration Directorate",Bed and Breakfast Accommodation,G400
http://statistics.data.gov.uk/id/local-authority/00BF,London Borough of Sutton,30/06/2016,6888917,"1,036.00",Fierce Neutral Ltd,16535,"Environment, Housing & Regeneration Directorate",Bed and Breakfast Accommodation,G400
http://statistics.data.gov.uk/id/local-authority/00BF,London Borough of Sutton,30/06/2016,6888919,"1,350.00",Fierce Neutral Ltd,16535,"Environment, Housing & Regeneration Directorate",Bed and Breakfast Accommodation,G400
http://statistics.data.gov.uk/id/local-authority/00BF,London Borough of Sutton,30/06/2016,6888920,"1,350.00",Fierce Neutral Ltd,16535,"Environment, Housing & Regeneration Directorate",Bed and Breakfast Accommodation,G400
http://statistics.data.gov.uk/id/local-authority/00BF,London Borough of Sutton,30/06/2016,6888921,"1,800.00",Fierce Neutral Ltd,16535,"Environment, Housing & Regeneration Directorate",Bed and Breakfast Accommodation,G400
http://statistics.data.gov.uk/id/local-authority/00BF,London Borough of Sutton,30/06/2016,6888922,"1,065.00",Fierce Neutral Ltd,16535,"Environment, Housing & Regeneration Directorate",Bed and Breakfast Accommodation,G400
http://statistics.data.gov.uk/id/local-authority/00BF,London Borough of Sutton,30/06/2016,6888923,"1,350.00",Fierce Neutral Ltd,16535,"Environment, Housing & Regeneration Directorate",Bed and Breakfast Accommodation,G400
http://statistics.data.gov.uk/id/local-authority/00BF,London Borough of Sutton,30/06/2016,6888925,"1,350.00",Fierce Neutral Ltd,16535,"Environment, Housing & Regeneration Directorate",Bed and Breakfast Accommodation,G400
http://statistics.data.gov.uk/id/local-authority/00BF,London Borough of Sutton,30/06/2016,6888926,"1,110.00",Fierce Neutral Ltd,16535,"Environment, Housing & Regeneration Directorate",Bed and Breakfast Accommodation,G400
http://statistics.data.gov.uk/id/local-authority/00BF,London Borough of Sutton,30/06/2016,6888929,450,Fierce Neutral Ltd,16535,"Environment, Housing & Regeneration Directorate",Bed and Breakfast Accommodation,G400
http://statistics.data.gov.uk/id/local-authority/00BF,London Borough of Sutton,30/06/2016,6888943,555,Fierce Neutral Ltd,16535,"Environment, Housing & Regeneration Directorate",Bed and Breakfast Accommodation,G400
http://statistics.data.gov.uk/id/local-authority/00BF,London Borough of Sutton,30/06/2016,6888945,814,Fierce Neutral Ltd,16535,"Environment, Housing & Regeneration Directorate",Bed and Breakfast Accommodation,G400
http://statistics.data.gov.uk/id/local-authority/00BF,London Borough of Sutton,30/06/2016,6888946,990,Fierce Neutral Ltd,16535,"Environment, Housing & Regeneration Directorate",Bed and Breakfast Accommodation,G400
http://statistics.data.gov.uk/id/local-authority/00BF,London Borough of Sutton,30/06/2016,6888951,990,Fierce Neutral Ltd,16535,"Environment, Housing & Regeneration Directorate",Bed and Breakfast Accommodation,G400
http://statistics.data.gov.uk/id/local-authority/00BF,London Borough of Sutton,30/06/2016,6888952,"1,350.00",Fierce Neutral Ltd,16535,"Environment, Housing & Regeneration Directorate",Bed and Breakfast Accommodation,G400
http://statistics.data.gov.uk/id/local-authority/00BF,London Borough of Sutton,30/06/2016,6888953,924,Fierce Neutral Ltd,16535,"Environment, Housing & Regeneration Directorate",Bed and Breakfast Accommodation,G400
http://statistics.data.gov.uk/id/local-authority/00BF,London Borough of Sutton,30/06/2016,6888981,518,Fierce Neutral Ltd,16535,"Environment, Housing & Regeneration Directorate",Bed and Breakfast Accommodation,G400
http://statistics.data.gov.uk/id/local-authority/00BF,London Borough of Sutton,30/06/2016,6888982,"1,110.00",Fierce Neutral Ltd,16535,"Environment, Housing & Regeneration Directorate",Bed and Breakfast Accommodation,G400
http://statistics.data.gov.uk/id/local-authority/00BF,London Borough of Sutton,30/06/2016,6888983,"1,305.00",Fierce Neutral Ltd,16535,"Environment, Housing & Regeneration Directorate",Bed and Breakfast Accommodation,G400
http://statistics.data.gov.uk/id/local-authority/00BF,London Borough of Sutton,12/08/2016,4973434,"3,438.00",Fircroft Homes,11660,Peoples Services Directorate,Residential Care - Ext Provider,G310
http://statistics.data.gov.uk/id/local-authority/00BF,London Borough of Sutton,12/08/2016,4973719,"3,611.85",Firtree House Nursing Home,11653,Peoples Services Directorate,Nursing Care - 3rd party top up payment,G360
http://statistics.data.gov.uk/id/local-authority/00BF,London Borough of Sutton,12/08/2016,4973868,"2,600.00",Firtree House Nursing Home,11653,Peoples Services Directorate,Nursing Care - Ext Provider,G311
http://statistics.data.gov.uk/id/local-authority/00BF,London Borough of Sutton,14/03/2016,6888488,672,Fit for Sport Ltd,24693,Peoples Services Directorate,Play Groups,G322
http://statistics.data.gov.uk/id/local-authority/00BF,London Borough of Sutton,27/07/2016,6888500,"1,008.00",Fit for Sport Ltd,24693,Peoples Services Directorate,Play Groups,G322
http://statistics.data.gov.uk/id/local-authority/00BF,London Borough of Sutton,01/07/2016,4973099,"1,224.28",Fitzroy,11657,Peoples Services Directorate,Day Care,G337
http://statistics.data.gov.uk/id/local-authority/00BF,London Borough of Sutton,12/08/2016,4973457,"3,758.08",Fitzroy,11657,Peoples Services Directorate,Residential Care - Ext Provider,G310
http://statistics.data.gov.uk/id/local-authority/00BF,London Borough of Sutton,01/08/2016,4979694,"1,224.28",Fitzroy,11657,Peoples Services Directorate,Day Care,G337
http://statistics.data.gov.uk/id/local-authority/00BF,London Borough of Sutton,26/08/2015,6889680,850,Fiveways Municipal Vehicle Hire Ltd,11658,"Environment, Housing & Regeneration Directorate",Centralised Transport Hire,E068
http://statistics.data.gov.uk/id/local-authority/00BF,London Borough of Sutton,01/09/2015,6889681,850,Fiveways Municipal Vehicle Hire Ltd,11658,"Environment, Housing & Regeneration Directorate",Centralised Transport Hire,E068
http://statistics.data.gov.uk/id/local-authority/00BF,London Borough of Sutton,02/09/2015,6889682,850,Fiveways Municipal Vehicle Hire Ltd,11658,"Environment, Housing & Regeneration Directorate",Centralised Transport Hire,E068
http://statistics.data.gov.uk/id/local-authority/00BF,London Borough of Sutton,07/09/2015,6889683,850,Fiveways Municipal Vehicle Hire Ltd,11658,"Environment, Housing & Regeneration Directorate",Centralised Transport Hire,E068
http://statistics.data.gov.uk/id/local-authority/00BF,London Borough of Sutton,07/09/2015,6889684,850,Fiveways Municipal Vehicle Hire Ltd,11658,"Environment, Housing & Regeneration Directorate",Centralised Transport Hire,E068
http://statistics.data.gov.uk/id/local-authority/00BF,London Borough of Sutton,23/09/2015,6889685,850,Fiveways Municipal Vehicle Hire Ltd,11658,"Environment, Housing & Regeneration Directorate",Centralised Transport Hire,E068
http://statistics.data.gov.uk/id/local-authority/00BF,London Borough of Sutton,23/09/2015,6889686,850,Fiveways Municipal Vehicle Hire Ltd,11658,"Environment, Housing & Regeneration Directorate",Centralised Transport Hire,E068
http://statistics.data.gov.uk/id/local-authority/00BF,London Borough of Sutton,24/09/2015,6889687,850,Fiveways Municipal Vehicle Hire Ltd,11658,"Environment, Housing & Regeneration Directorate",Centralised Transport Hire,E068
http://statistics.data.gov.uk/id/local-authority/00BF,London Borough of Sutton,07/09/2015,6889688,680,Fiveways Municipal Vehicle Hire Ltd,11658,"Environment, Housing & Regeneration Directorate",Centralised Transport Hire,E068
http://statistics.data.gov.uk/id/local-authority/00BF,London Borough of Sutton,07/09/2015,6889689,850,Fiveways Municipal Vehicle Hire Ltd,11658,"Environment, Housing & Regeneration Directorate",Centralised Transport Hire,E068
http://statistics.data.gov.uk/id/local-authority/00BF,London Borough of Sutton,23/09/2015,6889690,850,Fiveways Municipal Vehicle Hire Ltd,11658,"Environment, Housing & Regeneration Directorate",Centralised Transport Hire,E068
http://statistics.data.gov.uk/id/local-authority/00BF,London Borough of Sutton,23/09/2015,6889691,850,Fiveways Municipal Vehicle Hire Ltd,11658,"Environment, Housing & Regeneration Directorate",Centralised Transport Hire,E068
http://statistics.data.gov.uk/id/local-authority/00BF,London Borough of Sutton,24/09/2015,6889692,850,Fiveways Municipal Vehicle Hire Ltd,11658,"Environment, Housing & Regeneration Directorate",Centralised Transport Hire,E068
http://statistics.data.gov.uk/id/local-authority/00BF,London Borough of Sutton,21/01/2016,6889693,510,Fiveways Municipal Vehicle Hire Ltd,11658,"Environment, Housing & Regeneration Directorate",Centralised Transport Hire,E068
http://statistics.data.gov.uk/id/local-authority/00BF,London Borough of Sutton,26/08/2015,6889694,960,Fiveways Municipal Vehicle Hire Ltd,11658,"Environment, Housing & Regeneration Directorate",Centralised Transport Hire,E068
http://statistics.data.gov.uk/id/local-authority/00BF,London Borough of Sutton,01/09/2015,6889695,960,Fiveways Municipal Vehicle Hire Ltd,11658,"Environment, Housing & Regeneration Directorate",Centralised Transport Hire,E068
http://statistics.data.gov.uk/id/local-authority/00BF,London Borough of Sutton,02/09/2015,6889696,960,Fiveways Municipal Vehicle Hire Ltd,11658,"Environment, Housing & Regeneration Directorate",Centralised Transport Hire,E068
http://statistics.data.gov.uk/id/local-authority/00BF,London Borough of Sutton,07/09/2015,6889697,960,Fiveways Municipal Vehicle Hire Ltd,11658,"Environment, Housing & Regeneration Directorate",Centralised Transport Hire,E068
http://statistics.data.gov.uk/id/local-authority/00BF,London Borough of Sutton,07/09/2015,6889699,640,Fiveways Municipal Vehicle Hire Ltd,11658,"Environment, Housing & Regeneration Directorate",Centralised Transport Hire,E068
http://statistics.data.gov.uk/id/local-authority/00BF,London Borough of Sutton,23/09/2015,6889700,960,Fiveways Municipal Vehicle Hire Ltd,11658,"Environment, Housing & Regeneration Directorate",Centralised Transport Hire,E068
http://statistics.data.gov.uk/id/local-authority/00BF,London Borough of Sutton,23/09/2015,6889701,960,Fiveways Municipal Vehicle Hire Ltd,11658,"Environment, Housing & Regeneration Directorate",Centralised Transport Hire,E068
http://statistics.data.gov.uk/id/local-authority/00BF,London Borough of Sutton,24/09/2015,6889702,960,Fiveways Municipal Vehicle Hire Ltd,11658,"Environment, Housing & Regeneration Directorate",Centralised Transport Hire,E068
http://statistics.data.gov.uk/id/local-authority/00BF,London Borough of Sutton,08/10/2015,6889704,960,Fiveways Municipal Vehicle Hire Ltd,11658,"Environment, Housing & Regeneration Directorate",Centralised Transport Hire,E068
http://statistics.data.gov.uk/id/local-authority/00BF,London Borough of Sutton,09/10/2015,6889705,960,Fiveways Municipal Vehicle Hire Ltd,11658,"Environment, Housing & Regeneration Directorate",Centralised Transport Hire,E068
http://statistics.data.gov.uk/id/local-authority/00BF,London Borough of Sutton,08/08/2016,6888916,995.17,Forestdale Business Services Ltd,10578,"Environment, Housing & Regeneration Directorate",Materials - General,F100
http://statistics.data.gov.uk/id/local-authority/00BF,London Borough of Sutton,31/07/2016,4980261,"5,318.58",Fostering For You,24993,Peoples Services Directorate,Foster Parents,G326
http://statistics.data.gov.uk/id/local-authority/00BF,London Borough of Sutton,31/07/2016,4980270,"3,232.86",Fostering For You,24993,Peoples Services Directorate,Foster Parents,G326
http://statistics.data.gov.uk/id/local-authority/00BF,London Borough of Sutton,31/07/2016,4980271,"3,232.86",Fostering For You,24993,Peoples Services Directorate,Foster Parents,G326
http://statistics.data.gov.uk/id/local-authority/00BF,London Borough of Sutton,01/08/2016,5014587,-511.54,Four Seasons Ltd(Granby One) Re Rowan House,28897,Peoples Services Directorate,Residential Care-Children,G330
http://statistics.data.gov.uk/id/local-authority/00BF,London Borough of Sutton,01/08/2016,6888610,511.54,Four Seasons Ltd(Granby One) Re Rowan House,28897,Peoples Services Directorate,Residential Care-Children,G330
http://statistics.data.gov.uk/id/local-authority/00BF,London Borough of Sutton,10/08/2016,6889099,"1,000.00",Redacted,26664,Peoples Services Directorate,Carers Flexible Fund,H257
http://statistics.data.gov.uk/id/local-authority/00BF,London Borough of Sutton,12/08/2016,4973419,762.86,Francesca Hooper t/a Marston Avenue,28564,Peoples Services Directorate,One to One Care,G335
http://statistics.data.gov.uk/id/local-authority/00BF,London Borough of Sutton,12/08/2016,4973419,"7,950.00",Francesca Hooper t/a Marston Avenue,28564,Peoples Services Directorate,Respite Care - Residential,G327
http://statistics.data.gov.uk/id/local-authority/00BF,London Borough of Sutton,18/08/2016,6890291,700,Freight Transport Association,11762,"Environment, Housing & Regeneration Directorate",General Office Expenses,F235
http://statistics.data.gov.uk/id/local-authority/00BF,London Borough of Sutton,24/06/2015,6890068,"2,700.00",Friends of Oaks Park,25949,"Environment, Housing & Regeneration Directorate",Notices And Signs,Y445
http://statistics.data.gov.uk/id/local-authority/00BF,London Borough of Sutton,12/08/2016,4973504,"2,928.00",Friends Of The Elderly,11766,Peoples Services Directorate,Residential Care - Ext Provider,G310
http://statistics.data.gov.uk/id/local-authority/00BF,London Borough of Sutton,12/08/2016,4973541,"1,840.00",Friends Of The Elderly,11766,Peoples Services Directorate,Residential Care - Ext Provider,G310
http://statistics.data.gov.uk/id/local-authority/00BF,London Borough of Sutton,12/08/2016,4973573,"1,692.00",Friends Of The Elderly,11766,Peoples Services Directorate,Residential Care - Ext Provider,G310
http://statistics.data.gov.uk/id/local-authority/00BF,London Borough of Sutton,12/08/2016,4973655,"1,660.00",Friends Of The Elderly,11766,Peoples Services Directorate,Residential Care - Ext Provider,G310
http://statistics.data.gov.uk/id/local-authority/00BF,London Borough of Sutton,12/08/2016,4973677,"1,674.20",Friends Of The Elderly,11766,Peoples Services Directorate,Residential Care - Ext Provider,G310
http://statistics.data.gov.uk/id/local-authority/00BF,London Borough of Sutton,12/08/2016,4973713,"1,692.00",Friends Of The Elderly,11766,Peoples Services Directorate,Residential Care - Ext Provider,G310
http://statistics.data.gov.uk/id/local-authority/00BF,London Borough of Sutton,08/08/2016,4979647,"5,723.20",Frontier Support Services,28792,Peoples Services Directorate,Supported Living - Ext Provider,G306
http://statistics.data.gov.uk/id/local-authority/00BF,London Borough of Sutton,31/07/2016,6887938,"51,140.80",G Burley & Sons Ltd,10701,"Environment, Housing & Regeneration Directorate",Grass Verges - Maintenance,D561
http://statistics.data.gov.uk/id/local-authority/00BF,London Borough of Sutton,29/07/2016,6888663,"1,764.00",G Burley & Sons Ltd,10701,Peoples Services Directorate,Site Clearance,Y210
http://statistics.data.gov.uk/id/local-authority/00BF,London Borough of Sutton,12/08/2016,4973527,"1,100.00",Gable Lodge,11789,Peoples Services Directorate,Interim Placements - Ext Provider,G317
http://statistics.data.gov.uk/id/local-authority/00BF,London Borough of Sutton,12/08/2016,4973757,"2,294.12",Gable Lodge,11789,Peoples Services Directorate,Nursing Care - Ext Provider,G311
http://statistics.data.gov.uk/id/local-authority/00BF,London Borough of Sutton,12/08/2016,4973548,"3,000.00",Galleon Care Homes Ltd,23693,Peoples Services Directorate,Nursing Care - Ext Provider,G311
http://statistics.data.gov.uk/id/local-authority/00BF,London Borough of Sutton,07/07/2016,6889426,522.56,Gas Advisory Service Ltd,97313,Peoples Services Directorate,External Fees  - Other,Y130
http://statistics.data.gov.uk/id/local-authority/00BF,London Borough of Sutton,12/08/2016,4973730,"1,744.00",Gate Lodge Care Home,16164,Peoples Services Directorate,Residential Care - Ext Provider,G310
http://statistics.data.gov.uk/id/local-authority/00BF,London Borough of Sutton,12/08/2016,4973872,"2,400.00",Gate Lodge Care Home,16164,Peoples Services Directorate,Interim Placements - Ext Provider,G317
http://statistics.data.gov.uk/id/local-authority/00BF,London Borough of Sutton,31/07/2016,6890050,"10,999.00",Gatenby Sanderson,18532,Peoples Services Directorate,Agency Staff - Other,A301
http://statistics.data.gov.uk/id/local-authority/00BF,London Borough of Sutton,11/06/2016,6888595,450,GB Property Services,97013,Peoples Services Directorate,Responsive Repairs Contract,D150
http://statistics.data.gov.uk/id/local-authority/00BF,London Borough of Sutton,03/08/2016,4972322,776.5,Redacted,26327,Peoples Services Directorate,Carers Flexible Fund,H257
http://statistics.data.gov.uk/id/local-authority/00BF,London Borough of Sutton,22/07/2016,6888361,550,Go Plant Environmental,11867,"Environment, Housing & Regeneration Directorate",Centralised Transport Hire,E068
http://statistics.data.gov.uk/id/local-authority/00BF,London Borough of Sutton,22/07/2016,6888365,650,Go Plant Environmental,11867,"Environment, Housing & Regeneration Directorate",Centralised Transport Hire,E068
http://statistics.data.gov.uk/id/local-authority/00BF,London Borough of Sutton,22/07/2016,6888366,650,Go Plant Environmental,11867,"Environment, Housing & Regeneration Directorate",Centralised Transport Hire,E068
http://statistics.data.gov.uk/id/local-authority/00BF,London Borough of Sutton,22/07/2016,6888369,585,Go Plant Environmental,11867,"Environment, Housing & Regeneration Directorate",Centralised Transport Hire,E068
http://statistics.data.gov.uk/id/local-authority/00BF,London Borough of Sutton,29/07/2016,6888904,585,Go Plant Environmental,11867,"Environment, Housing & Regeneration Directorate",Centralised Transport Hire,E068
http://statistics.data.gov.uk/id/local-authority/00BF,London Borough of Sutton,29/07/2016,6888958,550,Go Plant Environmental,11867,"Environment, Housing & Regeneration Directorate",Centralised Transport Hire,E068
http://statistics.data.gov.uk/id/local-authority/00BF,London Borough of Sutton,05/08/2016,6889393,"-1,725.00",Go Plant Environmental,11867,"Environment, Housing & Regeneration Directorate",Centralised Transport Hire,E068
http://statistics.data.gov.uk/id/local-authority/00BF,London Borough of Sutton,05/08/2016,6889465,585,Go Plant Environmental,11867,"Environment, Housing & Regeneration Directorate",Centralised Transport Hire,E068
http://statistics.data.gov.uk/id/local-authority/00BF,London Borough of Sutton,05/08/2016,6889467,650,Go Plant Environmental,11867,"Environment, Housing & Regeneration Directorate",Centralised Transport Hire,E068
http://statistics.data.gov.uk/id/local-authority/00BF,London Borough of Sutton,05/08/2016,6889468,650,Go Plant Environmental,11867,"Environment, Housing & Regeneration Directorate",Centralised Transport Hire,E068
http://statistics.data.gov.uk/id/local-authority/00BF,London Borough of Sutton,05/08/2016,6889472,550,Go Plant Environmental,11867,"Environment, Housing & Regeneration Directorate",Centralised Transport Hire,E068
http://statistics.data.gov.uk/id/local-authority/00BF,London Borough of Sutton,12/08/2016,6889972,650,Go Plant Environmental,11867,"Environment, Housing & Regeneration Directorate",Centralised Transport Hire,E068
http://statistics.data.gov.uk/id/local-authority/00BF,London Borough of Sutton,12/08/2016,6889973,650,Go Plant Environmental,11867,"Environment, Housing & Regeneration Directorate",Centralised Transport Hire,E068
http://statistics.data.gov.uk/id/local-authority/00BF,London Borough of Sutton,12/08/2016,6889975,585,Go Plant Environmental,11867,"Environment, Housing & Regeneration Directorate",Centralised Transport Hire,E068
http://statistics.data.gov.uk/id/local-authority/00BF,London Borough of Sutton,12/08/2016,6889978,550,Go Plant Environmental,11867,"Environment, Housing & Regeneration Directorate",Centralised Transport Hire,E068
http://statistics.data.gov.uk/id/local-authority/00BF,London Borough of Sutton,26/04/2016,6890149,"4,200.00",Goss Interactive Ltd,20996,Chief Executive's Directorate,Fees - Computer Software,F384
http://statistics.data.gov.uk/id/local-authority/00BF,London Borough of Sutton,12/08/2016,4973535,"3,238.40",Grange Cottage Ltd,11892,Peoples Services Directorate,Residential Care - Ext Provider,G310
http://statistics.data.gov.uk/id/local-authority/00BF,London Borough of Sutton,12/08/2016,4973581,"1,882.40",Grange Cottage Ltd,11892,Peoples Services Directorate,Residential Care - Ext Provider,G310
http://statistics.data.gov.uk/id/local-authority/00BF,London Borough of Sutton,12/08/2016,4973782,"1,882.40",Grange Cottage Ltd,11892,Peoples Services Directorate,Residential Care - Ext Provider,G310
http://statistics.data.gov.uk/id/local-authority/00BF,London Borough of Sutton,12/08/2016,4973878,"2,600.00",Grange Cottage Ltd,11892,Peoples Services Directorate,Residential Care - Ext Provider,G310
http://statistics.data.gov.uk/id/local-authority/00BF,London Borough of Sutton,12/08/2016,4973625,"2,274.96",Grasmere Rest Home,11893,Peoples Services Directorate,Residential Care - Ext Provider,G310
http://statistics.data.gov.uk/id/local-authority/00BF,London Borough of Sutton,12/08/2016,4973629,"1,680.16",Grasmere Rest Home,11893,Peoples Services Directorate,Residential Care - Ext Provider,G310
http://statistics.data.gov.uk/id/local-authority/00BF,London Borough of Sutton,12/08/2016,4973648,"1,801.36",Grasmere Rest Home,11893,Peoples Services Directorate,Residential Care - Ext Provider,G310
http://statistics.data.gov.uk/id/local-authority/00BF,London Borough of Sutton,12/08/2016,4973675,"2,408.56",Grasmere Rest Home,11893,Peoples Services Directorate,Interim Placements - Ext Provider,G317
http://statistics.data.gov.uk/id/local-authority/00BF,London Borough of Sutton,12/08/2016,4973700,"1,764.92",Grasmere Rest Home,11893,Peoples Services Directorate,Residential Care - Ext Provider,G310
http://statistics.data.gov.uk/id/local-authority/00BF,London Borough of Sutton,12/08/2016,4973721,"1,712.32",Grasmere Rest Home,11893,Peoples Services Directorate,Residential Care - Ext Provider,G310
http://statistics.data.gov.uk/id/local-authority/00BF,London Borough of Sutton,12/08/2016,4973787,"1,712.32",Grasmere Rest Home,11893,Peoples Services Directorate,Residential Care - Ext Provider,G310
http://statistics.data.gov.uk/id/local-authority/00BF,London Borough of Sutton,12/08/2016,4973796,"1,801.36",Grasmere Rest Home,11893,Peoples Services Directorate,Residential Care - Ext Provider,G310
http://statistics.data.gov.uk/id/local-authority/00BF,London Borough of Sutton,12/08/2016,4973827,"2,700.00",Grasmere Rest Home,11893,Peoples Services Directorate,Residential Care - Ext Provider,G310
http://statistics.data.gov.uk/id/local-authority/00BF,London Borough of Sutton,12/08/2016,4973841,"2,700.00",Grasmere Rest Home,11893,Peoples Services Directorate,Residential Care - Ext Provider,G310
http://statistics.data.gov.uk/id/local-authority/00BF,London Borough of Sutton,02/08/2016,6888471,"2,000.00",Green Machines Sweepers Ltd,26278,"Environment, Housing & Regeneration Directorate",Centralised Transport Hire,E068
http://statistics.data.gov.uk/id/local-authority/00BF,London Borough of Sutton,02/08/2016,6888472,"2,000.00",Green Machines Sweepers Ltd,26278,"Environment, Housing & Regeneration Directorate",Centralised Transport Hire,E068
http://statistics.data.gov.uk/id/local-authority/00BF,London Borough of Sutton,12/08/2016,4973431,"5,616.08",Greenfield Care Homes Limited,22712,Peoples Services Directorate,Residential Care - Ext Provider,G310
http://statistics.data.gov.uk/id/local-authority/00BF,London Borough of Sutton,11/08/2016,6889290,"1,820.00",Greenham Trading Ltd,11887,"Environment, Housing & Regeneration Directorate",Materials - General,F100
http://statistics.data.gov.uk/id/local-authority/00BF,London Borough of Sutton,22/08/2016,4975801,"1,206.00",Greenwich Leisure Ltd,19543,Peoples Services Directorate,Books,F006
http://statistics.data.gov.uk/id/local-authority/00BF,London Borough of Sutton,01/07/2016,6888511,"2,938.33",Guys and St Thomas NHS Foundation Trust,25430,Peoples Services Directorate,Provider Contract Payments,F470
http://statistics.data.gov.uk/id/local-authority/00BF,London Borough of Sutton,10/08/2016,6889643,"-1,237.37",Guys and St Thomas NHS Foundation Trust,25430,Peoples Services Directorate,Provider Contract Payments,F470
http://statistics.data.gov.uk/id/local-authority/00BF,London Borough of Sutton,29/07/2016,6889163,"14,097.60",Gva Grimley Ltd T/A Bilfinger GVA,11935,"Environment, Housing & Regeneration Directorate",Fees - Consultants (Ad Hoc),F283
http://statistics.data.gov.uk/id/local-authority/00BF,London Borough of Sutton,29/07/2016,6889163,"7,262.40",Gva Grimley Ltd T/A Bilfinger GVA,11935,"Environment, Housing & Regeneration Directorate",Transfers to Other Schemes,A933
http://statistics.data.gov.uk/id/local-authority/00BF,London Borough of Sutton,04/08/2016,6888641,480,Hackbridge & Beddington Corner Ndg,26678,"Environment, Housing & Regeneration Directorate",Assistance to Voluntary Organisations,F471
http://statistics.data.gov.uk/id/local-authority/00BF,London Borough of Sutton,29/07/2016,6888215,"2,002.92",Haddon Electrical Electrical Ltd,97640,Peoples Services Directorate,Building Works -Main Contractor,Y350
http://statistics.data.gov.uk/id/local-authority/00BF,London Borough of Sutton,29/07/2016,6888215,500.74,Haddon Electrical Electrical Ltd,97640,Peoples Services Directorate,Building Works -Main Contractor,Y350
http://statistics.data.gov.uk/id/local-authority/00BF,London Borough of Sutton,05/08/2016,6889810,874.58,Haddon Electrical Electrical Ltd,97640,Peoples Services Directorate,Building Works -Main Contractor,Y350
http://statistics.data.gov.uk/id/local-authority/00BF,London Borough of Sutton,29/07/2016,6890177,"2,112.74",Haddon Electrical Electrical Ltd,97640,Peoples Services Directorate,Building Works -Main Contractor,Y350
http://statistics.data.gov.uk/id/local-authority/00BF,London Borough of Sutton,29/07/2016,6890177,528.18,Haddon Electrical Electrical Ltd,97640,Peoples Services Directorate,Building Works -Main Contractor,Y350
http://statistics.data.gov.uk/id/local-authority/00BF,London Borough of Sutton,01/08/2016,6890182,"1,692.74",Haddon Electrical Electrical Ltd,97640,Peoples Services Directorate,Building Works -Main Contractor,Y350
http://statistics.data.gov.uk/id/local-authority/00BF,London Borough of Sutton,01/08/2016,6890182,423.18,Haddon Electrical Electrical Ltd,97640,Peoples Services Directorate,Building Works -Main Contractor,Y350
http://statistics.data.gov.uk/id/local-authority/00BF,London Borough of Sutton,01/08/2016,6890183,"2,012.74",Haddon Electrical Electrical Ltd,97640,Peoples Services Directorate,Building Works -Main Contractor,Y350
http://statistics.data.gov.uk/id/local-authority/00BF,London Borough of Sutton,01/08/2016,6890183,503.18,Haddon Electrical Electrical Ltd,97640,Peoples Services Directorate,Building Works -Main Contractor,Y350
http://statistics.data.gov.uk/id/local-authority/00BF,London Borough of Sutton,01/08/2016,6890184,"2,285.47",Haddon Electrical Electrical Ltd,97640,Peoples Services Directorate,Building Works -Main Contractor,Y350
http://statistics.data.gov.uk/id/local-authority/00BF,London Borough of Sutton,01/08/2016,6890184,571.37,Haddon Electrical Electrical Ltd,97640,Peoples Services Directorate,Building Works -Main Contractor,Y350
http://statistics.data.gov.uk/id/local-authority/00BF,London Borough of Sutton,26/07/2016,6887991,"5,000.00",Hags-SMP Ltd,97608,"Environment, Housing & Regeneration Directorate",Furniture & Fittings,Y500
http://statistics.data.gov.uk/id/local-authority/00BF,London Borough of Sutton,26/07/2016,6887991,500,Hags-SMP Ltd,97608,"Environment, Housing & Regeneration Directorate",Repairs to Playground / Sports Equipment,F031
http://statistics.data.gov.uk/id/local-authority/00BF,London Borough of Sutton,09/08/2016,6889441,"19,673.66",Hall Fuels Ltd,11982,"Environment, Housing & Regeneration Directorate",Fuel Etc,E030
http://statistics.data.gov.uk/id/local-authority/00BF,London Borough of Sutton,18/08/2016,6890086,"1,030.18",Hall Fuels Ltd,11982,"Environment, Housing & Regeneration Directorate",Fuel Etc,E030
http://statistics.data.gov.uk/id/local-authority/00BF,London Borough of Sutton,10/06/2016,6889012,490,Happy Computers Ltd,28553,Resources Directorate,Training - Course Fees,A520
http://statistics.data.gov.uk/id/local-authority/00BF,London Borough of Sutton,10/06/2016,6889013,490,Happy Computers Ltd,28553,Resources Directorate,Training - Course Fees,A520
http://statistics.data.gov.uk/id/local-authority/00BF,London Borough of Sutton,28/07/2016,6890112,"5,000.00",Haptic Architects,25995,"Environment, Housing & Regeneration Directorate",Fees - Consultants (Ad Hoc),F283
http://statistics.data.gov.uk/id/local-authority/00BF,London Borough of Sutton,24/08/2016,6890555,"5,000.00",Haptic Architects,25995,"Environment, Housing & Regeneration Directorate",Other Services,F340
http://statistics.data.gov.uk/id/local-authority/00BF,London Borough of Sutton,12/08/2016,4973666,"3,316.88",Haydon Park Lodge,12002,Peoples Services Directorate,Residential Care - Ext Provider,G310
http://statistics.data.gov.uk/id/local-authority/00BF,London Borough of Sutton,12/08/2016,4973680,"4,263.00",Haydon Park Lodge,12002,Peoples Services Directorate,Residential Care - Ext Provider,G310
http://statistics.data.gov.uk/id/local-authority/00BF,London Borough of Sutton,29/06/2016,6886564,"1,575.00",Hays Specialist Recruitment Ltd,18016,Peoples Services Directorate,Agency Staff - Adecco,A300
http://statistics.data.gov.uk/id/local-authority/00BF,London Borough of Sutton,17/06/2016,6886565,"1,260.00",Hays Specialist Recruitment Ltd,18016,Peoples Services Directorate,Agency Staff - Adecco,A300
http://statistics.data.gov.uk/id/local-authority/00BF,London Borough of Sutton,06/07/2016,6887028,630,Hays Specialist Recruitment Ltd,18016,Peoples Services Directorate,Agency Staff - Adecco,A300
http://statistics.data.gov.uk/id/local-authority/00BF,London Borough of Sutton,01/07/2016,6887095,609.8,Hays Specialist Recruitment Ltd,18016,Resources Directorate,Consultants/Hons,A310
http://statistics.data.gov.uk/id/local-authority/00BF,London Borough of Sutton,22/07/2016,6888001,"1,351.52",Hays Specialist Recruitment Ltd,18016,Resources Directorate,Agency Staff - Adecco,A300
http://statistics.data.gov.uk/id/local-authority/00BF,London Borough of Sutton,20/07/2016,6888122,"1,260.00",Hays Specialist Recruitment Ltd,18016,Peoples Services Directorate,Agency Staff - Adecco,A300
http://statistics.data.gov.uk/id/local-authority/00BF,London Borough of Sutton,27/07/2016,6888410,"1,510.52",Hays Specialist Recruitment Ltd,18016,Resources Directorate,Agency Staff - Adecco,A300
http://statistics.data.gov.uk/id/local-authority/00BF,London Borough of Sutton,25/07/2016,6888420,"1,575.00",Hays Specialist Recruitment Ltd,18016,Peoples Services Directorate,Agency Staff - Adecco,A300
http://statistics.data.gov.uk/id/local-authority/00BF,London Borough of Sutton,20/07/2016,6889154,579.31,Hays Specialist Recruitment Ltd,18016,Resources Directorate,Consultants/Hons,A310
http://statistics.data.gov.uk/id/local-authority/00BF,London Borough of Sutton,29/07/2016,6889155,548.82,Hays Specialist Recruitment Ltd,18016,Resources Directorate,Consultants/Hons,A310
http://statistics.data.gov.uk/id/local-authority/00BF,London Borough of Sutton,15/07/2016,6889173,609.8,Hays Specialist Recruitment Ltd,18016,Resources Directorate,Consultants/Hons,A310
http://statistics.data.gov.uk/id/local-authority/00BF,London Borough of Sutton,08/08/2016,6889346,"1,575.00",Hays Specialist Recruitment Ltd,18016,Peoples Services Directorate,Agency Staff - Adecco,A300
http://statistics.data.gov.uk/id/local-authority/00BF,London Borough of Sutton,08/08/2016,6889505,"1,575.00",Hays Specialist Recruitment Ltd,18016,Peoples Services Directorate,Agency Staff - Adecco,A300
http://statistics.data.gov.uk/id/local-authority/00BF,London Borough of Sutton,17/08/2016,6889993,"1,371.39",Hays Specialist Recruitment Ltd,18016,Resources Directorate,Agency Staff - Adecco,A300
http://statistics.data.gov.uk/id/local-authority/00BF,London Borough of Sutton,17/08/2016,6889994,"1,510.52",Hays Specialist Recruitment Ltd,18016,Resources Directorate,Agency Staff - Adecco,A300
http://statistics.data.gov.uk/id/local-authority/00BF,London Borough of Sutton,17/08/2016,6889995,"1,232.26",Hays Specialist Recruitment Ltd,18016,Resources Directorate,Agency Staff - Adecco,A300
http://statistics.data.gov.uk/id/local-authority/00BF,London Borough of Sutton,23/08/2016,6890454,"3,126.00",Hays Specialist Recruitment Ltd,18016,Peoples Services Directorate,Agency Staff - Other,A301
http://statistics.data.gov.uk/id/local-authority/00BF,London Borough of Sutton,20/07/2016,6890103,"3,621.07",HCL Social Care Ltd,26240,Peoples Services Directorate,Agency Staff - Adecco,A300
http://statistics.data.gov.uk/id/local-authority/00BF,London Borough of Sutton,20/07/2016,6890104,"3,883.34",HCL Social Care Ltd,26240,Peoples Services Directorate,Agency Staff - Adecco,A300
http://statistics.data.gov.uk/id/local-authority/00BF,London Borough of Sutton,01/07/2016,6886311,"1,649.75",Health Management Ltd,12086,Resources Directorate,Contractual Consultant Fees,G430
http://statistics.data.gov.uk/id/local-authority/00BF,London Borough of Sutton,27/07/2016,6889353,"1,780.60",Health Management Ltd,12086,Resources Directorate,Contractual Consultant Fees,G430
http://statistics.data.gov.uk/id/local-authority/00BF,London Borough of Sutton,31/05/2016,6889361,"3,340.00",Health Management Ltd,12086,Resources Directorate,Contractual Consultant Fees,G430
http://statistics.data.gov.uk/id/local-authority/00BF,London Borough of Sutton,31/05/2016,6889362,"1,353.60",Health Management Ltd,12086,Resources Directorate,Contractual Consultant Fees,G430
http://statistics.data.gov.uk/id/local-authority/00BF,London Borough of Sutton,28/07/2016,6889906,"1,888.00",Health Management Ltd,12086,Resources Directorate,Contractual Consultant Fees,G430
http://statistics.data.gov.uk/id/local-authority/00BF,London Borough of Sutton,28/07/2016,6889907,"1,681.50",Health Management Ltd,12086,Resources Directorate,Contractual Consultant Fees,G430
http://statistics.data.gov.uk/id/local-authority/00BF,London Borough of Sutton,28/07/2016,6889908,"1,312.00",Health Management Ltd,12086,Resources Directorate,Contractual Consultant Fees,G430
http://statistics.data.gov.uk/id/local-authority/00BF,London Borough of Sutton,02/07/2016,6889909,"1,168.50",Health Management Ltd,12086,Resources Directorate,Contractual Consultant Fees,G430
http://statistics.data.gov.uk/id/local-authority/00BF,London Borough of Sutton,27/07/2016,6889910,"1,461.80",Health Management Ltd,12086,Resources Directorate,Contractual Consultant Fees,G430
http://statistics.data.gov.uk/id/local-authority/00BF,London Borough of Sutton,01/07/2016,6889912,"1,772.80",Health Management Ltd,12086,Resources Directorate,Contractual Consultant Fees,G430
http://statistics.data.gov.uk/id/local-authority/00BF,London Borough of Sutton,31/05/2016,6889913,"4,883.00",Health Management Ltd,12086,Resources Directorate,Contractual Consultant Fees,G430
http://statistics.data.gov.uk/id/local-authority/00BF,London Borough of Sutton,31/07/2016,4980280,"13,464.36",Heartwood Care,28813,Peoples Services Directorate,Residential Care-Children,G330
http://statistics.data.gov.uk/id/local-authority/00BF,London Borough of Sutton,31/07/2016,4980281,"15,500.00",Heartwood Care,28813,Peoples Services Directorate,Residential Care-Children,G330
http://statistics.data.gov.uk/id/local-authority/00BF,London Borough of Sutton,31/07/2016,4980282,"4,500.00",Heartwood Care,28813,Peoples Services Directorate,Residential Care-Children,G330
http://statistics.data.gov.uk/id/local-authority/00BF,London Borough of Sutton,31/07/2016,4980296,"1,662.18",Heartwood Care,28813,Peoples Services Directorate,Approved Lodgings,H323
http://statistics.data.gov.uk/id/local-authority/00BF,London Borough of Sutton,12/08/2016,4973804,"2,492.44",Heatherwood Nursing Home,17510,Peoples Services Directorate,Nursing Care - Ext Provider,G311
http://statistics.data.gov.uk/id/local-authority/00BF,London Borough of Sutton,12/08/2016,4973816,"3,600.00",Heatherwood Nursing Home,17510,Peoples Services Directorate,Nursing Care - Ext Provider,G311
http://statistics.data.gov.uk/id/local-authority/00BF,London Borough of Sutton,12/08/2016,4973861,"3,340.00",Heatherwood Nursing Home,17510,Peoples Services Directorate,Nursing Care - Ext Provider,G311
http://statistics.data.gov.uk/id/local-authority/00BF,London Borough of Sutton,12/08/2016,4973520,"4,810.00",Hendford Nursing Home,12071,Peoples Services Directorate,Nursing Care - Ext Provider,G311
http://statistics.data.gov.uk/id/local-authority/00BF,London Borough of Sutton,12/08/2016,4973879,"3,600.00",Hendford Nursing Home,12071,Peoples Services Directorate,Nursing Care - Ext Provider,G311
http://statistics.data.gov.uk/id/local-authority/00BF,London Borough of Sutton,19/06/2016,4972513,516.75,Heritage Care Ltd,21702,Peoples Services Directorate,Home Care,G334
http://statistics.data.gov.uk/id/local-authority/00BF,London Borough of Sutton,03/07/2016,4972514,516.75,Heritage Care Ltd,21702,Peoples Services Directorate,Home Care,G334
http://statistics.data.gov.uk/id/local-authority/00BF,London Borough of Sutton,26/06/2016,4972564,516.75,Heritage Care Ltd,21702,Peoples Services Directorate,Home Care,G334
http://statistics.data.gov.uk/id/local-authority/00BF,London Borough of Sutton,19/06/2016,4972568,486.85,Heritage Care Ltd,21702,Peoples Services Directorate,Home Care,G334
http://statistics.data.gov.uk/id/local-authority/00BF,London Borough of Sutton,26/06/2016,4972569,486.85,Heritage Care Ltd,21702,Peoples Services Directorate,Home Care,G334
http://statistics.data.gov.uk/id/local-authority/00BF,London Borough of Sutton,03/07/2016,4972570,486.85,Heritage Care Ltd,21702,Peoples Services Directorate,Home Care,G334
http://statistics.data.gov.uk/id/local-authority/00BF,London Borough of Sutton,10/07/2016,4975998,516.75,Heritage Care Ltd,21702,Peoples Services Directorate,Home Care,G334
http://statistics.data.gov.uk/id/local-authority/00BF,London Borough of Sutton,17/07/2016,4975999,516.75,Heritage Care Ltd,21702,Peoples Services Directorate,Home Care,G334
http://statistics.data.gov.uk/id/local-authority/00BF,London Borough of Sutton,24/07/2016,4976000,516.75,Heritage Care Ltd,21702,Peoples Services Directorate,Home Care,G334
http://statistics.data.gov.uk/id/local-authority/00BF,London Borough of Sutton,31/07/2016,4976001,516.75,Heritage Care Ltd,21702,Peoples Services Directorate,Home Care,G334
http://statistics.data.gov.uk/id/local-authority/00BF,London Borough of Sutton,10/07/2016,4976002,494.55,Heritage Care Ltd,21702,Peoples Services Directorate,Home Care,G334
http://statistics.data.gov.uk/id/local-authority/00BF,London Borough of Sutton,17/07/2016,4976003,424.6,Heritage Care Ltd,21702,Peoples Services Directorate,Home Care,G334
http://statistics.data.gov.uk/id/local-authority/00BF,London Borough of Sutton,24/07/2016,4976004,502.24,Heritage Care Ltd,21702,Peoples Services Directorate,Home Care,G334
http://statistics.data.gov.uk/id/local-authority/00BF,London Borough of Sutton,31/07/2016,4976005,502.24,Heritage Care Ltd,21702,Peoples Services Directorate,Home Care,G334
http://statistics.data.gov.uk/id/local-authority/00BF,London Borough of Sutton,12/08/2016,4973701,"2,566.24",HF Trust Ltd,12131,Peoples Services Directorate,Residential Care - Ext Provider,G310
http://statistics.data.gov.uk/id/local-authority/00BF,London Borough of Sutton,06/07/2016,4979672,"2,883.44",HF Trust Ltd,12131,Peoples Services Directorate,One to One Care,G335
